ORGANISATION NAME,EFFECTIVE DATE,DIRECTORATE,SUPPLIER NAME,DATE PAID,AMOUNT (�),PURPOSE,TRANSACTION NO.
ROCHDALE BOROUGH COUNCIL,05/11/2018,RESOURCES,CRITIQOM LIMITED,05/11/2018,64.75 ,PRINTING,V001254629
ROCHDALE BOROUGH COUNCIL,07/11/2018,NEIGHBOURHOODS AND ENVIRONMENT,REXEL UK LIMITED,07/11/2018,35.00 ,TRANSACTIONS-EXPENDITURE,V001284135
ROCHDALE BOROUGH COUNCIL,08/11/2018,PROPERTY AND HIGHWAYS,SYNTAX CONTROLS LIMITED,08/11/2018,172.00 ,CENTRAL HEATING,V001286616
ROCHDALE BOROUGH COUNCIL,22/11/2018,ECONOMY DIRECTORATE,LINK4LIFE CHARITY,22/11/2018,729.10 ,REPAIRS & ALTS OF BUILDINGS,V001286809
ROCHDALE BOROUGH COUNCIL,08/11/2018,PROPERTY AND HIGHWAYS,ACCESS DOOR SYSTEMS LTD,08/11/2018,380.00 ,PROPERTY - WORKS ELEMENT,V001287241
ROCHDALE BOROUGH COUNCIL,02/11/2018,NEIGHBOURHOODS AND ENVIRONMENT,GAZPROM MARKETING AND TRADING RETAIL LTD,02/11/2018,-610.67 ,GAS,V001290896
ROCHDALE BOROUGH COUNCIL,30/11/2018,NEIGHBOURHOODS AND ENVIRONMENT,ROSS CARE,30/11/2018,87.56 ,REPAIRS & ALTS OF BUILDINGS,V001291879
ROCHDALE BOROUGH COUNCIL,02/11/2018,LEARNING DIS & MENTAL HEALTH,TORDAN HEALTHCARE,02/11/2018,468.80 ,PERSONAL BUDGETS - MANAGED,V001293538
ROCHDALE BOROUGH COUNCIL,08/11/2018,ECONOMY DIRECTORATE,ABC INDUSTRIAL DOORS LTD,08/11/2018,109.25 ,ELECTRICAL,V001297221
ROCHDALE BOROUGH COUNCIL,07/11/2018,ECONOMY DIRECTORATE,ARCUS CONSULTING LLP,07/11/2018,220.00 ,CONSULTANTS FEES,V001297269
ROCHDALE BOROUGH COUNCIL,07/11/2018,NEIGHBOURHOODS AND ENVIRONMENT,CALIBRATION ENGINEERING SERVICES LTD,07/11/2018,8016.75 ,MAINTENANCE,V001297461
ROCHDALE BOROUGH COUNCIL,08/11/2018,NEIGHBOURHOODS AND ENVIRONMENT,BIFFA WASTE SERVICES LIMITED,08/11/2018,42.00 ,EXPENSES - GENERAL,V001298068
ROCHDALE BOROUGH COUNCIL,27/11/2018,NEIGHBOURHOODS AND ENVIRONMENT,RIPON FARM SERVICES,27/11/2018,492.00 ,VEHICLE MAINTENANCE,V001298326
ROCHDALE BOROUGH COUNCIL,27/11/2018,NEIGHBOURHOODS AND ENVIRONMENT,RIPON FARM SERVICES,27/11/2018,3775.87 ,VEHICLE MAINTENANCE,V001298326
ROCHDALE BOROUGH COUNCIL,19/11/2018,NEIGHBOURHOODS AND ENVIRONMENT,TRAVIS PERKINS TRADING CO LTD,19/11/2018,6.13 ,VEHICLE MAINTENANCE,V001298660
ROCHDALE BOROUGH COUNCIL,19/11/2018,EARLY HELP AND SCHOOLS,ARGOS BUSINESS SOLUTIONS LIMITED,19/11/2018,76.03 ,EQUIPMENT - GENERAL,V001300108
ROCHDALE BOROUGH COUNCIL,09/11/2018,CHILDREN�S SOCIAL CARE,AMTOLL LIMITED,09/11/2018,27.60 ,PROVISIONS,V001300159
ROCHDALE BOROUGH COUNCIL,14/11/2018,NEIGHBOURHOODS AND ENVIRONMENT,ROCHDALE OCCUPATIONAL HEALTH SERVICE LTD,14/11/2018,585.00 ,TRAINING-QUALIFICATION,V001300182
ROCHDALE BOROUGH COUNCIL,21/11/2018,EARLY HELP AND SCHOOLS,REAL TRUST,21/11/2018,50.00 ,ROOM HIRE,V001300341
ROCHDALE BOROUGH COUNCIL,08/11/2018,NEIGHBOURHOODS AND ENVIRONMENT,MRM STREET FURNITURE LTD,08/11/2018,1215.00 ,EQUIPMENT - GENERAL,V001300659
ROCHDALE BOROUGH COUNCIL,02/11/2018,ADULT CARE LCO FUNCTIONS,TORDAN HEALTHCARE,02/11/2018,234.40 ,HOME CARE - ADULT SERVICES,V001302359
ROCHDALE BOROUGH COUNCIL,02/11/2018,ADULT CARE LCO FUNCTIONS,TORDAN HEALTHCARE,02/11/2018,468.80 ,HOME CARE - ADULT SERVICES,V001302360
ROCHDALE BOROUGH COUNCIL,02/11/2018,LEARNING DIS & MENTAL HEALTH,TORDAN HEALTHCARE,02/11/2018,-234.40 ,PERSONAL BUDGETS - MANAGED,V001302361
ROCHDALE BOROUGH COUNCIL,08/11/2018,ADULT CARE LCO FUNCTIONS,PENNINE CARE NHS,08/11/2018,9250.00 ,RENTS,V001302571
ROCHDALE BOROUGH COUNCIL,08/11/2018,NEIGHBOURHOODS AND ENVIRONMENT,AUTO BATTERY SERVICE LTD,08/11/2018,44.44 ,VEHICLE MAINTENANCE,V001303126
ROCHDALE BOROUGH COUNCIL,08/11/2018,NEIGHBOURHOODS AND ENVIRONMENT,RIPON FARM SERVICES,08/11/2018,59.24 ,VEHICLE MAINTENANCE,V001303153
ROCHDALE BOROUGH COUNCIL,14/11/2018,NEIGHBOURHOODS AND ENVIRONMENT,CATS SOLUTIONS,14/11/2018,25.37 ,EXPENSES - GENERAL,V001305045
ROCHDALE BOROUGH COUNCIL,13/11/2018,NEIGHBOURHOODS AND ENVIRONMENT,RIPON FARM SERVICES,13/11/2018,247.78 ,VEHICLE MAINTENANCE,V001307177
ROCHDALE BOROUGH COUNCIL,20/11/2018,NEIGHBOURHOODS AND ENVIRONMENT,REDACTED - PERSONAL DATA,20/11/2018,200.00 ,EXPENSES - GENERAL,V001307443
ROCHDALE BOROUGH COUNCIL,01/11/2018,NEIGHBOURHOODS AND ENVIRONMENT,STORMSAVER,01/11/2018,1342.36 ,SPECIFIED MAINTENANCE,V001307731
ROCHDALE BOROUGH COUNCIL,19/11/2018,NEIGHBOURHOODS AND ENVIRONMENT,CSB SUPPLIES,19/11/2018,30.00 ,VEHICLE MAINTENANCE,V001307821
ROCHDALE BOROUGH COUNCIL,19/11/2018,NEIGHBOURHOODS AND ENVIRONMENT,CSB SUPPLIES,19/11/2018,300.00 ,EQUIPMENT - GENERAL,V001307821
ROCHDALE BOROUGH COUNCIL,20/11/2018,PROPERTY AND HIGHWAYS,CALEDONIAN LIFTS MANCHESTER LTD,20/11/2018,430.00 ,PROPERTY - WORKS ELEMENT,V001307845
ROCHDALE BOROUGH COUNCIL,13/11/2018,NEIGHBOURHOODS AND ENVIRONMENT,DALE INDUSTRIAL HOSE & FITTINGS LIMITED,13/11/2018,61.00 ,VEHICLE MAINTENANCE,V001308977
ROCHDALE BOROUGH COUNCIL,05/11/2018,NEIGHBOURHOODS AND ENVIRONMENT,FAUN ZOELLER UK LTD,05/11/2018,212.20 ,VEHICLE MAINTENANCE,V001308985
ROCHDALE BOROUGH COUNCIL,05/11/2018,NEIGHBOURHOODS AND ENVIRONMENT,FAUN ZOELLER UK LTD,05/11/2018,263.60 ,VEHICLE MAINTENANCE,V001308985
ROCHDALE BOROUGH COUNCIL,05/11/2018,NEIGHBOURHOODS AND ENVIRONMENT,FAUN ZOELLER UK LTD,05/11/2018,346.00 ,VEHICLE MAINTENANCE,V001308985
ROCHDALE BOROUGH COUNCIL,05/11/2018,NEIGHBOURHOODS AND ENVIRONMENT,FAUN ZOELLER UK LTD,05/11/2018,399.80 ,VEHICLE MAINTENANCE,V001308985
ROCHDALE BOROUGH COUNCIL,05/11/2018,NEIGHBOURHOODS AND ENVIRONMENT,AEBI SCHMIDT UK LIMITED,05/11/2018,15.00 ,VEHICLE MAINTENANCE,V001308989
ROCHDALE BOROUGH COUNCIL,05/11/2018,NEIGHBOURHOODS AND ENVIRONMENT,AEBI SCHMIDT UK LIMITED,05/11/2018,120.87 ,VEHICLE MAINTENANCE,V001308989
ROCHDALE BOROUGH COUNCIL,16/11/2018,NEIGHBOURHOODS AND ENVIRONMENT,AQUACOOL LTD,16/11/2018,20.00 ,CONSUMABLES,V001309556
ROCHDALE BOROUGH COUNCIL,09/11/2018,CHILDREN�S SOCIAL CARE,AQUACOOL LTD,09/11/2018,16.25 ,PROVISIONS,V001309574
ROCHDALE BOROUGH COUNCIL,06/11/2018,NEIGHBOURHOODS AND ENVIRONMENT,RELIANCE MEDICAL,06/11/2018,1.90 ,PRINTING & STATIONERY,V001310004
ROCHDALE BOROUGH COUNCIL,06/11/2018,NEIGHBOURHOODS AND ENVIRONMENT,RELIANCE MEDICAL,06/11/2018,4.95 ,PRINTING & STATIONERY,V001310004
ROCHDALE BOROUGH COUNCIL,06/11/2018,EARLY HELP AND SCHOOLS,BANNER GROUP LIMITED,06/11/2018,15.60 ,PRINTING & STATIONERY,V001310039
ROCHDALE BOROUGH COUNCIL,06/11/2018,EARLY HELP AND SCHOOLS,BANNER GROUP LIMITED,06/11/2018,20.12 ,PRINTING & STATIONERY,V001310039
ROCHDALE BOROUGH COUNCIL,06/11/2018,EARLY HELP AND SCHOOLS,BANNER GROUP LIMITED,06/11/2018,29.30 ,PRINTING & STATIONERY,V001310039
ROCHDALE BOROUGH COUNCIL,19/11/2018,NEIGHBOURHOODS AND ENVIRONMENT,EURO CAR PARTS LTD,19/11/2018,-14.60 ,VEHICLE MAINTENANCE,V001310049
ROCHDALE BOROUGH COUNCIL,19/11/2018,NEIGHBOURHOODS AND ENVIRONMENT,WHITEHEADS 1858 LTD,19/11/2018,136.80 ,PROVISIONS,V001311422
ROCHDALE BOROUGH COUNCIL,19/11/2018,NEIGHBOURHOODS AND ENVIRONMENT,WHITEHEADS 1858 LTD,19/11/2018,391.16 ,REPAIRS & ALTS OF BUILDINGS,V001311423
ROCHDALE BOROUGH COUNCIL,15/11/2018,NEIGHBOURHOODS AND ENVIRONMENT,SHRED STATION,15/11/2018,263.00 ,CONTRACTS,V001311516
ROCHDALE BOROUGH COUNCIL,01/11/2018,NEIGHBOURHOODS AND ENVIRONMENT,JGM AGENCY,01/11/2018,540.00 ,MARKETING EXPENDITURE,V001311521
ROCHDALE BOROUGH COUNCIL,15/11/2018,NEIGHBOURHOODS AND ENVIRONMENT,GTM ELECTRICAL SERVICES LIMITED,15/11/2018,577.30 ,REPAIRS & ALTS OF BUILDINGS,V001311887
ROCHDALE BOROUGH COUNCIL,15/11/2018,NEIGHBOURHOODS AND ENVIRONMENT,GTM ELECTRICAL SERVICES LIMITED,15/11/2018,60.00 ,REPAIRS & ALTS OF BUILDINGS,V001311888
ROCHDALE BOROUGH COUNCIL,09/11/2018,PROPERTY AND HIGHWAYS,YOTTA LIMITED,09/11/2018,13813.94 ,SOFTWARE,V001311908
ROCHDALE BOROUGH COUNCIL,27/11/2018,NEIGHBOURHOODS AND ENVIRONMENT,SPALDINGS UK LIMITED,27/11/2018,15.00 ,VEHICLE MAINTENANCE,V001312013
ROCHDALE BOROUGH COUNCIL,27/11/2018,NEIGHBOURHOODS AND ENVIRONMENT,SPALDINGS UK LIMITED,27/11/2018,74.40 ,TRANSACTIONS-EXPENDITURE,V001312013
ROCHDALE BOROUGH COUNCIL,05/11/2018,NEIGHBOURHOODS AND ENVIRONMENT,ABBEY ARCHITECTURAL IRONMONGERY CO LTD,05/11/2018,50.50 ,EQUIPMENT - GENERAL,V001313372
ROCHDALE BOROUGH COUNCIL,19/11/2018,EARLY HELP AND SCHOOLS,CRESTA WORLD TRAVEL LIMITED,19/11/2018,178.00 ,STAFF TRAVELLING EXPENSES,V001313387
ROCHDALE BOROUGH COUNCIL,27/11/2018,RESOURCES,JGM AGENCY,27/11/2018,1044.00 ,EQUIPMENT - GENERAL,V001313422
ROCHDALE BOROUGH COUNCIL,12/11/2018,NEIGHBOURHOODS AND ENVIRONMENT,SPALDINGS UK LIMITED,12/11/2018,31.66 ,VEHICLE MAINTENANCE,V001313432
ROCHDALE BOROUGH COUNCIL,12/11/2018,NEIGHBOURHOODS AND ENVIRONMENT,SPALDINGS UK LIMITED,12/11/2018,171.60 ,EQUIPMENT - GENERAL,V001313461
ROCHDALE BOROUGH COUNCIL,02/11/2018,ADULT CARE LCO FUNCTIONS,TORDAN HEALTHCARE,02/11/2018,468.80 ,HOME CARE - ADULT SERVICES,V001313621
ROCHDALE BOROUGH COUNCIL,01/11/2018,NEIGHBOURHOODS AND ENVIRONMENT,AMTOLL LIMITED,01/11/2018,3.84 ,CLEANING MATERIALS,V001313706
ROCHDALE BOROUGH COUNCIL,06/11/2018,NEIGHBOURHOODS AND ENVIRONMENT,CICELEY COMMERCIALS LIMITED,06/11/2018,10.49 ,VEHICLE MAINTENANCE,V001313759
ROCHDALE BOROUGH COUNCIL,06/11/2018,NEIGHBOURHOODS AND ENVIRONMENT,CICELEY COMMERCIALS LIMITED,06/11/2018,13.40 ,VEHICLE MAINTENANCE,V001313759
ROCHDALE BOROUGH COUNCIL,06/11/2018,NEIGHBOURHOODS AND ENVIRONMENT,CICELEY COMMERCIALS LIMITED,06/11/2018,29.40 ,VEHICLE MAINTENANCE,V001313759
ROCHDALE BOROUGH COUNCIL,06/11/2018,NEIGHBOURHOODS AND ENVIRONMENT,CICELEY COMMERCIALS LIMITED,06/11/2018,33.20 ,VEHICLE MAINTENANCE,V001313759
ROCHDALE BOROUGH COUNCIL,06/11/2018,NEIGHBOURHOODS AND ENVIRONMENT,CICELEY COMMERCIALS LIMITED,06/11/2018,44.03 ,VEHICLE MAINTENANCE,V001313759
ROCHDALE BOROUGH COUNCIL,06/11/2018,NEIGHBOURHOODS AND ENVIRONMENT,CICELEY COMMERCIALS LIMITED,06/11/2018,72.68 ,VEHICLE MAINTENANCE,V001313759
ROCHDALE BOROUGH COUNCIL,06/11/2018,NEIGHBOURHOODS AND ENVIRONMENT,CICELEY COMMERCIALS LIMITED,06/11/2018,97.29 ,VEHICLE MAINTENANCE,V001313759
ROCHDALE BOROUGH COUNCIL,06/11/2018,NEIGHBOURHOODS AND ENVIRONMENT,CICELEY COMMERCIALS LIMITED,06/11/2018,102.12 ,VEHICLE MAINTENANCE,V001313759
ROCHDALE BOROUGH COUNCIL,07/11/2018,NEIGHBOURHOODS AND ENVIRONMENT,CROWN OIL LIMITED,07/11/2018,80.63 ,EQUIPMENT - GENERAL,V001314125
ROCHDALE BOROUGH COUNCIL,07/11/2018,NEIGHBOURHOODS AND ENVIRONMENT,CROWN OIL LIMITED,07/11/2018,1000.00 ,EQUIPMENT - GENERAL,V001314125
ROCHDALE BOROUGH COUNCIL,08/11/2018,NEIGHBOURHOODS AND ENVIRONMENT,INDESPENSION LIMITED,08/11/2018,388.45 ,EQUIPMENT - GENERAL,V001314128
ROCHDALE BOROUGH COUNCIL,05/11/2018,ECONOMY DIRECTORATE,REACH PUBLISHING SERVICES LTD,05/11/2018,202.35 ,PUBLIC NOTICES,V001314130
ROCHDALE BOROUGH COUNCIL,07/11/2018,CHILDREN�S SOCIAL CARE,CRESTA WORLD TRAVEL LIMITED,07/11/2018,9.00 ,PUBLIC TRANSPORT,V001314144
ROCHDALE BOROUGH COUNCIL,07/11/2018,CHILDREN�S SOCIAL CARE,CRESTA WORLD TRAVEL LIMITED,07/11/2018,72.75 ,PUBLIC TRANSPORT,V001314144
ROCHDALE BOROUGH COUNCIL,14/11/2018,NEIGHBOURHOODS AND ENVIRONMENT,PROTON SOUTHERN LIMITED,14/11/2018,91.88 ,REPAIRS & ALTS OF BUILDINGS,V001314417
ROCHDALE BOROUGH COUNCIL,08/11/2018,NEIGHBOURHOODS AND ENVIRONMENT,INLAND AND COASTAL MARINA SYSTEMS LTD UK,08/11/2018,3500.00 ,REPAIRS & ALTS OF BUILDINGS,V001314430
ROCHDALE BOROUGH COUNCIL,05/11/2018,ECONOMY DIRECTORATE,LANCASHIRE LOCK AND SAFE COMPANY LIMITED,05/11/2018,96.00 ,EQUIPMENT - GENERAL,V001314433
ROCHDALE BOROUGH COUNCIL,14/11/2018,NEIGHBOURHOODS AND ENVIRONMENT,KEN TAYLOR SUPPLIES LTD,14/11/2018,111.60 ,TRANSACTIONS-EXPENDITURE,V001317798
ROCHDALE BOROUGH COUNCIL,26/11/2018,PROPERTY AND HIGHWAYS,E ON SUSTAINABLE ENERGY,26/11/2018,23.24 ,MINOR BUILDING WORKS,V001317874
ROCHDALE BOROUGH COUNCIL,26/11/2018,PROPERTY AND HIGHWAYS,E ON SUSTAINABLE ENERGY,26/11/2018,25.73 ,MINOR BUILDING WORKS,V001317876
ROCHDALE BOROUGH COUNCIL,26/11/2018,PROPERTY AND HIGHWAYS,E ON SUSTAINABLE ENERGY,26/11/2018,26.56 ,MINOR BUILDING WORKS,V001317878
ROCHDALE BOROUGH COUNCIL,26/11/2018,PROPERTY AND HIGHWAYS,E ON SUSTAINABLE ENERGY,26/11/2018,20.75 ,MINOR BUILDING WORKS,V001317879
ROCHDALE BOROUGH COUNCIL,26/11/2018,PROPERTY AND HIGHWAYS,E ON SUSTAINABLE ENERGY,26/11/2018,31.15 ,MINOR BUILDING WORKS,V001317880
ROCHDALE BOROUGH COUNCIL,16/11/2018,EARLY HELP AND SCHOOLS,ROCHDALE OCCUPATIONAL HEALTH SERVICE LTD,16/11/2018,195.00 ,TRAINING-QUALIFICATION,V001317897
ROCHDALE BOROUGH COUNCIL,22/11/2018,NEIGHBOURHOODS AND ENVIRONMENT,REDACTED - PERSONAL DATA,22/11/2018,150.00 ,EXPENSES - GENERAL,V001317993
ROCHDALE BOROUGH COUNCIL,07/11/2018,NEIGHBOURHOODS AND ENVIRONMENT,RCD LEAFLET DISTRIBUTION,07/11/2018,742.50 ,EQUIPMENT - GENERAL,V001318054
ROCHDALE BOROUGH COUNCIL,06/11/2018,PROPERTY AND HIGHWAYS,ABC INDUSTRIAL DOORS LTD,06/11/2018,109.25 ,PROPERTY - WORKS ELEMENT,V001318668
ROCHDALE BOROUGH COUNCIL,06/11/2018,PROPERTY AND HIGHWAYS,ABC INDUSTRIAL DOORS LTD,06/11/2018,95.50 ,PROPERTY - WORKS ELEMENT,V001318670
ROCHDALE BOROUGH COUNCIL,06/11/2018,PROPERTY AND HIGHWAYS,F NEEDHAM,06/11/2018,94.64 ,PROPERTY - WORKS ELEMENT,V001318672
ROCHDALE BOROUGH COUNCIL,26/11/2018,NEIGHBOURHOODS AND ENVIRONMENT,NO WORRIES IT LTD,26/11/2018,340.00 ,ACTIVITIES,V001318738
ROCHDALE BOROUGH COUNCIL,26/11/2018,NEIGHBOURHOODS AND ENVIRONMENT,NO WORRIES IT LTD,26/11/2018,282.00 ,ACTIVITIES,V001318739
ROCHDALE BOROUGH COUNCIL,19/11/2018,NEIGHBOURHOODS AND ENVIRONMENT,OTIS LTD,19/11/2018,437.50 ,SPECIFIED MAINTENANCE,V001318792
ROCHDALE BOROUGH COUNCIL,19/11/2018,NEIGHBOURHOODS AND ENVIRONMENT,OTIS LTD,19/11/2018,1773.12 ,SPECIFIED MAINTENANCE,V001318793
ROCHDALE BOROUGH COUNCIL,13/11/2018,RESOURCES,CRESTA WORLD TRAVEL LIMITED,13/11/2018,23.00 ,TRAINING,V001318830
ROCHDALE BOROUGH COUNCIL,19/11/2018,CHILDREN�S SOCIAL CARE,AMTOLL LIMITED,19/11/2018,8.84 ,CONSUMABLES,V001318836
ROCHDALE BOROUGH COUNCIL,19/11/2018,CHILDREN�S SOCIAL CARE,AMTOLL LIMITED,19/11/2018,30.48 ,CLEANING MATERIALS,V001318836
ROCHDALE BOROUGH COUNCIL,01/11/2018,PROPERTY AND HIGHWAYS,INTERSAFETY,01/11/2018,24.25 ,"CLOTHES, UNIFORM AND LAUNDRY",V001318910
ROCHDALE BOROUGH COUNCIL,29/11/2018,NEIGHBOURHOODS AND ENVIRONMENT,THE PROTON GROUP LIMITED,29/11/2018,132.15 ,CLEANING MATERIALS,V001318960
ROCHDALE BOROUGH COUNCIL,19/11/2018,NEIGHBOURHOODS AND ENVIRONMENT,ARCO GROUP LIMITED,19/11/2018,41.06 ,"CLOTHES, UNIFORM AND LAUNDRY",V001318963
ROCHDALE BOROUGH COUNCIL,19/11/2018,NEIGHBOURHOODS AND ENVIRONMENT,ROCHDALE ONLINE LIMITED,19/11/2018,500.00 ,MARKETING EXPENDITURE,V001319061
ROCHDALE BOROUGH COUNCIL,14/11/2018,NEIGHBOURHOODS AND ENVIRONMENT,ARCO GROUP LIMITED,14/11/2018,67.94 ,TRANSACTIONS-EXPENDITURE,V001319727
ROCHDALE BOROUGH COUNCIL,14/11/2018,NEIGHBOURHOODS AND ENVIRONMENT,ARCO GROUP LIMITED,14/11/2018,101.91 ,TRANSACTIONS-EXPENDITURE,V001319727
ROCHDALE BOROUGH COUNCIL,14/11/2018,NEIGHBOURHOODS AND ENVIRONMENT,ARCO GROUP LIMITED,14/11/2018,101.91 ,TRANSACTIONS-EXPENDITURE,V001319727
ROCHDALE BOROUGH COUNCIL,14/11/2018,NEIGHBOURHOODS AND ENVIRONMENT,ARCO GROUP LIMITED,14/11/2018,101.91 ,TRANSACTIONS-EXPENDITURE,V001319727
ROCHDALE BOROUGH COUNCIL,14/11/2018,NEIGHBOURHOODS AND ENVIRONMENT,ARCO GROUP LIMITED,14/11/2018,111.52 ,TRANSACTIONS-EXPENDITURE,V001319727
ROCHDALE BOROUGH COUNCIL,01/11/2018,PROPERTY AND HIGHWAYS,ARCO GROUP LIMITED,01/11/2018,60.39 ,"CLOTHES, UNIFORM AND LAUNDRY",V001319740
ROCHDALE BOROUGH COUNCIL,01/11/2018,PROPERTY AND HIGHWAYS,TRANSPORT FOR GREATER MANCHESTER,01/11/2018,970.00 ,MINOR BUILDING WORKS,V001319743
ROCHDALE BOROUGH COUNCIL,02/11/2018,NEIGHBOURHOODS AND ENVIRONMENT,MITSUBISHI ELECTRIC EUROPE BV,02/11/2018,1282.84 ,REPAIRS & ALTS OF BUILDINGS,V001319781
ROCHDALE BOROUGH COUNCIL,21/11/2018,NEIGHBOURHOODS AND ENVIRONMENT,CICELEY COMMERCIALS LIMITED,21/11/2018,6.70 ,VEHICLE MAINTENANCE,V001319807
ROCHDALE BOROUGH COUNCIL,21/11/2018,NEIGHBOURHOODS AND ENVIRONMENT,CICELEY COMMERCIALS LIMITED,21/11/2018,10.49 ,VEHICLE MAINTENANCE,V001319807
ROCHDALE BOROUGH COUNCIL,21/11/2018,NEIGHBOURHOODS AND ENVIRONMENT,CICELEY COMMERCIALS LIMITED,21/11/2018,29.40 ,VEHICLE MAINTENANCE,V001319807
ROCHDALE BOROUGH COUNCIL,21/11/2018,NEIGHBOURHOODS AND ENVIRONMENT,CICELEY COMMERCIALS LIMITED,21/11/2018,33.20 ,VEHICLE MAINTENANCE,V001319807
ROCHDALE BOROUGH COUNCIL,21/11/2018,NEIGHBOURHOODS AND ENVIRONMENT,CICELEY COMMERCIALS LIMITED,21/11/2018,79.38 ,VEHICLE MAINTENANCE,V001319807
ROCHDALE BOROUGH COUNCIL,21/11/2018,NEIGHBOURHOODS AND ENVIRONMENT,CICELEY COMMERCIALS LIMITED,21/11/2018,97.29 ,VEHICLE MAINTENANCE,V001319807
ROCHDALE BOROUGH COUNCIL,21/11/2018,NEIGHBOURHOODS AND ENVIRONMENT,CICELEY COMMERCIALS LIMITED,21/11/2018,102.12 ,VEHICLE MAINTENANCE,V001319807
ROCHDALE BOROUGH COUNCIL,14/11/2018,NEIGHBOURHOODS AND ENVIRONMENT,ARCO GROUP LIMITED,14/11/2018,123.00 ,VEHICLE MAINTENANCE,V001319839
ROCHDALE BOROUGH COUNCIL,09/11/2018,NEIGHBOURHOODS AND ENVIRONMENT,ALLSTAR BUSINESS SOLUTIONS LTD,09/11/2018,8.39 ,FUEL,V001319849
ROCHDALE BOROUGH COUNCIL,09/11/2018,PROPERTY AND HIGHWAYS,ALLSTAR BUSINESS SOLUTIONS LTD,09/11/2018,12.90 ,FUEL,V001319849
ROCHDALE BOROUGH COUNCIL,09/11/2018,PROPERTY AND HIGHWAYS,ALLSTAR BUSINESS SOLUTIONS LTD,09/11/2018,31.92 ,PERSONAL BUDGETS - MANAGED,V001319849
ROCHDALE BOROUGH COUNCIL,09/11/2018,NEIGHBOURHOODS AND ENVIRONMENT,ALLSTAR BUSINESS SOLUTIONS LTD,09/11/2018,32.48 ,FUEL,V001319849
ROCHDALE BOROUGH COUNCIL,09/11/2018,NEIGHBOURHOODS AND ENVIRONMENT,ALLSTAR BUSINESS SOLUTIONS LTD,09/11/2018,33.58 ,FUEL,V001319849
ROCHDALE BOROUGH COUNCIL,09/11/2018,ECONOMY DIRECTORATE,ALLSTAR BUSINESS SOLUTIONS LTD,09/11/2018,43.33 ,FUEL,V001319849
ROCHDALE BOROUGH COUNCIL,09/11/2018,EARLY HELP AND SCHOOLS,ALLSTAR BUSINESS SOLUTIONS LTD,09/11/2018,43.57 ,FUEL,V001319849
ROCHDALE BOROUGH COUNCIL,09/11/2018,NEIGHBOURHOODS AND ENVIRONMENT,ALLSTAR BUSINESS SOLUTIONS LTD,09/11/2018,43.57 ,FUEL,V001319849
ROCHDALE BOROUGH COUNCIL,09/11/2018,NEIGHBOURHOODS AND ENVIRONMENT,ALLSTAR BUSINESS SOLUTIONS LTD,09/11/2018,60.61 ,FUEL,V001319849
ROCHDALE BOROUGH COUNCIL,09/11/2018,CHILDREN�S SOCIAL CARE,ALLSTAR BUSINESS SOLUTIONS LTD,09/11/2018,79.58 ,FUEL,V001319849
ROCHDALE BOROUGH COUNCIL,09/11/2018,CHILDREN�S SOCIAL CARE,ALLSTAR BUSINESS SOLUTIONS LTD,09/11/2018,93.03 ,FUEL,V001319849
ROCHDALE BOROUGH COUNCIL,09/11/2018,NEIGHBOURHOODS AND ENVIRONMENT,ALLSTAR BUSINESS SOLUTIONS LTD,09/11/2018,95.49 ,FUEL,V001319849
ROCHDALE BOROUGH COUNCIL,09/11/2018,NEIGHBOURHOODS AND ENVIRONMENT,ALLSTAR BUSINESS SOLUTIONS LTD,09/11/2018,95.52 ,FUEL,V001319849
ROCHDALE BOROUGH COUNCIL,09/11/2018,NEIGHBOURHOODS AND ENVIRONMENT,ALLSTAR BUSINESS SOLUTIONS LTD,09/11/2018,106.66 ,FUEL,V001319849
ROCHDALE BOROUGH COUNCIL,09/11/2018,NEIGHBOURHOODS AND ENVIRONMENT,ALLSTAR BUSINESS SOLUTIONS LTD,09/11/2018,119.09 ,FUEL,V001319849
ROCHDALE BOROUGH COUNCIL,09/11/2018,NEIGHBOURHOODS AND ENVIRONMENT,ALLSTAR BUSINESS SOLUTIONS LTD,09/11/2018,162.51 ,FUEL,V001319849
ROCHDALE BOROUGH COUNCIL,09/11/2018,NEIGHBOURHOODS AND ENVIRONMENT,ALLSTAR BUSINESS SOLUTIONS LTD,09/11/2018,176.80 ,FUEL,V001319849
ROCHDALE BOROUGH COUNCIL,09/11/2018,NEIGHBOURHOODS AND ENVIRONMENT,ALLSTAR BUSINESS SOLUTIONS LTD,09/11/2018,202.97 ,FUEL,V001319849
ROCHDALE BOROUGH COUNCIL,09/11/2018,NEIGHBOURHOODS AND ENVIRONMENT,ALLSTAR BUSINESS SOLUTIONS LTD,09/11/2018,301.20 ,FUEL,V001319849
ROCHDALE BOROUGH COUNCIL,14/11/2018,NEIGHBOURHOODS AND ENVIRONMENT,THOMAS WRIGHT/THORITE GROUP LIMITED,14/11/2018,236.77 ,VEHICLE MAINTENANCE,V001319853
ROCHDALE BOROUGH COUNCIL,14/11/2018,NEIGHBOURHOODS AND ENVIRONMENT,THOMAS WRIGHT/THORITE GROUP LIMITED,14/11/2018,416.84 ,VEHICLE MAINTENANCE,V001319853
ROCHDALE BOROUGH COUNCIL,05/11/2018,NEIGHBOURHOODS AND ENVIRONMENT,RCD LEAFLET DISTRIBUTION,05/11/2018,1188.00 ,EQUIPMENT - GENERAL,V001319860
ROCHDALE BOROUGH COUNCIL,29/11/2018,EARLY HELP AND SCHOOLS,REAL TRUST,29/11/2018,50.00 ,TRAINING-NON QUALIFICATION,V001319953
ROCHDALE BOROUGH COUNCIL,05/11/2018,NEIGHBOURHOODS AND ENVIRONMENT,H BELL AND SONS ROCHDALE LTD,05/11/2018,463.78 ,REPAIRS & ALTS OF BUILDINGS,V001320009
ROCHDALE BOROUGH COUNCIL,05/11/2018,NEIGHBOURHOODS AND ENVIRONMENT,H BELL AND SONS ROCHDALE LTD,05/11/2018,1630.00 ,REPAIRS & ALTS OF BUILDINGS,V001320010
ROCHDALE BOROUGH COUNCIL,01/11/2018,PROPERTY AND HIGHWAYS,GMCA,01/11/2018,599.42 ,MINOR BUILDING WORKS,V001320401
ROCHDALE BOROUGH COUNCIL,01/11/2018,PROPERTY AND HIGHWAYS,ARCO GROUP LIMITED,01/11/2018,17.52 ,MINOR BUILDING WORKS,V001320404
ROCHDALE BOROUGH COUNCIL,01/11/2018,PROPERTY AND HIGHWAYS,F NEEDHAM,01/11/2018,90.00 ,PROPERTY - WORKS ELEMENT,V001320408
ROCHDALE BOROUGH COUNCIL,23/11/2018,NEIGHBOURHOODS AND ENVIRONMENT,WLG LTD,23/11/2018,1261.19 ,CATERING - GENERAL,V001320444
ROCHDALE BOROUGH COUNCIL,06/11/2018,NEIGHBOURHOODS AND ENVIRONMENT,AMTOLL LIMITED,06/11/2018,1.80 ,CLEANING MATERIALS,V001320452
ROCHDALE BOROUGH COUNCIL,06/11/2018,NEIGHBOURHOODS AND ENVIRONMENT,AMTOLL LIMITED,06/11/2018,1.80 ,CLEANING MATERIALS,V001320452
ROCHDALE BOROUGH COUNCIL,06/11/2018,NEIGHBOURHOODS AND ENVIRONMENT,AMTOLL LIMITED,06/11/2018,1.81 ,EQUIPMENT - GENERAL,V001320452
ROCHDALE BOROUGH COUNCIL,06/11/2018,NEIGHBOURHOODS AND ENVIRONMENT,AMTOLL LIMITED,06/11/2018,2.46 ,CONSUMABLES,V001320452
ROCHDALE BOROUGH COUNCIL,06/11/2018,NEIGHBOURHOODS AND ENVIRONMENT,AMTOLL LIMITED,06/11/2018,2.51 ,CLEANING MATERIALS,V001320452
ROCHDALE BOROUGH COUNCIL,06/11/2018,NEIGHBOURHOODS AND ENVIRONMENT,AMTOLL LIMITED,06/11/2018,3.48 ,CLEANING EQUIPMENT,V001320452
ROCHDALE BOROUGH COUNCIL,06/11/2018,NEIGHBOURHOODS AND ENVIRONMENT,AMTOLL LIMITED,06/11/2018,3.59 ,CONSUMABLES,V001320452
ROCHDALE BOROUGH COUNCIL,06/11/2018,NEIGHBOURHOODS AND ENVIRONMENT,AMTOLL LIMITED,06/11/2018,6.68 ,CLEANING MATERIALS,V001320452
ROCHDALE BOROUGH COUNCIL,06/11/2018,NEIGHBOURHOODS AND ENVIRONMENT,AMTOLL LIMITED,06/11/2018,7.00 ,CLEANING EQUIPMENT,V001320452
ROCHDALE BOROUGH COUNCIL,06/11/2018,NEIGHBOURHOODS AND ENVIRONMENT,AMTOLL LIMITED,06/11/2018,7.24 ,CLEANING MATERIALS,V001320452
ROCHDALE BOROUGH COUNCIL,06/11/2018,NEIGHBOURHOODS AND ENVIRONMENT,AMTOLL LIMITED,06/11/2018,8.00 ,CLEANING EQUIPMENT,V001320452
ROCHDALE BOROUGH COUNCIL,06/11/2018,NEIGHBOURHOODS AND ENVIRONMENT,AMTOLL LIMITED,06/11/2018,9.08 ,CLEANING MATERIALS,V001320452
ROCHDALE BOROUGH COUNCIL,06/11/2018,NEIGHBOURHOODS AND ENVIRONMENT,AMTOLL LIMITED,06/11/2018,12.08 ,CLEANING MATERIALS,V001320452
ROCHDALE BOROUGH COUNCIL,06/11/2018,NEIGHBOURHOODS AND ENVIRONMENT,AMTOLL LIMITED,06/11/2018,17.04 ,CLEANING EQUIPMENT,V001320452
ROCHDALE BOROUGH COUNCIL,06/11/2018,NEIGHBOURHOODS AND ENVIRONMENT,AMTOLL LIMITED,06/11/2018,30.48 ,CLEANING MATERIALS,V001320452
ROCHDALE BOROUGH COUNCIL,06/11/2018,NEIGHBOURHOODS AND ENVIRONMENT,AMTOLL LIMITED,06/11/2018,35.70 ,CONSUMABLES,V001320452
ROCHDALE BOROUGH COUNCIL,06/11/2018,NEIGHBOURHOODS AND ENVIRONMENT,AMTOLL LIMITED,06/11/2018,64.34 ,CONSUMABLES,V001320452
ROCHDALE BOROUGH COUNCIL,06/11/2018,NEIGHBOURHOODS AND ENVIRONMENT,AMTOLL LIMITED,06/11/2018,69.95 ,CONSUMABLES,V001320452
ROCHDALE BOROUGH COUNCIL,14/11/2018,NEIGHBOURHOODS AND ENVIRONMENT,AMTOLL LIMITED,14/11/2018,1.33 ,CLEANING EQUIPMENT,V001320453
ROCHDALE BOROUGH COUNCIL,14/11/2018,NEIGHBOURHOODS AND ENVIRONMENT,AMTOLL LIMITED,14/11/2018,4.68 ,CLEANING MATERIALS,V001320453
ROCHDALE BOROUGH COUNCIL,14/11/2018,NEIGHBOURHOODS AND ENVIRONMENT,AMTOLL LIMITED,14/11/2018,4.68 ,CLEANING MATERIALS,V001320453
ROCHDALE BOROUGH COUNCIL,14/11/2018,NEIGHBOURHOODS AND ENVIRONMENT,AMTOLL LIMITED,14/11/2018,4.68 ,CLEANING MATERIALS,V001320453
ROCHDALE BOROUGH COUNCIL,14/11/2018,NEIGHBOURHOODS AND ENVIRONMENT,AMTOLL LIMITED,14/11/2018,15.24 ,CLEANING MATERIALS,V001320453
ROCHDALE BOROUGH COUNCIL,14/11/2018,NEIGHBOURHOODS AND ENVIRONMENT,AMTOLL LIMITED,14/11/2018,16.98 ,CLEANING EQUIPMENT,V001320453
ROCHDALE BOROUGH COUNCIL,14/11/2018,NEIGHBOURHOODS AND ENVIRONMENT,AMTOLL LIMITED,14/11/2018,41.70 ,CONSUMABLES,V001320453
ROCHDALE BOROUGH COUNCIL,14/11/2018,NEIGHBOURHOODS AND ENVIRONMENT,AMTOLL LIMITED,14/11/2018,55.96 ,CONSUMABLES,V001320453
ROCHDALE BOROUGH COUNCIL,14/11/2018,NEIGHBOURHOODS AND ENVIRONMENT,AMTOLL LIMITED,14/11/2018,60.00 ,CONSUMABLES,V001320453
ROCHDALE BOROUGH COUNCIL,14/11/2018,NEIGHBOURHOODS AND ENVIRONMENT,AMTOLL LIMITED,14/11/2018,1.81 ,EQUIPMENT - GENERAL,V001320454
ROCHDALE BOROUGH COUNCIL,14/11/2018,NEIGHBOURHOODS AND ENVIRONMENT,AMTOLL LIMITED,14/11/2018,3.60 ,CLEANING MATERIALS,V001320454
ROCHDALE BOROUGH COUNCIL,14/11/2018,NEIGHBOURHOODS AND ENVIRONMENT,AMTOLL LIMITED,14/11/2018,3.60 ,CLEANING MATERIALS,V001320454
ROCHDALE BOROUGH COUNCIL,14/11/2018,NEIGHBOURHOODS AND ENVIRONMENT,AMTOLL LIMITED,14/11/2018,3.82 ,CLEANING MATERIALS,V001320454
ROCHDALE BOROUGH COUNCIL,14/11/2018,NEIGHBOURHOODS AND ENVIRONMENT,AMTOLL LIMITED,14/11/2018,6.81 ,CLEANING MATERIALS,V001320454
ROCHDALE BOROUGH COUNCIL,14/11/2018,NEIGHBOURHOODS AND ENVIRONMENT,AMTOLL LIMITED,14/11/2018,9.36 ,CLEANING MATERIALS,V001320454
ROCHDALE BOROUGH COUNCIL,14/11/2018,NEIGHBOURHOODS AND ENVIRONMENT,AMTOLL LIMITED,14/11/2018,9.38 ,CLEANING MATERIALS,V001320454
ROCHDALE BOROUGH COUNCIL,14/11/2018,NEIGHBOURHOODS AND ENVIRONMENT,AMTOLL LIMITED,14/11/2018,10.92 ,CLEANING MATERIALS,V001320454
ROCHDALE BOROUGH COUNCIL,14/11/2018,NEIGHBOURHOODS AND ENVIRONMENT,AMTOLL LIMITED,14/11/2018,11.10 ,CLEANING MATERIALS,V001320454
ROCHDALE BOROUGH COUNCIL,14/11/2018,NEIGHBOURHOODS AND ENVIRONMENT,AMTOLL LIMITED,14/11/2018,15.00 ,CLEANING MATERIALS,V001320454
ROCHDALE BOROUGH COUNCIL,14/11/2018,NEIGHBOURHOODS AND ENVIRONMENT,AMTOLL LIMITED,14/11/2018,18.12 ,CLEANING MATERIALS,V001320454
ROCHDALE BOROUGH COUNCIL,14/11/2018,NEIGHBOURHOODS AND ENVIRONMENT,AMTOLL LIMITED,14/11/2018,18.50 ,CLEANING MATERIALS,V001320454
ROCHDALE BOROUGH COUNCIL,14/11/2018,NEIGHBOURHOODS AND ENVIRONMENT,AMTOLL LIMITED,14/11/2018,22.86 ,CLEANING MATERIALS,V001320454
ROCHDALE BOROUGH COUNCIL,14/11/2018,NEIGHBOURHOODS AND ENVIRONMENT,AMTOLL LIMITED,14/11/2018,24.20 ,CLEANING MATERIALS,V001320454
ROCHDALE BOROUGH COUNCIL,14/11/2018,NEIGHBOURHOODS AND ENVIRONMENT,AMTOLL LIMITED,14/11/2018,41.70 ,CONSUMABLES,V001320454
ROCHDALE BOROUGH COUNCIL,09/11/2018,ECONOMY DIRECTORATE,AQUACOOL LTD,09/11/2018,140.00 ,"CLOTHES, UNIFORM AND LAUNDRY",V001320464
ROCHDALE BOROUGH COUNCIL,02/11/2018,EARLY HELP AND SCHOOLS,BARNARDOS,02/11/2018,12750.00 ,SUBSCRIPTIONS,V001320491
ROCHDALE BOROUGH COUNCIL,02/11/2018,NEIGHBOURHOODS AND ENVIRONMENT,SOLOPROTECT LTD,02/11/2018,19.33 ,SECURITY,V001320494
ROCHDALE BOROUGH COUNCIL,02/11/2018,NEIGHBOURHOODS AND ENVIRONMENT,SOLOPROTECT LTD,02/11/2018,19.33 ,SECURITY,V001320494
ROCHDALE BOROUGH COUNCIL,02/11/2018,NEIGHBOURHOODS AND ENVIRONMENT,SOLOPROTECT LTD,02/11/2018,38.66 ,SECURITY,V001320494
ROCHDALE BOROUGH COUNCIL,02/11/2018,NEIGHBOURHOODS AND ENVIRONMENT,SOLOPROTECT LTD,02/11/2018,38.66 ,SECURITY,V001320494
ROCHDALE BOROUGH COUNCIL,01/11/2018,ECONOMY DIRECTORATE,S T HEATINGS SERVICES LTD,01/11/2018,70.00 ,CENTRAL HEATING,V001320581
ROCHDALE BOROUGH COUNCIL,01/11/2018,PROPERTY AND HIGHWAYS,S T HEATINGS SERVICES LTD,01/11/2018,70.00 ,PROPERTY - WORKS ELEMENT,V001320582
ROCHDALE BOROUGH COUNCIL,05/11/2018,ADULT CARE LCO FUNCTIONS,EZITRACKER,05/11/2018,699.60 ,IT EQUIPMENT,V001320591
ROCHDALE BOROUGH COUNCIL,02/11/2018,NEIGHBOURHOODS AND ENVIRONMENT,ESSENTRA SECURITY LTD,02/11/2018,631.50 ,EQUIPMENT - GENERAL,V001320602
ROCHDALE BOROUGH COUNCIL,01/11/2018,PROPERTY AND HIGHWAYS,ARCO GROUP LIMITED,01/11/2018,81.06 ,"CLOTHES, UNIFORM AND LAUNDRY",V001320605
ROCHDALE BOROUGH COUNCIL,23/11/2018,EARLY HELP AND SCHOOLS,YORKSHIRE PURCHASING ORGANISATION,23/11/2018,9.20 ,EQUIPMENT - GENERAL,V001320623
ROCHDALE BOROUGH COUNCIL,23/11/2018,EARLY HELP AND SCHOOLS,YORKSHIRE PURCHASING ORGANISATION,23/11/2018,11.95 ,EQUIPMENT - GENERAL,V001320623
ROCHDALE BOROUGH COUNCIL,23/11/2018,EARLY HELP AND SCHOOLS,YORKSHIRE PURCHASING ORGANISATION,23/11/2018,23.95 ,EQUIPMENT - GENERAL,V001320623
ROCHDALE BOROUGH COUNCIL,23/11/2018,EARLY HELP AND SCHOOLS,YORKSHIRE PURCHASING ORGANISATION,23/11/2018,27.95 ,EQUIPMENT - GENERAL,V001320623
ROCHDALE BOROUGH COUNCIL,23/11/2018,EARLY HELP AND SCHOOLS,YORKSHIRE PURCHASING ORGANISATION,23/11/2018,29.95 ,EQUIPMENT - GENERAL,V001320623
ROCHDALE BOROUGH COUNCIL,06/11/2018,NEIGHBOURHOODS AND ENVIRONMENT,FAUN ZOELLER UK LTD,06/11/2018,4.30 ,VEHICLE MAINTENANCE,V001320878
ROCHDALE BOROUGH COUNCIL,06/11/2018,NEIGHBOURHOODS AND ENVIRONMENT,FAUN ZOELLER UK LTD,06/11/2018,10.20 ,VEHICLE MAINTENANCE,V001320878
ROCHDALE BOROUGH COUNCIL,06/11/2018,NEIGHBOURHOODS AND ENVIRONMENT,FAUN ZOELLER UK LTD,06/11/2018,12.75 ,VEHICLE MAINTENANCE,V001320878
ROCHDALE BOROUGH COUNCIL,06/11/2018,NEIGHBOURHOODS AND ENVIRONMENT,FAUN ZOELLER UK LTD,06/11/2018,66.00 ,VEHICLE MAINTENANCE,V001320878
ROCHDALE BOROUGH COUNCIL,06/11/2018,NEIGHBOURHOODS AND ENVIRONMENT,FAUN ZOELLER UK LTD,06/11/2018,147.10 ,VEHICLE MAINTENANCE,V001320878
ROCHDALE BOROUGH COUNCIL,05/11/2018,NEIGHBOURHOODS AND ENVIRONMENT,CICELEY COMMERCIALS LIMITED,05/11/2018,10.49 ,VEHICLE MAINTENANCE,V001320894
ROCHDALE BOROUGH COUNCIL,05/11/2018,NEIGHBOURHOODS AND ENVIRONMENT,CICELEY COMMERCIALS LIMITED,05/11/2018,20.08 ,VEHICLE MAINTENANCE,V001320894
ROCHDALE BOROUGH COUNCIL,05/11/2018,NEIGHBOURHOODS AND ENVIRONMENT,CICELEY COMMERCIALS LIMITED,05/11/2018,44.03 ,VEHICLE MAINTENANCE,V001320894
ROCHDALE BOROUGH COUNCIL,05/11/2018,NEIGHBOURHOODS AND ENVIRONMENT,CICELEY COMMERCIALS LIMITED,05/11/2018,58.79 ,VEHICLE MAINTENANCE,V001320894
ROCHDALE BOROUGH COUNCIL,26/11/2018,NEIGHBOURHOODS AND ENVIRONMENT,C K AUTO ELECTRICIAN,26/11/2018,190.00 ,VEHICLE MAINTENANCE,V001320898
ROCHDALE BOROUGH COUNCIL,14/11/2018,NEIGHBOURHOODS AND ENVIRONMENT,FAUN ZOELLER UK LTD,14/11/2018,89.50 ,VEHICLE MAINTENANCE,V001320899
ROCHDALE BOROUGH COUNCIL,05/11/2018,NEIGHBOURHOODS AND ENVIRONMENT,ABBEY ARCHITECTURAL IRONMONGERY CO LTD,05/11/2018,20.40 ,EQUIPMENT - GENERAL,V001320900
ROCHDALE BOROUGH COUNCIL,01/11/2018,PROPERTY AND HIGHWAYS,W J LEWIS BUILDERS MERCHANTS LIMITED,01/11/2018,36.25 ,BUILDING MATERIALS,V001321154
ROCHDALE BOROUGH COUNCIL,01/11/2018,PROPERTY AND HIGHWAYS,ABBEY ARCHITECTURAL IRONMONGERY CO LTD,01/11/2018,19.29 ,BUILDING MATERIALS,V001321155
ROCHDALE BOROUGH COUNCIL,01/11/2018,PROPERTY AND HIGHWAYS,ABBEY ARCHITECTURAL IRONMONGERY CO LTD,01/11/2018,28.36 ,BUILDING MATERIALS,V001321155
ROCHDALE BOROUGH COUNCIL,01/11/2018,PROPERTY AND HIGHWAYS,ABBEY ARCHITECTURAL IRONMONGERY CO LTD,01/11/2018,35.48 ,BUILDING MATERIALS,V001321155
ROCHDALE BOROUGH COUNCIL,01/11/2018,PROPERTY AND HIGHWAYS,ABBEY ARCHITECTURAL IRONMONGERY CO LTD,01/11/2018,39.65 ,BUILDING MATERIALS,V001321155
ROCHDALE BOROUGH COUNCIL,01/11/2018,PROPERTY AND HIGHWAYS,ABBEY ARCHITECTURAL IRONMONGERY CO LTD,01/11/2018,48.77 ,BUILDING MATERIALS,V001321155
ROCHDALE BOROUGH COUNCIL,01/11/2018,PROPERTY AND HIGHWAYS,ABBEY ARCHITECTURAL IRONMONGERY CO LTD,01/11/2018,56.72 ,BUILDING MATERIALS,V001321155
ROCHDALE BOROUGH COUNCIL,01/11/2018,PROPERTY AND HIGHWAYS,ABBEY ARCHITECTURAL IRONMONGERY CO LTD,01/11/2018,58.16 ,BUILDING MATERIALS,V001321155
ROCHDALE BOROUGH COUNCIL,01/11/2018,PROPERTY AND HIGHWAYS,ABBEY ARCHITECTURAL IRONMONGERY CO LTD,01/11/2018,134.40 ,BUILDING MATERIALS,V001321155
ROCHDALE BOROUGH COUNCIL,01/11/2018,PROPERTY AND HIGHWAYS,ABBEY ARCHITECTURAL IRONMONGERY CO LTD,01/11/2018,167.31 ,BUILDING MATERIALS,V001321155
ROCHDALE BOROUGH COUNCIL,01/11/2018,PROPERTY AND HIGHWAYS,ABBEY ARCHITECTURAL IRONMONGERY CO LTD,01/11/2018,210.00 ,BUILDING MATERIALS,V001321155
ROCHDALE BOROUGH COUNCIL,01/11/2018,PROPERTY AND HIGHWAYS,ABBEY ARCHITECTURAL IRONMONGERY CO LTD,01/11/2018,390.00 ,BUILDING MATERIALS,V001321155
ROCHDALE BOROUGH COUNCIL,01/11/2018,PROPERTY AND HIGHWAYS,W J LEWIS BUILDERS MERCHANTS LIMITED,01/11/2018,17.76 ,BUILDING MATERIALS,V001321156
ROCHDALE BOROUGH COUNCIL,01/11/2018,PROPERTY AND HIGHWAYS,TEACRATE RENTALS LTD,01/11/2018,38.40 ,MINOR BUILDING WORKS,V001321157
ROCHDALE BOROUGH COUNCIL,05/11/2018,ECONOMY DIRECTORATE,LANCASHIRE LOCK AND SAFE COMPANY LIMITED,05/11/2018,14.00 ,ONGOING DISBURSEMENTS,V001321158
ROCHDALE BOROUGH COUNCIL,01/11/2018,ECONOMY DIRECTORATE,F S MOULT AND SON,01/11/2018,240.00 ,REPAIRS & ALTS OF BUILDINGS,V001321161
ROCHDALE BOROUGH COUNCIL,01/11/2018,ECONOMY DIRECTORATE,F S MOULT AND SON,01/11/2018,700.00 ,REPAIRS & ALTS OF BUILDINGS,V001321161
ROCHDALE BOROUGH COUNCIL,02/11/2018,PROPERTY AND HIGHWAYS,ARCO GROUP LIMITED,02/11/2018,127.56 ,MINOR BUILDING WORKS,V001321162
ROCHDALE BOROUGH COUNCIL,16/11/2018,NEIGHBOURHOODS AND ENVIRONMENT,SHORROCK TRICHEM LTD,16/11/2018,33.65 ,MAINTENANCE,V001321171
ROCHDALE BOROUGH COUNCIL,16/11/2018,NEIGHBOURHOODS AND ENVIRONMENT,SHORROCK TRICHEM LTD,16/11/2018,62.07 ,MAINTENANCE,V001321175
ROCHDALE BOROUGH COUNCIL,01/11/2018,PROPERTY AND HIGHWAYS,WHEELDON BROTHERS WASTE LIMITED,01/11/2018,25.00 ,TIPPING CHARGES,V001321202
ROCHDALE BOROUGH COUNCIL,01/11/2018,PROPERTY AND HIGHWAYS,WHEELDON BROTHERS WASTE LIMITED,01/11/2018,25.00 ,TIPPING CHARGES,V001321202
ROCHDALE BOROUGH COUNCIL,01/11/2018,PROPERTY AND HIGHWAYS,WHEELDON BROTHERS WASTE LIMITED,01/11/2018,25.00 ,TIPPING CHARGES,V001321202
ROCHDALE BOROUGH COUNCIL,01/11/2018,PROPERTY AND HIGHWAYS,WHEELDON BROTHERS WASTE LIMITED,01/11/2018,25.50 ,TIPPING CHARGES,V001321202
ROCHDALE BOROUGH COUNCIL,01/11/2018,PROPERTY AND HIGHWAYS,WHEELDON BROTHERS WASTE LIMITED,01/11/2018,30.50 ,TIPPING CHARGES,V001321202
ROCHDALE BOROUGH COUNCIL,01/11/2018,PROPERTY AND HIGHWAYS,WHEELDON BROTHERS WASTE LIMITED,01/11/2018,58.00 ,TIPPING CHARGES,V001321202
ROCHDALE BOROUGH COUNCIL,01/11/2018,PROPERTY AND HIGHWAYS,WHEELDON BROTHERS WASTE LIMITED,01/11/2018,58.00 ,TIPPING CHARGES,V001321202
ROCHDALE BOROUGH COUNCIL,01/11/2018,PROPERTY AND HIGHWAYS,WHEELDON BROTHERS WASTE LIMITED,01/11/2018,64.96 ,TIPPING CHARGES,V001321202
ROCHDALE BOROUGH COUNCIL,01/11/2018,PROPERTY AND HIGHWAYS,WHEELDON BROTHERS WASTE LIMITED,01/11/2018,76.56 ,TIPPING CHARGES,V001321202
ROCHDALE BOROUGH COUNCIL,01/11/2018,PROPERTY AND HIGHWAYS,WHEELDON BROTHERS WASTE LIMITED,01/11/2018,162.40 ,TIPPING CHARGES,V001321202
ROCHDALE BOROUGH COUNCIL,06/11/2018,EARLY HELP AND SCHOOLS,ARGOS BUSINESS SOLUTIONS LIMITED,06/11/2018,13.77 ,EQUIPMENT - GENERAL,V001321203
ROCHDALE BOROUGH COUNCIL,06/11/2018,EARLY HELP AND SCHOOLS,ARGOS BUSINESS SOLUTIONS LIMITED,06/11/2018,37.99 ,EQUIPMENT - GENERAL,V001321203
ROCHDALE BOROUGH COUNCIL,02/11/2018,EARLY HELP AND SCHOOLS,RALPH LIVESEY,02/11/2018,3.88 ,CHILDRENS SUBSISTENCE,V001321212
ROCHDALE BOROUGH COUNCIL,19/11/2018,NEIGHBOURHOODS AND ENVIRONMENT,AMTOLL LIMITED,19/11/2018,-73.76 ,CONSUMABLES,V001321327
ROCHDALE BOROUGH COUNCIL,01/11/2018,NEIGHBOURHOODS AND ENVIRONMENT,THE LOCAL JOURNAL LTD,01/11/2018,300.00 ,EXPENSES - GENERAL,V001321334
ROCHDALE BOROUGH COUNCIL,06/11/2018,ECONOMY DIRECTORATE,J C MILLS & SON LIMITED,06/11/2018,157.42 ,CENTRAL HEATING,V001321348
ROCHDALE BOROUGH COUNCIL,06/11/2018,NEIGHBOURHOODS AND ENVIRONMENT,COMMERCIAL FILTERS LIMITED,06/11/2018,30.36 ,VEHICLE MAINTENANCE,V001321352
ROCHDALE BOROUGH COUNCIL,02/11/2018,NEIGHBOURHOODS AND ENVIRONMENT,COMMERCIAL FILTERS LIMITED,02/11/2018,18.28 ,VEHICLE MAINTENANCE,V001321360
ROCHDALE BOROUGH COUNCIL,15/11/2018,EARLY HELP AND SCHOOLS,YORKSHIRE PURCHASING ORGANISATION,15/11/2018,2.92 ,EQUIPMENT - GENERAL,V001321361
ROCHDALE BOROUGH COUNCIL,15/11/2018,EARLY HELP AND SCHOOLS,YORKSHIRE PURCHASING ORGANISATION,15/11/2018,2.99 ,EQUIPMENT - GENERAL,V001321361
ROCHDALE BOROUGH COUNCIL,15/11/2018,EARLY HELP AND SCHOOLS,YORKSHIRE PURCHASING ORGANISATION,15/11/2018,3.50 ,EQUIPMENT - GENERAL,V001321361
ROCHDALE BOROUGH COUNCIL,15/11/2018,EARLY HELP AND SCHOOLS,YORKSHIRE PURCHASING ORGANISATION,15/11/2018,9.99 ,EQUIPMENT - GENERAL,V001321361
ROCHDALE BOROUGH COUNCIL,15/11/2018,EARLY HELP AND SCHOOLS,YORKSHIRE PURCHASING ORGANISATION,15/11/2018,22.95 ,EQUIPMENT - GENERAL,V001321361
ROCHDALE BOROUGH COUNCIL,15/11/2018,EARLY HELP AND SCHOOLS,YORKSHIRE PURCHASING ORGANISATION,15/11/2018,25.90 ,EQUIPMENT - GENERAL,V001321361
ROCHDALE BOROUGH COUNCIL,15/11/2018,EARLY HELP AND SCHOOLS,YORKSHIRE PURCHASING ORGANISATION,15/11/2018,29.90 ,EQUIPMENT - GENERAL,V001321361
ROCHDALE BOROUGH COUNCIL,15/11/2018,EARLY HELP AND SCHOOLS,YORKSHIRE PURCHASING ORGANISATION,15/11/2018,35.90 ,EQUIPMENT - GENERAL,V001321361
ROCHDALE BOROUGH COUNCIL,15/11/2018,EARLY HELP AND SCHOOLS,YORKSHIRE PURCHASING ORGANISATION,15/11/2018,36.45 ,EQUIPMENT - GENERAL,V001321361
ROCHDALE BOROUGH COUNCIL,15/11/2018,EARLY HELP AND SCHOOLS,YORKSHIRE PURCHASING ORGANISATION,15/11/2018,38.70 ,EQUIPMENT - GENERAL,V001321361
ROCHDALE BOROUGH COUNCIL,15/11/2018,EARLY HELP AND SCHOOLS,YORKSHIRE PURCHASING ORGANISATION,15/11/2018,50.37 ,PRINTING & STATIONERY,V001321361
ROCHDALE BOROUGH COUNCIL,15/11/2018,EARLY HELP AND SCHOOLS,YORKSHIRE PURCHASING ORGANISATION,15/11/2018,70.50 ,EQUIPMENT - GENERAL,V001321361
ROCHDALE BOROUGH COUNCIL,15/11/2018,EARLY HELP AND SCHOOLS,YORKSHIRE PURCHASING ORGANISATION,15/11/2018,75.15 ,EQUIPMENT - GENERAL,V001321361
ROCHDALE BOROUGH COUNCIL,02/11/2018,PROPERTY AND HIGHWAYS,CORONA ENERGY RETAIL 4 LIMITED,02/11/2018,5020.30 ,GAS,V001323080
ROCHDALE BOROUGH COUNCIL,06/11/2018,ECONOMY DIRECTORATE,F BRIERLEY & SON LIMITED,06/11/2018,750.00 ,REPAIRS & ALTS OF BUILDINGS,V001323081
ROCHDALE BOROUGH COUNCIL,05/11/2018,PROPERTY AND HIGHWAYS,F BRIERLEY & SON LIMITED,05/11/2018,4070.00 ,PROPERTY - WORKS ELEMENT,V001323082
ROCHDALE BOROUGH COUNCIL,06/11/2018,ECONOMY DIRECTORATE,F BRIERLEY & SON LIMITED,06/11/2018,210.00 ,REPAIRS & ALTS OF BUILDINGS,V001323083
ROCHDALE BOROUGH COUNCIL,06/11/2018,ECONOMY DIRECTORATE,EVOLUTION AUTOMATIC DOORS LTD,06/11/2018,423.00 ,ELECTRICAL,V001323084
ROCHDALE BOROUGH COUNCIL,06/11/2018,PROPERTY AND HIGHWAYS,PRIME ROOFING ROCHDALE LIMITED,06/11/2018,125.00 ,PROPERTY - WORKS ELEMENT,V001323085
ROCHDALE BOROUGH COUNCIL,05/11/2018,PROPERTY AND HIGHWAYS,H ROTHWELL AND CO LTD,05/11/2018,10.55 ,BUILDING MATERIALS,V001323086
ROCHDALE BOROUGH COUNCIL,05/11/2018,NEIGHBOURHOODS AND ENVIRONMENT,WINTON FLOORING LIMITED,05/11/2018,201.50 ,REPAIRS & ALTS OF BUILDINGS,V001323087
ROCHDALE BOROUGH COUNCIL,21/11/2018,PROPERTY AND HIGHWAYS,TOMAX BUILDING SERVICES LTD,21/11/2018,9138.00 ,MINOR BUILDING WORKS,V001323088
ROCHDALE BOROUGH COUNCIL,01/11/2018,ECONOMY DIRECTORATE,GREENWOODS BAKERY,01/11/2018,39.00 ,EQUIPMENT - GENERAL,V001323091
ROCHDALE BOROUGH COUNCIL,05/11/2018,PROPERTY AND HIGHWAYS,HOWDENS JOINERY CO LIMITED,05/11/2018,23.65 ,BUILDING MATERIALS,V001323093
ROCHDALE BOROUGH COUNCIL,01/11/2018,NEIGHBOURHOODS AND ENVIRONMENT,J COONEY LTD,01/11/2018,1500.00 ,EQUIPMENT - GENERAL,V001323095
ROCHDALE BOROUGH COUNCIL,02/11/2018,PROPERTY AND HIGHWAYS,MARTIN MCCOLL LTD,02/11/2018,4.30 ,BOOKS/NEWSPAPERS/PERIODICALS,V001323096
ROCHDALE BOROUGH COUNCIL,01/11/2018,PROPERTY AND HIGHWAYS,ARCO GROUP LIMITED,01/11/2018,125.76 ,"CLOTHES, UNIFORM AND LAUNDRY",V001323102
ROCHDALE BOROUGH COUNCIL,01/11/2018,PROPERTY AND HIGHWAYS,ARCO GROUP LIMITED,01/11/2018,134.46 ,"CLOTHES, UNIFORM AND LAUNDRY",V001323103
ROCHDALE BOROUGH COUNCIL,06/11/2018,PROPERTY AND HIGHWAYS,S T HEATINGS SERVICES LTD,06/11/2018,70.00 ,PROPERTY - WORKS ELEMENT,V001323105
ROCHDALE BOROUGH COUNCIL,06/11/2018,ECONOMY DIRECTORATE,S T HEATINGS SERVICES LTD,06/11/2018,70.00 ,ELECTRICAL,V001323106
ROCHDALE BOROUGH COUNCIL,01/11/2018,ECONOMY DIRECTORATE,EAST LANCASHIRE SERVICES LIMITED,01/11/2018,954.24 ,SUPPLIES AND SERVICES PROVISION,V001323107
ROCHDALE BOROUGH COUNCIL,01/11/2018,PROPERTY AND HIGHWAYS,YOTTA LIMITED,01/11/2018,3000.00 ,MINOR BUILDING WORKS,V001323108
ROCHDALE BOROUGH COUNCIL,02/11/2018,EARLY HELP AND SCHOOLS,GL EDUCATION GROUP LTD,02/11/2018,10816.23 ,COSTS MET BY SCHOOL,V001323123
ROCHDALE BOROUGH COUNCIL,16/11/2018,NEIGHBOURHOODS AND ENVIRONMENT,F NEEDHAM,16/11/2018,60.00 ,MAINTENANCE,V001323124
ROCHDALE BOROUGH COUNCIL,16/11/2018,NEIGHBOURHOODS AND ENVIRONMENT,F NEEDHAM,16/11/2018,239.54 ,MAINTENANCE,V001323125
ROCHDALE BOROUGH COUNCIL,16/11/2018,NEIGHBOURHOODS AND ENVIRONMENT,F NEEDHAM,16/11/2018,334.84 ,MAINTENANCE,V001323126
ROCHDALE BOROUGH COUNCIL,19/11/2018,NEIGHBOURHOODS AND ENVIRONMENT,F NEEDHAM,19/11/2018,69.04 ,MAINTENANCE,V001323127
ROCHDALE BOROUGH COUNCIL,19/11/2018,NEIGHBOURHOODS AND ENVIRONMENT,F NEEDHAM,19/11/2018,60.00 ,MAINTENANCE,V001323128
ROCHDALE BOROUGH COUNCIL,19/11/2018,NEIGHBOURHOODS AND ENVIRONMENT,F NEEDHAM,19/11/2018,148.12 ,MAINTENANCE,V001323129
ROCHDALE BOROUGH COUNCIL,19/11/2018,NEIGHBOURHOODS AND ENVIRONMENT,F NEEDHAM,19/11/2018,60.00 ,MAINTENANCE,V001323130
ROCHDALE BOROUGH COUNCIL,19/11/2018,NEIGHBOURHOODS AND ENVIRONMENT,F NEEDHAM,19/11/2018,49.68 ,MAINTENANCE,V001323131
ROCHDALE BOROUGH COUNCIL,19/11/2018,NEIGHBOURHOODS AND ENVIRONMENT,F NEEDHAM,19/11/2018,68.90 ,MAINTENANCE,V001323132
ROCHDALE BOROUGH COUNCIL,19/11/2018,NEIGHBOURHOODS AND ENVIRONMENT,F NEEDHAM,19/11/2018,63.00 ,MAINTENANCE,V001323133
ROCHDALE BOROUGH COUNCIL,30/11/2018,NEIGHBOURHOODS AND ENVIRONMENT,F NEEDHAM,30/11/2018,61.50 ,MAINTENANCE,V001323134
ROCHDALE BOROUGH COUNCIL,28/11/2018,NEIGHBOURHOODS AND ENVIRONMENT,DAISY COMMUNICATIONS LTD,28/11/2018,45.38 ,IT MAINTENANCE,V001323135
ROCHDALE BOROUGH COUNCIL,28/11/2018,NEIGHBOURHOODS AND ENVIRONMENT,DAISY COMMUNICATIONS LTD,28/11/2018,2498.23 ,IT MAINTENANCE,V001323135
ROCHDALE BOROUGH COUNCIL,08/11/2018,PROPERTY AND HIGHWAYS,E ON SUSTAINABLE ENERGY,08/11/2018,869.85 ,REPAIRS & ALTS OF BUILDINGS,V001323138
ROCHDALE BOROUGH COUNCIL,06/11/2018,EARLY HELP AND SCHOOLS,BANNER GROUP LIMITED,06/11/2018,-49.42 ,PRINTING & STATIONERY,V001323145
ROCHDALE BOROUGH COUNCIL,09/11/2018,NEIGHBOURHOODS AND ENVIRONMENT,MANCHESTER CABINS LIMITED,09/11/2018,110.40 ,EQUIPMENT - GENERAL,V001323189
ROCHDALE BOROUGH COUNCIL,19/11/2018,NEIGHBOURHOODS AND ENVIRONMENT,HI-WAY UNITS LIMITED,19/11/2018,-21.75 ,VEHICLE MAINTENANCE,V001323190
ROCHDALE BOROUGH COUNCIL,19/11/2018,NEIGHBOURHOODS AND ENVIRONMENT,HI-WAY UNITS LIMITED,19/11/2018,-87.00 ,VEHICLE MAINTENANCE,V001323191
ROCHDALE BOROUGH COUNCIL,13/11/2018,NEIGHBOURHOODS AND ENVIRONMENT,COMMERCIAL FILTERS LIMITED,13/11/2018,63.18 ,VEHICLE MAINTENANCE,V001323213
ROCHDALE BOROUGH COUNCIL,07/11/2018,NEIGHBOURHOODS AND ENVIRONMENT,COMMERCIAL FILTERS LIMITED,07/11/2018,149.52 ,VEHICLE MAINTENANCE,V001323215
ROCHDALE BOROUGH COUNCIL,05/11/2018,RESOURCES,THE BIG WORD,05/11/2018,84.06 ,PRINTING & STATIONERY,V001323224
ROCHDALE BOROUGH COUNCIL,01/11/2018,ECONOMY DIRECTORATE,REACH PUBLISHING SERVICES LTD,01/11/2018,126.18 ,LEGAL SERVICES INTERNAL,V001323261
ROCHDALE BOROUGH COUNCIL,06/11/2018,ADULT CARE LCO FUNCTIONS,THE BIG WORD,06/11/2018,28.50 ,TRAFFIC CONTROL,V001323281
ROCHDALE BOROUGH COUNCIL,06/11/2018,ADULT CARE LCO FUNCTIONS,THE BIG WORD,06/11/2018,28.50 ,TRANSLATION & INTERPRETATION,V001323281
ROCHDALE BOROUGH COUNCIL,06/11/2018,EARLY HELP AND SCHOOLS,THE BIG WORD,06/11/2018,44.50 ,TRANSLATION & INTERPRETATION,V001323281
ROCHDALE BOROUGH COUNCIL,06/11/2018,EARLY HELP AND SCHOOLS,THE BIG WORD,06/11/2018,46.50 ,TRANSLATION & INTERPRETATION,V001323281
ROCHDALE BOROUGH COUNCIL,06/11/2018,EARLY HELP AND SCHOOLS,THE BIG WORD,06/11/2018,58.00 ,TRANSLATION & INTERPRETATION,V001323281
ROCHDALE BOROUGH COUNCIL,06/11/2018,EARLY HELP AND SCHOOLS,THE BIG WORD,06/11/2018,58.50 ,TRANSLATION & INTERPRETATION,V001323281
ROCHDALE BOROUGH COUNCIL,06/11/2018,EARLY HELP AND SCHOOLS,THE BIG WORD,06/11/2018,64.50 ,TRANSLATION & INTERPRETATION,V001323281
ROCHDALE BOROUGH COUNCIL,06/11/2018,ADULT CARE LCO FUNCTIONS,THE BIG WORD,06/11/2018,66.50 ,TRANSLATION & INTERPRETATION,V001323281
ROCHDALE BOROUGH COUNCIL,06/11/2018,EARLY HELP AND SCHOOLS,THE BIG WORD,06/11/2018,66.50 ,TRANSLATION & INTERPRETATION,V001323281
ROCHDALE BOROUGH COUNCIL,06/11/2018,ADULT CARE LCO FUNCTIONS,THE BIG WORD,06/11/2018,66.50 ,TRANSLATION & INTERPRETATION,V001323281
ROCHDALE BOROUGH COUNCIL,06/11/2018,EARLY HELP AND SCHOOLS,THE BIG WORD,06/11/2018,66.50 ,TRANSLATION & INTERPRETATION,V001323281
ROCHDALE BOROUGH COUNCIL,06/11/2018,ADULT CARE LCO FUNCTIONS,THE BIG WORD,06/11/2018,66.50 ,TRANSLATION & INTERPRETATION,V001323281
ROCHDALE BOROUGH COUNCIL,06/11/2018,EARLY HELP AND SCHOOLS,THE BIG WORD,06/11/2018,71.25 ,TRANSLATION & INTERPRETATION,V001323281
ROCHDALE BOROUGH COUNCIL,06/11/2018,CHILDREN�S SOCIAL CARE,THE BIG WORD,06/11/2018,71.25 ,TRANSLATION & INTERPRETATION,V001323281
ROCHDALE BOROUGH COUNCIL,06/11/2018,EARLY HELP AND SCHOOLS,THE BIG WORD,06/11/2018,71.50 ,TRANSLATION & INTERPRETATION,V001323281
ROCHDALE BOROUGH COUNCIL,06/11/2018,EARLY HELP AND SCHOOLS,THE BIG WORD,06/11/2018,73.50 ,EQUIPMENT - GENERAL,V001323281
ROCHDALE BOROUGH COUNCIL,06/11/2018,EARLY HELP AND SCHOOLS,THE BIG WORD,06/11/2018,78.00 ,TRANSLATION & INTERPRETATION,V001323281
ROCHDALE BOROUGH COUNCIL,06/11/2018,ADULT CARE LCO FUNCTIONS,THE BIG WORD,06/11/2018,78.00 ,TRAFFIC CONTROL,V001323281
ROCHDALE BOROUGH COUNCIL,06/11/2018,CHILDREN�S SOCIAL CARE,THE BIG WORD,06/11/2018,78.00 ,TRANSLATION & INTERPRETATION,V001323281
ROCHDALE BOROUGH COUNCIL,06/11/2018,EARLY HELP AND SCHOOLS,THE BIG WORD,06/11/2018,78.00 ,TRANSLATION & INTERPRETATION,V001323281
ROCHDALE BOROUGH COUNCIL,06/11/2018,EARLY HELP AND SCHOOLS,THE BIG WORD,06/11/2018,80.00 ,TRANSLATION & INTERPRETATION,V001323281
ROCHDALE BOROUGH COUNCIL,06/11/2018,EARLY HELP AND SCHOOLS,THE BIG WORD,06/11/2018,80.00 ,TRANSLATION & INTERPRETATION,V001323281
ROCHDALE BOROUGH COUNCIL,06/11/2018,EARLY HELP AND SCHOOLS,THE BIG WORD,06/11/2018,91.50 ,TRANSLATION & INTERPRETATION,V001323281
ROCHDALE BOROUGH COUNCIL,06/11/2018,NEIGHBOURHOODS AND ENVIRONMENT,THE BIG WORD,06/11/2018,91.50 ,TRANSLATION & INTERPRETATION,V001323281
ROCHDALE BOROUGH COUNCIL,06/11/2018,ADULT CARE LCO FUNCTIONS,THE BIG WORD,06/11/2018,91.50 ,TRANSLATION & INTERPRETATION,V001323281
ROCHDALE BOROUGH COUNCIL,06/11/2018,EARLY HELP AND SCHOOLS,THE BIG WORD,06/11/2018,91.50 ,TRANSLATION & INTERPRETATION,V001323281
ROCHDALE BOROUGH COUNCIL,06/11/2018,EARLY HELP AND SCHOOLS,THE BIG WORD,06/11/2018,93.50 ,TRANSLATION & INTERPRETATION,V001323281
ROCHDALE BOROUGH COUNCIL,06/11/2018,CHILDREN�S SOCIAL CARE,THE BIG WORD,06/11/2018,100.25 ,TRANSLATION & INTERPRETATION,V001323281
ROCHDALE BOROUGH COUNCIL,06/11/2018,ADULT CARE LCO FUNCTIONS,THE BIG WORD,06/11/2018,105.00 ,TRANSLATION & INTERPRETATION,V001323281
ROCHDALE BOROUGH COUNCIL,06/11/2018,CHILDREN�S SOCIAL CARE,THE BIG WORD,06/11/2018,108.50 ,TRANSLATION & INTERPRETATION,V001323281
ROCHDALE BOROUGH COUNCIL,06/11/2018,EARLY HELP AND SCHOOLS,THE BIG WORD,06/11/2018,111.75 ,TRANSLATION & INTERPRETATION,V001323281
ROCHDALE BOROUGH COUNCIL,06/11/2018,CHILDREN�S SOCIAL CARE,THE BIG WORD,06/11/2018,142.50 ,TRAFFIC CONTROL,V001323281
ROCHDALE BOROUGH COUNCIL,06/11/2018,EARLY HELP AND SCHOOLS,THE BIG WORD,06/11/2018,156.00 ,TRANSLATION & INTERPRETATION,V001323281
ROCHDALE BOROUGH COUNCIL,06/11/2018,EARLY HELP AND SCHOOLS,THE BIG WORD,06/11/2018,158.00 ,TRANSLATION & INTERPRETATION,V001323281
ROCHDALE BOROUGH COUNCIL,06/11/2018,CHILDREN�S SOCIAL CARE,THE BIG WORD,06/11/2018,166.75 ,TRANSLATION & INTERPRETATION,V001323281
ROCHDALE BOROUGH COUNCIL,06/11/2018,CHILDREN�S SOCIAL CARE,THE BIG WORD,06/11/2018,176.50 ,TRANSLATION & INTERPRETATION,V001323281
ROCHDALE BOROUGH COUNCIL,06/11/2018,EARLY HELP AND SCHOOLS,THE BIG WORD,06/11/2018,178.25 ,TRANSLATION & INTERPRETATION,V001323281
ROCHDALE BOROUGH COUNCIL,06/11/2018,EARLY HELP AND SCHOOLS,THE BIG WORD,06/11/2018,196.50 ,TRANSLATION & INTERPRETATION,V001323281
ROCHDALE BOROUGH COUNCIL,06/11/2018,CHILDREN�S SOCIAL CARE,THE BIG WORD,06/11/2018,202.50 ,TRANSLATION & INTERPRETATION,V001323281
ROCHDALE BOROUGH COUNCIL,06/11/2018,CHILDREN�S SOCIAL CARE,THE BIG WORD,06/11/2018,205.25 ,TRANSLATION & INTERPRETATION,V001323281
ROCHDALE BOROUGH COUNCIL,06/11/2018,CHILDREN�S SOCIAL CARE,THE BIG WORD,06/11/2018,207.75 ,TRANSLATION & INTERPRETATION,V001323281
ROCHDALE BOROUGH COUNCIL,06/11/2018,CHILDREN�S SOCIAL CARE,THE BIG WORD,06/11/2018,215.75 ,TRANSLATION & INTERPRETATION,V001323281
ROCHDALE BOROUGH COUNCIL,06/11/2018,CHILDREN�S SOCIAL CARE,THE BIG WORD,06/11/2018,238.00 ,TRANSLATION & INTERPRETATION,V001323281
ROCHDALE BOROUGH COUNCIL,06/11/2018,CHILDREN�S SOCIAL CARE,THE BIG WORD,06/11/2018,268.75 ,TRANSLATION & INTERPRETATION,V001323281
ROCHDALE BOROUGH COUNCIL,06/11/2018,CHILDREN�S SOCIAL CARE,THE BIG WORD,06/11/2018,284.75 ,TRANSLATION & INTERPRETATION,V001323281
ROCHDALE BOROUGH COUNCIL,06/11/2018,EARLY HELP AND SCHOOLS,THE BIG WORD,06/11/2018,288.00 ,TRANSLATION & INTERPRETATION,V001323281
ROCHDALE BOROUGH COUNCIL,06/11/2018,CHILDREN�S SOCIAL CARE,THE BIG WORD,06/11/2018,290.00 ,TRANSLATION & INTERPRETATION,V001323281
ROCHDALE BOROUGH COUNCIL,06/11/2018,CHILDREN�S SOCIAL CARE,THE BIG WORD,06/11/2018,293.50 ,TRAFFIC CONTROL,V001323281
ROCHDALE BOROUGH COUNCIL,06/11/2018,CHILDREN�S SOCIAL CARE,THE BIG WORD,06/11/2018,314.00 ,TRANSLATION & INTERPRETATION,V001323281
ROCHDALE BOROUGH COUNCIL,06/11/2018,CHILDREN�S SOCIAL CARE,THE BIG WORD,06/11/2018,319.00 ,TRANSLATION & INTERPRETATION,V001323281
ROCHDALE BOROUGH COUNCIL,06/11/2018,CHILDREN�S SOCIAL CARE,THE BIG WORD,06/11/2018,360.75 ,TRANSLATION & INTERPRETATION,V001323281
ROCHDALE BOROUGH COUNCIL,06/11/2018,CHILDREN�S SOCIAL CARE,THE BIG WORD,06/11/2018,364.25 ,TRANSLATION & INTERPRETATION,V001323281
ROCHDALE BOROUGH COUNCIL,06/11/2018,CHILDREN�S SOCIAL CARE,THE BIG WORD,06/11/2018,387.75 ,TRAFFIC CONTROL,V001323281
ROCHDALE BOROUGH COUNCIL,06/11/2018,CHILDREN�S SOCIAL CARE,THE BIG WORD,06/11/2018,389.00 ,TRANSLATION & INTERPRETATION,V001323281
ROCHDALE BOROUGH COUNCIL,05/11/2018,ECONOMY DIRECTORATE,REACH PUBLISHING SERVICES LTD,05/11/2018,104.67 ,PUBLIC NOTICES,V001323283
ROCHDALE BOROUGH COUNCIL,29/11/2018,EARLY HELP AND SCHOOLS,CRITIQOM LIMITED,29/11/2018,325.51 ,PRINTING & STATIONERY,V001323284
ROCHDALE BOROUGH COUNCIL,05/11/2018,ECONOMY DIRECTORATE,REACH PUBLISHING SERVICES LTD,05/11/2018,133.37 ,PUBLIC NOTICES,V001323291
ROCHDALE BOROUGH COUNCIL,05/11/2018,NEIGHBOURHOODS AND ENVIRONMENT,TRAVIS PERKINS TRADING CO LTD,05/11/2018,78.88 ,EQUIPMENT - GENERAL,V001323305
ROCHDALE BOROUGH COUNCIL,12/11/2018,NEIGHBOURHOODS AND ENVIRONMENT,LANCASHIRE LOCK AND SAFE COMPANY LIMITED,12/11/2018,31.50 ,VEHICLE MAINTENANCE,V001323310
ROCHDALE BOROUGH COUNCIL,05/11/2018,NEIGHBOURHOODS AND ENVIRONMENT,SRCL LIMITED,05/11/2018,29.92 ,EQUIPMENT - GENERAL,V001323328
ROCHDALE BOROUGH COUNCIL,02/11/2018,RESOURCES,CAPITA BUSINESS SERVICES LIMITED,02/11/2018,11500.00 ,SOFTWARE,V001323344
ROCHDALE BOROUGH COUNCIL,07/11/2018,NEIGHBOURHOODS AND ENVIRONMENT,ROYAL MAIL GROUP PLC,07/11/2018,8.05 ,POSTAGE,V001323360
ROCHDALE BOROUGH COUNCIL,27/11/2018,NEIGHBOURHOODS AND ENVIRONMENT,BMS SUPERFACTORS LIMITED,27/11/2018,-3.66 ,VEHICLE MAINTENANCE,V001323380
ROCHDALE BOROUGH COUNCIL,02/11/2018,NEIGHBOURHOODS AND ENVIRONMENT,ARCO GROUP LIMITED,02/11/2018,-27.74 ,"CLOTHES, UNIFORM AND LAUNDRY",V001323383
ROCHDALE BOROUGH COUNCIL,02/11/2018,NEIGHBOURHOODS AND ENVIRONMENT,FAUN ZOELLER UK LTD,02/11/2018,12.75 ,VEHICLE MAINTENANCE,V001323386
ROCHDALE BOROUGH COUNCIL,02/11/2018,NEIGHBOURHOODS AND ENVIRONMENT,FAUN ZOELLER UK LTD,02/11/2018,87.20 ,VEHICLE MAINTENANCE,V001323386
ROCHDALE BOROUGH COUNCIL,02/11/2018,NEIGHBOURHOODS AND ENVIRONMENT,FAUN ZOELLER UK LTD,02/11/2018,118.20 ,VEHICLE MAINTENANCE,V001323386
ROCHDALE BOROUGH COUNCIL,02/11/2018,NEIGHBOURHOODS AND ENVIRONMENT,BRENTWOOD,02/11/2018,16425.00 ,GRANTS TO THE VOLUNTARY SECTOR,V001323416
ROCHDALE BOROUGH COUNCIL,01/11/2018,PROPERTY AND HIGHWAYS,GTM ELECTRICAL SERVICES LIMITED,01/11/2018,795.25 ,MINOR BUILDING WORKS,V001323420
ROCHDALE BOROUGH COUNCIL,08/11/2018,PROPERTY AND HIGHWAYS,GTM ELECTRICAL SERVICES LIMITED,08/11/2018,60.00 ,PROPERTY - WORKS ELEMENT,V001323421
ROCHDALE BOROUGH COUNCIL,19/11/2018,NEIGHBOURHOODS AND ENVIRONMENT,AUTO BATTERY SERVICE LTD,19/11/2018,-82.50 ,VEHICLE MAINTENANCE,V001323429
ROCHDALE BOROUGH COUNCIL,27/11/2018,NEIGHBOURHOODS AND ENVIRONMENT,BMS SUPERFACTORS LIMITED,27/11/2018,-35.00 ,VEHICLE MAINTENANCE,V001323430
ROCHDALE BOROUGH COUNCIL,02/11/2018,NEIGHBOURHOODS AND ENVIRONMENT,TRAVIS PERKINS TRADING CO LTD,02/11/2018,17.49 ,EQUIPMENT - GENERAL,V001323471
ROCHDALE BOROUGH COUNCIL,14/11/2018,NEIGHBOURHOODS AND ENVIRONMENT,CONNECT CARS MIDDLETON LIMITED,14/11/2018,13.00 ,TAXI HIRE,V001323507
ROCHDALE BOROUGH COUNCIL,08/11/2018,NEIGHBOURHOODS AND ENVIRONMENT,B AND  M WASTE SERVICES,08/11/2018,43.38 ,CONTRACTED SERVICES,V001323512
ROCHDALE BOROUGH COUNCIL,23/11/2018,NEIGHBOURHOODS AND ENVIRONMENT,WLG LTD,23/11/2018,-10.00 ,CATERING - GENERAL,V001323519
ROCHDALE BOROUGH COUNCIL,23/11/2018,NEIGHBOURHOODS AND ENVIRONMENT,WLG LTD,23/11/2018,-14.95 ,CATERING - GENERAL,V001323520
ROCHDALE BOROUGH COUNCIL,23/11/2018,NEIGHBOURHOODS AND ENVIRONMENT,WLG LTD,23/11/2018,-27.98 ,CATERING - GENERAL,V001323521
ROCHDALE BOROUGH COUNCIL,23/11/2018,NEIGHBOURHOODS AND ENVIRONMENT,WLG LTD,23/11/2018,-27.98 ,CATERING - GENERAL,V001323522
ROCHDALE BOROUGH COUNCIL,23/11/2018,NEIGHBOURHOODS AND ENVIRONMENT,WLG LTD,23/11/2018,-29.40 ,CATERING - GENERAL,V001323523
ROCHDALE BOROUGH COUNCIL,23/11/2018,NEIGHBOURHOODS AND ENVIRONMENT,WLG LTD,23/11/2018,-29.36 ,CATERING - GENERAL,V001323524
ROCHDALE BOROUGH COUNCIL,23/11/2018,NEIGHBOURHOODS AND ENVIRONMENT,WLG LTD,23/11/2018,-13.60 ,CATERING - GENERAL,V001323525
ROCHDALE BOROUGH COUNCIL,23/11/2018,NEIGHBOURHOODS AND ENVIRONMENT,WLG LTD,23/11/2018,-85.19 ,CATERING - GENERAL,V001323526
ROCHDALE BOROUGH COUNCIL,23/11/2018,NEIGHBOURHOODS AND ENVIRONMENT,WLG LTD,23/11/2018,-17.70 ,CATERING - GENERAL,V001323527
ROCHDALE BOROUGH COUNCIL,23/11/2018,ECONOMY DIRECTORATE,WATER PLUS,23/11/2018,-132.85 ,WATER CHARGES,V001323529
ROCHDALE BOROUGH COUNCIL,23/11/2018,ECONOMY DIRECTORATE,WATER PLUS,23/11/2018,-26.49 ,WATER CHARGES,V001323529
ROCHDALE BOROUGH COUNCIL,08/11/2018,PROPERTY AND HIGHWAYS,VINK UK LIMITED,08/11/2018,5.20 ,BUILDING MATERIALS,V001323534
ROCHDALE BOROUGH COUNCIL,02/11/2018,NEIGHBOURHOODS AND ENVIRONMENT,ROYAL MAIL GROUP PLC,02/11/2018,54.00 ,EQUIPMENT - GENERAL,V001323549
ROCHDALE BOROUGH COUNCIL,15/11/2018,NEIGHBOURHOODS AND ENVIRONMENT,VIZWEAR,15/11/2018,23.06 ,"CLOTHES, UNIFORM AND LAUNDRY",V001323707
ROCHDALE BOROUGH COUNCIL,15/11/2018,NEIGHBOURHOODS AND ENVIRONMENT,VIZWEAR,15/11/2018,145.23 ,"CLOTHES, UNIFORM AND LAUNDRY",V001323707
ROCHDALE BOROUGH COUNCIL,09/11/2018,CHILDREN�S SOCIAL CARE,CCS ADOPTION,09/11/2018,2250.00 ,ADOPTION PAYMENTS,V001323711
ROCHDALE BOROUGH COUNCIL,12/11/2018,PROPERTY AND HIGHWAYS,AECOM LIMITED,12/11/2018,6273.83 ,MINOR BUILDING WORKS,V001323813
ROCHDALE BOROUGH COUNCIL,02/11/2018,PROPERTY AND HIGHWAYS,ELECTRIC CENTER,02/11/2018,67.50 ,BUILDING MATERIALS,V001323814
ROCHDALE BOROUGH COUNCIL,02/11/2018,PROPERTY AND HIGHWAYS,FRANK BLAKELEY & SONS LIMITED,02/11/2018,41.28 ,BUILDING MATERIALS,V001323815
ROCHDALE BOROUGH COUNCIL,08/11/2018,NEIGHBOURHOODS AND ENVIRONMENT,JOHN TAYLOR BELL FOUNDRY LOUGHBOROUGH LTD,08/11/2018,175.00 ,REPAIRS & ALTS OF BUILDINGS,V001323821
ROCHDALE BOROUGH COUNCIL,06/11/2018,ECONOMY DIRECTORATE,S T HEATINGS SERVICES LTD,06/11/2018,70.00 ,REPAIRS & ALTS OF BUILDINGS,V001323822
ROCHDALE BOROUGH COUNCIL,01/11/2018,NEIGHBOURHOODS AND ENVIRONMENT,ROAD SAFETY SERVICES LIMITED,01/11/2018,550.00 ,EQUIPMENT - GENERAL,V001323826
ROCHDALE BOROUGH COUNCIL,01/11/2018,NEIGHBOURHOODS AND ENVIRONMENT,ROAD SAFETY SERVICES LIMITED,01/11/2018,850.00 ,EQUIPMENT - GENERAL,V001323827
ROCHDALE BOROUGH COUNCIL,01/11/2018,NEIGHBOURHOODS AND ENVIRONMENT,ROAD SAFETY SERVICES LIMITED,01/11/2018,550.00 ,EQUIPMENT - GENERAL,V001323828
ROCHDALE BOROUGH COUNCIL,01/11/2018,NEIGHBOURHOODS AND ENVIRONMENT,ROAD SAFETY SERVICES LIMITED,01/11/2018,850.00 ,EQUIPMENT - GENERAL,V001323829
ROCHDALE BOROUGH COUNCIL,01/11/2018,EARLY HELP AND SCHOOLS,TARGET FIRE PROTECTION LTD,01/11/2018,294.80 ,MINOR BUILDING WORKS,V001323831
ROCHDALE BOROUGH COUNCIL,02/11/2018,PROPERTY AND HIGHWAYS,W J LEWIS BUILDERS MERCHANTS LIMITED,02/11/2018,7.35 ,BUILDING MATERIALS,V001323832
ROCHDALE BOROUGH COUNCIL,02/11/2018,PROPERTY AND HIGHWAYS,W J LEWIS BUILDERS MERCHANTS LIMITED,02/11/2018,9.24 ,BUILDING MATERIALS,V001323833
ROCHDALE BOROUGH COUNCIL,02/11/2018,PROPERTY AND HIGHWAYS,W J LEWIS BUILDERS MERCHANTS LIMITED,02/11/2018,25.09 ,BUILDING MATERIALS,V001323834
ROCHDALE BOROUGH COUNCIL,02/11/2018,PROPERTY AND HIGHWAYS,W J LEWIS BUILDERS MERCHANTS LIMITED,02/11/2018,18.28 ,BUILDING MATERIALS,V001323836
ROCHDALE BOROUGH COUNCIL,02/11/2018,PROPERTY AND HIGHWAYS,W J LEWIS BUILDERS MERCHANTS LIMITED,02/11/2018,20.92 ,BUILDING MATERIALS,V001323837
ROCHDALE BOROUGH COUNCIL,09/11/2018,PROPERTY AND HIGHWAYS,W J LEWIS BUILDERS MERCHANTS LIMITED,09/11/2018,4.57 ,BUILDING MATERIALS,V001323838
ROCHDALE BOROUGH COUNCIL,05/11/2018,PROPERTY AND HIGHWAYS,W J LEWIS BUILDERS MERCHANTS LIMITED,05/11/2018,29.40 ,BUILDING MATERIALS,V001323839
ROCHDALE BOROUGH COUNCIL,15/11/2018,NEIGHBOURHOODS AND ENVIRONMENT,TFG STAGE TECHNOLOGY LTD,15/11/2018,220.00 ,EQUIPMENT - GENERAL,V001323890
ROCHDALE BOROUGH COUNCIL,07/11/2018,NEIGHBOURHOODS AND ENVIRONMENT,NISBETS PLC,07/11/2018,76.45 ,HEALTH AND SAFETY,V001323899
ROCHDALE BOROUGH COUNCIL,09/11/2018,RESOURCES,WIGAN BOROUGH COUNCIL,09/11/2018,104.17 ,TRAINING-NON QUALIFICATION,V001323906
ROCHDALE BOROUGH COUNCIL,01/11/2018,NEIGHBOURHOODS AND ENVIRONMENT,LEONARDIN PROPERTIES (CROMPTON) LIMITED,01/11/2018,2.24 ,RENTS,V001323908
ROCHDALE BOROUGH COUNCIL,01/11/2018,ECONOMY DIRECTORATE,LEONARDIN PROPERTIES (CROMPTON) LIMITED,01/11/2018,1.60 ,RENTS,V001323909
ROCHDALE BOROUGH COUNCIL,01/11/2018,NEIGHBOURHOODS AND ENVIRONMENT,ROCHDALE AND DISTRICT CITIZENS ADVICE BUREAU,01/11/2018,28333.33 ,CITIZENS ADVICE BUREAU,V001323910
ROCHDALE BOROUGH COUNCIL,01/11/2018,ECONOMY DIRECTORATE,TAPESTART LIMITED,01/11/2018,221.06 ,RENTS,V001323911
ROCHDALE BOROUGH COUNCIL,01/11/2018,NEIGHBOURHOODS AND ENVIRONMENT,TAPESTART LIMITED,01/11/2018,15.50 ,RENTS,V001323912
ROCHDALE BOROUGH COUNCIL,01/11/2018,EARLY HELP AND SCHOOLS,TAPESTART LIMITED,01/11/2018,32.73 ,RENTS,V001323913
ROCHDALE BOROUGH COUNCIL,01/11/2018,NEIGHBOURHOODS AND ENVIRONMENT,TAPESTART LIMITED,01/11/2018,14.83 ,RENTS,V001323914
ROCHDALE BOROUGH COUNCIL,01/11/2018,NEIGHBOURHOODS AND ENVIRONMENT,TAPESTART LIMITED,01/11/2018,18.20 ,RENTS,V001323915
ROCHDALE BOROUGH COUNCIL,01/11/2018,PROPERTY AND HIGHWAYS,TAPESTART LIMITED,01/11/2018,73.95 ,RENTS,V001323916
ROCHDALE BOROUGH COUNCIL,01/11/2018,PROPERTY AND HIGHWAYS,TAPESTART LIMITED,01/11/2018,20.05 ,RENTS,V001323917
ROCHDALE BOROUGH COUNCIL,01/11/2018,NEIGHBOURHOODS AND ENVIRONMENT,SAFEGARD SOLUTIONS LTD,01/11/2018,14250.00 ,SECURITY,V001323918
ROCHDALE BOROUGH COUNCIL,01/11/2018,NEIGHBOURHOODS AND ENVIRONMENT,TAPESTART LIMITED,01/11/2018,2.60 ,RENTS,V001323919
ROCHDALE BOROUGH COUNCIL,01/11/2018,NEIGHBOURHOODS AND ENVIRONMENT,TAPESTART LIMITED,01/11/2018,5.20 ,RENTS,V001323920
ROCHDALE BOROUGH COUNCIL,01/11/2018,PUBLIC HEALTH,THE PENNINE ACUTE HOSPITALS NHS TRUST,01/11/2018,10455.58 ,PH PENNINE ACUTE CONTRACT,V001323921
ROCHDALE BOROUGH COUNCIL,01/11/2018,PROPERTY AND HIGHWAYS,OLDHAM COUNCIL,01/11/2018,10.94 ,RENTS,V001323922
ROCHDALE BOROUGH COUNCIL,01/11/2018,NEIGHBOURHOODS AND ENVIRONMENT,MOLESWORTHS BRIGHT CLEGG,01/11/2018,1.00 ,RENTS,V001323923
ROCHDALE BOROUGH COUNCIL,01/11/2018,ECONOMY DIRECTORATE,MOLESWORTHS BRIGHT CLEGG,01/11/2018,150.00 ,RENTS,V001323923
ROCHDALE BOROUGH COUNCIL,01/11/2018,NEIGHBOURHOODS AND ENVIRONMENT,ESTATES & MANAGEMENT LIMITED,01/11/2018,1.75 ,RENTS,V001323926
ROCHDALE BOROUGH COUNCIL,01/11/2018,ECONOMY DIRECTORATE,REDACTED - PERSONAL DATA,01/11/2018,161.99 ,RENTS,V001323927
ROCHDALE BOROUGH COUNCIL,01/11/2018,EARLY HELP AND SCHOOLS,HESMONDHALGH & MALONEY,01/11/2018,61.16 ,RENTS,V001323928
ROCHDALE BOROUGH COUNCIL,01/11/2018,EARLY HELP AND SCHOOLS,SKYLIGHT CIRCUS ARTS,01/11/2018,1786.50 ,ACTIVITIES,V001323929
ROCHDALE BOROUGH COUNCIL,01/11/2018,EARLY HELP AND SCHOOLS,HESMONDHALGH & MALONEY,01/11/2018,4.50 ,RENTS,V001323930
ROCHDALE BOROUGH COUNCIL,01/11/2018,ECONOMY DIRECTORATE,REDACTED - PERSONAL DATA,01/11/2018,5.67 ,RENTS,V001323931
ROCHDALE BOROUGH COUNCIL,01/11/2018,NEIGHBOURHOODS AND ENVIRONMENT,MORGOED ESTATES LTD,01/11/2018,2.00 ,RENTS,V001323932
ROCHDALE BOROUGH COUNCIL,01/11/2018,NEIGHBOURHOODS AND ENVIRONMENT,MORGOED ESTATES LTD,01/11/2018,10.00 ,RENTS,V001323933
ROCHDALE BOROUGH COUNCIL,01/11/2018,NEIGHBOURHOODS AND ENVIRONMENT,ROCHDALE BOROUGHWIDE HOUSING,01/11/2018,41667.00 ,CONTRACTS,V001323934
ROCHDALE BOROUGH COUNCIL,01/11/2018,NEIGHBOURHOODS AND ENVIRONMENT,ROCHDALE FOODBANK,01/11/2018,750.00 ,SUPPLIES AND SERVICES PROVISION,V001323935
ROCHDALE BOROUGH COUNCIL,01/11/2018,EARLY HELP AND SCHOOLS,CROSSROADS CARE IN GREATER MANCHESTER,01/11/2018,3320.83 ,ACTIVITIES,V001323936
ROCHDALE BOROUGH COUNCIL,01/11/2018,EARLY HELP AND SCHOOLS,LINK4LIFE CHARITY,01/11/2018,9602.25 ,ACTIVITIES,V001323937
ROCHDALE BOROUGH COUNCIL,01/11/2018,EARLY HELP AND SCHOOLS,RAINBOW TRUST CHILDRENS CHARITY,01/11/2018,1250.00 ,ACTIVITIES,V001323938
ROCHDALE BOROUGH COUNCIL,01/11/2018,NEIGHBOURHOODS AND ENVIRONMENT,MCS PROPERTY LTD,01/11/2018,5.74 ,RENTS,V001323939
ROCHDALE BOROUGH COUNCIL,01/11/2018,EARLY HELP AND SCHOOLS,RAINBOW SCENT,01/11/2018,3083.96 ,ACTIVITIES,V001323940
ROCHDALE BOROUGH COUNCIL,01/11/2018,PUBLIC HEALTH,PENNINE CARE NHS,01/11/2018,88944.00 ,PH PENNINE CARE CONTRACT,V001323941
ROCHDALE BOROUGH COUNCIL,01/11/2018,PUBLIC HEALTH,PENNINE CARE NHS,01/11/2018,327779.00 ,PH PENNINE CARE CONTRACT,V001323942
ROCHDALE BOROUGH COUNCIL,01/11/2018,PUBLIC HEALTH,LINK4LIFE TRADING,01/11/2018,10333.00 ,LINK 4 LIFE CONTRACT,V001323943
ROCHDALE BOROUGH COUNCIL,01/11/2018,PUBLIC HEALTH,LINK4LIFE CHARITY,01/11/2018,224841.00 ,LINK 4 LIFE CONTRACT,V001323944
ROCHDALE BOROUGH COUNCIL,01/11/2018,ECONOMY DIRECTORATE,MORGOED ESTATES LTD,01/11/2018,1.63 ,RENTS,V001323945
ROCHDALE BOROUGH COUNCIL,01/11/2018,ECONOMY DIRECTORATE,MORGOED ESTATES LTD,01/11/2018,7.65 ,RENTS,V001323946
ROCHDALE BOROUGH COUNCIL,01/11/2018,NEIGHBOURHOODS AND ENVIRONMENT,REDACTED - PERSONAL DATA,01/11/2018,35.00 ,RENTS,V001323947
ROCHDALE BOROUGH COUNCIL,01/11/2018,NEIGHBOURHOODS AND ENVIRONMENT,HEYWOOD SVP FOOD BANK,01/11/2018,300.00 ,SUPPLIES AND SERVICES PROVISION,V001323948
ROCHDALE BOROUGH COUNCIL,01/11/2018,EARLY HELP AND SCHOOLS,SPORT WORKS GTR MANCHESTER LTD,01/11/2018,9004.00 ,ACTIVITIES,V001323949
ROCHDALE BOROUGH COUNCIL,01/11/2018,EARLY HELP AND SCHOOLS,CASTLETON HEALTH AND LEISURE CIC,01/11/2018,3029.25 ,ACTIVITIES,V001323950
ROCHDALE BOROUGH COUNCIL,01/11/2018,RESOURCES,PARKING EYE,01/11/2018,8.33 ,CAR ALLOWANCES,V001323951
ROCHDALE BOROUGH COUNCIL,01/11/2018,RESOURCES,PARKING EYE,01/11/2018,41.67 ,CAR PARKING COSTS,V001323951
ROCHDALE BOROUGH COUNCIL,01/11/2018,RESOURCES,PARKING EYE,01/11/2018,41.67 ,CAR PARKING COSTS,V001323952
ROCHDALE BOROUGH COUNCIL,01/11/2018,PUBLIC HEALTH,BIG LIFE CENTRES,01/11/2018,117226.91 ,PH BIG LIFE CONTRACT,V001323953
ROCHDALE BOROUGH COUNCIL,01/11/2018,PUBLIC HEALTH,VIRGIN CARE SERVICES LIMITED,01/11/2018,259878.00 ,VIRGIN CARE,V001323954
ROCHDALE BOROUGH COUNCIL,29/11/2018,NEIGHBOURHOODS AND ENVIRONMENT,THE PROTON GROUP LIMITED,29/11/2018,167.76 ,CLEANING MATERIALS,V001323990
ROCHDALE BOROUGH COUNCIL,08/11/2018,ECONOMY DIRECTORATE,ABC INDUSTRIAL DOORS LTD,08/11/2018,95.50 ,ELECTRICAL,V001324000
ROCHDALE BOROUGH COUNCIL,02/11/2018,NEIGHBOURHOODS AND ENVIRONMENT,DELMATIC LIGHTING MANAGEMENT,02/11/2018,181.92 ,REPAIRS & ALTS OF BUILDINGS,V001324003
ROCHDALE BOROUGH COUNCIL,13/11/2018,NEIGHBOURHOODS AND ENVIRONMENT,JONES AND BROOKS LTD,13/11/2018,52.00 ,MARKETING EXPENDITURE,V001324004
ROCHDALE BOROUGH COUNCIL,01/11/2018,NEIGHBOURHOODS AND ENVIRONMENT,JONES AND BROOKS LTD,01/11/2018,322.00 ,MARKETING EXPENDITURE,V001324005
ROCHDALE BOROUGH COUNCIL,15/11/2018,NEIGHBOURHOODS AND ENVIRONMENT,SHRED STATION,15/11/2018,203.00 ,CONTRACTS,V001324008
ROCHDALE BOROUGH COUNCIL,14/11/2018,NEIGHBOURHOODS AND ENVIRONMENT,ROYAL MAIL GROUP PLC,14/11/2018,1.23 ,SOFTWARE,V001324009
ROCHDALE BOROUGH COUNCIL,14/11/2018,NEIGHBOURHOODS AND ENVIRONMENT,ROYAL MAIL GROUP PLC,14/11/2018,7.80 ,SOFTWARE,V001324010
ROCHDALE BOROUGH COUNCIL,01/11/2018,ECONOMY DIRECTORATE,IRWELL STREET METALS,01/11/2018,86.74 ,REFUSE DISPOSAL,V001324017
ROCHDALE BOROUGH COUNCIL,08/11/2018,ECONOMY DIRECTORATE,ROTA ROD LIMITED,08/11/2018,70.00 ,REPAIRS & ALTS OF BUILDINGS,V001324018
ROCHDALE BOROUGH COUNCIL,08/11/2018,PROPERTY AND HIGHWAYS,F BRIERLEY & SON LIMITED,08/11/2018,950.00 ,BUILDING MATERIALS,V001324022
ROCHDALE BOROUGH COUNCIL,14/11/2018,NEIGHBOURHOODS AND ENVIRONMENT,OLDHAM COUNCIL,14/11/2018,1054.85 ,CONTRACTED SERVICES,V001324024
ROCHDALE BOROUGH COUNCIL,08/11/2018,PROPERTY AND HIGHWAYS,ROTA ROD LIMITED,08/11/2018,80.00 ,PROPERTY - WORKS ELEMENT,V001324025
ROCHDALE BOROUGH COUNCIL,14/11/2018,NEIGHBOURHOODS AND ENVIRONMENT,OLDHAM COUNCIL,14/11/2018,500.00 ,CONTRACTED SERVICES,V001324026
ROCHDALE BOROUGH COUNCIL,14/11/2018,NEIGHBOURHOODS AND ENVIRONMENT,OLDHAM COUNCIL,14/11/2018,3600.00 ,CONTRACTED SERVICES,V001324030
ROCHDALE BOROUGH COUNCIL,14/11/2018,NEIGHBOURHOODS AND ENVIRONMENT,OLDHAM COUNCIL,14/11/2018,5955.00 ,CONTRACTED SERVICES,V001324031
ROCHDALE BOROUGH COUNCIL,08/11/2018,PROPERTY AND HIGHWAYS,WINTON FLOORING LIMITED,08/11/2018,265.10 ,PROPERTY - WORKS ELEMENT,V001324047
ROCHDALE BOROUGH COUNCIL,01/11/2018,PROPERTY AND HIGHWAYS,ARCO GROUP LIMITED,01/11/2018,73.29 ,"CLOTHES, UNIFORM AND LAUNDRY",V001324050
ROCHDALE BOROUGH COUNCIL,08/11/2018,EARLY HELP AND SCHOOLS,ABC INDUSTRIAL DOORS LTD,08/11/2018,95.50 ,ELECTRICAL,V001324054
ROCHDALE BOROUGH COUNCIL,08/11/2018,ECONOMY DIRECTORATE,ABC INDUSTRIAL DOORS LTD,08/11/2018,95.50 ,ELECTRICAL,V001324056
ROCHDALE BOROUGH COUNCIL,08/11/2018,PROPERTY AND HIGHWAYS,ABC INDUSTRIAL DOORS LTD,08/11/2018,95.50 ,PROPERTY - WORKS ELEMENT,V001324061
ROCHDALE BOROUGH COUNCIL,01/11/2018,ECONOMY DIRECTORATE,IRWELL STREET METALS,01/11/2018,144.26 ,REFUSE DISPOSAL,V001324065
ROCHDALE BOROUGH COUNCIL,08/11/2018,ADULT CARE LCO FUNCTIONS,PENNINE CARE NHS,08/11/2018,9250.00 ,RENTS,V001324080
ROCHDALE BOROUGH COUNCIL,13/11/2018,NEIGHBOURHOODS AND ENVIRONMENT,ARCO GROUP LIMITED,13/11/2018,53.63 ,"CLOTHES, UNIFORM AND LAUNDRY",V001324081
ROCHDALE BOROUGH COUNCIL,19/11/2018,EARLY HELP AND SCHOOLS,FINDEL EDUCATION LIMITED,19/11/2018,14.99 ,EQUIPMENT - GENERAL,V001324085
ROCHDALE BOROUGH COUNCIL,19/11/2018,EARLY HELP AND SCHOOLS,FINDEL EDUCATION LIMITED,19/11/2018,14.99 ,EQUIPMENT - GENERAL,V001324085
ROCHDALE BOROUGH COUNCIL,19/11/2018,EARLY HELP AND SCHOOLS,FINDEL EDUCATION LIMITED,19/11/2018,16.99 ,EQUIPMENT - GENERAL,V001324085
ROCHDALE BOROUGH COUNCIL,19/11/2018,EARLY HELP AND SCHOOLS,FINDEL EDUCATION LIMITED,19/11/2018,16.99 ,EQUIPMENT - GENERAL,V001324085
ROCHDALE BOROUGH COUNCIL,19/11/2018,EARLY HELP AND SCHOOLS,FINDEL EDUCATION LIMITED,19/11/2018,19.98 ,EQUIPMENT - GENERAL,V001324085
ROCHDALE BOROUGH COUNCIL,19/11/2018,EARLY HELP AND SCHOOLS,FINDEL EDUCATION LIMITED,19/11/2018,24.99 ,EQUIPMENT - GENERAL,V001324085
ROCHDALE BOROUGH COUNCIL,19/11/2018,EARLY HELP AND SCHOOLS,FINDEL EDUCATION LIMITED,19/11/2018,31.99 ,EQUIPMENT - GENERAL,V001324085
ROCHDALE BOROUGH COUNCIL,08/11/2018,ADULT CARE LCO FUNCTIONS,THE UNIVERSITY OF SALFORD,08/11/2018,500.00 ,TRAINING,V001324086
ROCHDALE BOROUGH COUNCIL,27/11/2018,NEIGHBOURHOODS AND ENVIRONMENT,CROMWELL POLYTHENE LIMITED,27/11/2018,310.00 ,EQUIPMENT - GENERAL,V001324088
ROCHDALE BOROUGH COUNCIL,27/11/2018,NEIGHBOURHOODS AND ENVIRONMENT,CROMWELL POLYTHENE LIMITED,27/11/2018,310.00 ,EQUIPMENT - GENERAL,V001324090
ROCHDALE BOROUGH COUNCIL,19/11/2018,NEIGHBOURHOODS AND ENVIRONMENT,CROMWELL POLYTHENE LIMITED,19/11/2018,186.00 ,EQUIPMENT - GENERAL,V001324091
ROCHDALE BOROUGH COUNCIL,19/11/2018,NEIGHBOURHOODS AND ENVIRONMENT,CROMWELL POLYTHENE LIMITED,19/11/2018,186.00 ,EQUIPMENT - GENERAL,V001324091
ROCHDALE BOROUGH COUNCIL,19/11/2018,NEIGHBOURHOODS AND ENVIRONMENT,CROMWELL POLYTHENE LIMITED,19/11/2018,186.00 ,EQUIPMENT - GENERAL,V001324091
ROCHDALE BOROUGH COUNCIL,19/11/2018,NEIGHBOURHOODS AND ENVIRONMENT,CROMWELL POLYTHENE LIMITED,19/11/2018,186.00 ,EQUIPMENT - GENERAL,V001324091
ROCHDALE BOROUGH COUNCIL,19/11/2018,NEIGHBOURHOODS AND ENVIRONMENT,CROMWELL POLYTHENE LIMITED,19/11/2018,248.00 ,EQUIPMENT - GENERAL,V001324091
ROCHDALE BOROUGH COUNCIL,19/11/2018,NEIGHBOURHOODS AND ENVIRONMENT,CROMWELL POLYTHENE LIMITED,19/11/2018,248.00 ,EQUIPMENT - GENERAL,V001324091
ROCHDALE BOROUGH COUNCIL,19/11/2018,NEIGHBOURHOODS AND ENVIRONMENT,CROMWELL POLYTHENE LIMITED,19/11/2018,248.00 ,EQUIPMENT - GENERAL,V001324091
ROCHDALE BOROUGH COUNCIL,19/11/2018,NEIGHBOURHOODS AND ENVIRONMENT,CROMWELL POLYTHENE LIMITED,19/11/2018,248.00 ,EQUIPMENT - GENERAL,V001324091
ROCHDALE BOROUGH COUNCIL,16/11/2018,RESOURCES,TUSKERDIRECT LIMITED,16/11/2018,-113.65 ,TRANSACTIONS-EXPENDITURE,V001324093
ROCHDALE BOROUGH COUNCIL,16/11/2018,RESOURCES,TUSKERDIRECT LIMITED,16/11/2018,-27.21 ,TRANSACTIONS-EXPENDITURE,V001324093
ROCHDALE BOROUGH COUNCIL,02/11/2018,ADULT CARE LCO FUNCTIONS,REED SPECIALIST RECRUITMENT LTD,02/11/2018,3.60 ,AGENCY STAFF,V001324098
ROCHDALE BOROUGH COUNCIL,02/11/2018,EARLY HELP AND SCHOOLS,REED SPECIALIST RECRUITMENT LTD,02/11/2018,4.00 ,AGENCY STAFF,V001324098
ROCHDALE BOROUGH COUNCIL,02/11/2018,CHILDREN�S SOCIAL CARE,REED SPECIALIST RECRUITMENT LTD,02/11/2018,4.08 ,AGENCY STAFF,V001324098
ROCHDALE BOROUGH COUNCIL,02/11/2018,CHILDREN�S SOCIAL CARE,REED SPECIALIST RECRUITMENT LTD,02/11/2018,4.20 ,AGENCY STAFF,V001324098
ROCHDALE BOROUGH COUNCIL,02/11/2018,ADULT CARE LCO FUNCTIONS,REED SPECIALIST RECRUITMENT LTD,02/11/2018,6.40 ,AGENCY STAFF,V001324098
ROCHDALE BOROUGH COUNCIL,02/11/2018,CHILDREN�S SOCIAL CARE,REED SPECIALIST RECRUITMENT LTD,02/11/2018,6.72 ,AGENCY STAFF,V001324098
ROCHDALE BOROUGH COUNCIL,02/11/2018,ADULT CARE LCO FUNCTIONS,REED SPECIALIST RECRUITMENT LTD,02/11/2018,7.12 ,AGENCY STAFF,V001324098
ROCHDALE BOROUGH COUNCIL,02/11/2018,CHILDREN�S SOCIAL CARE,REED SPECIALIST RECRUITMENT LTD,02/11/2018,8.00 ,AGENCY STAFF,V001324098
ROCHDALE BOROUGH COUNCIL,02/11/2018,ADULT CARE LCO FUNCTIONS,REED SPECIALIST RECRUITMENT LTD,02/11/2018,10.05 ,AGENCY STAFF,V001324098
ROCHDALE BOROUGH COUNCIL,02/11/2018,CHILDREN�S SOCIAL CARE,REED SPECIALIST RECRUITMENT LTD,02/11/2018,12.40 ,AGENCY STAFF,V001324098
ROCHDALE BOROUGH COUNCIL,02/11/2018,CHILDREN�S SOCIAL CARE,REED SPECIALIST RECRUITMENT LTD,02/11/2018,21.56 ,AGENCY STAFF,V001324098
ROCHDALE BOROUGH COUNCIL,02/11/2018,EARLY HELP AND SCHOOLS,REED SPECIALIST RECRUITMENT LTD,02/11/2018,23.20 ,AGENCY STAFF,V001324098
ROCHDALE BOROUGH COUNCIL,02/11/2018,CHILDREN�S SOCIAL CARE,REED SPECIALIST RECRUITMENT LTD,02/11/2018,27.20 ,AGENCY STAFF,V001324098
ROCHDALE BOROUGH COUNCIL,02/11/2018,CHILDREN�S SOCIAL CARE,REED SPECIALIST RECRUITMENT LTD,02/11/2018,37.48 ,AGENCY STAFF,V001324098
ROCHDALE BOROUGH COUNCIL,02/11/2018,ADULT CARE LCO FUNCTIONS,REED SPECIALIST RECRUITMENT LTD,02/11/2018,40.00 ,AGENCY STAFF,V001324098
ROCHDALE BOROUGH COUNCIL,02/11/2018,ECONOMY DIRECTORATE,REED SPECIALIST RECRUITMENT LTD,02/11/2018,45.56 ,CAPITAL SALARIES,V001324098
ROCHDALE BOROUGH COUNCIL,02/11/2018,PROPERTY AND HIGHWAYS,REED SPECIALIST RECRUITMENT LTD,02/11/2018,74.86 ,AGENCY STAFF,V001324098
ROCHDALE BOROUGH COUNCIL,02/11/2018,NEIGHBOURHOODS AND ENVIRONMENT,REED SPECIALIST RECRUITMENT LTD,02/11/2018,96.66 ,AGENCY STAFF,V001324098
ROCHDALE BOROUGH COUNCIL,02/11/2018,NEIGHBOURHOODS AND ENVIRONMENT,REED SPECIALIST RECRUITMENT LTD,02/11/2018,116.70 ,AGENCY STAFF,V001324098
ROCHDALE BOROUGH COUNCIL,02/11/2018,NEIGHBOURHOODS AND ENVIRONMENT,REED SPECIALIST RECRUITMENT LTD,02/11/2018,125.72 ,AGENCY STAFF,V001324098
ROCHDALE BOROUGH COUNCIL,02/11/2018,NEIGHBOURHOODS AND ENVIRONMENT,REED SPECIALIST RECRUITMENT LTD,02/11/2018,163.67 ,AGENCY STAFF,V001324098
ROCHDALE BOROUGH COUNCIL,02/11/2018,NEIGHBOURHOODS AND ENVIRONMENT,REED SPECIALIST RECRUITMENT LTD,02/11/2018,179.26 ,AGENCY STAFF,V001324098
ROCHDALE BOROUGH COUNCIL,02/11/2018,NEIGHBOURHOODS AND ENVIRONMENT,REED SPECIALIST RECRUITMENT LTD,02/11/2018,193.32 ,AGENCY STAFF,V001324098
ROCHDALE BOROUGH COUNCIL,02/11/2018,NEIGHBOURHOODS AND ENVIRONMENT,REED SPECIALIST RECRUITMENT LTD,02/11/2018,193.32 ,AGENCY STAFF,V001324098
ROCHDALE BOROUGH COUNCIL,02/11/2018,NEIGHBOURHOODS AND ENVIRONMENT,REED SPECIALIST RECRUITMENT LTD,02/11/2018,196.79 ,AGENCY STAFF,V001324098
ROCHDALE BOROUGH COUNCIL,02/11/2018,ECONOMY DIRECTORATE,REED SPECIALIST RECRUITMENT LTD,02/11/2018,198.28 ,CAPITAL SALARIES,V001324098
ROCHDALE BOROUGH COUNCIL,02/11/2018,CHILDREN�S SOCIAL CARE,REED SPECIALIST RECRUITMENT LTD,02/11/2018,213.56 ,AGENCY STAFF,V001324098
ROCHDALE BOROUGH COUNCIL,02/11/2018,NEIGHBOURHOODS AND ENVIRONMENT,REED SPECIALIST RECRUITMENT LTD,02/11/2018,216.10 ,AGENCY STAFF,V001324098
ROCHDALE BOROUGH COUNCIL,02/11/2018,NEIGHBOURHOODS AND ENVIRONMENT,REED SPECIALIST RECRUITMENT LTD,02/11/2018,216.10 ,AGENCY STAFF,V001324098
ROCHDALE BOROUGH COUNCIL,02/11/2018,CHILDREN�S SOCIAL CARE,REED SPECIALIST RECRUITMENT LTD,02/11/2018,244.06 ,AGENCY STAFF,V001324098
ROCHDALE BOROUGH COUNCIL,02/11/2018,NEIGHBOURHOODS AND ENVIRONMENT,REED SPECIALIST RECRUITMENT LTD,02/11/2018,289.97 ,AGENCY STAFF,V001324098
ROCHDALE BOROUGH COUNCIL,02/11/2018,NEIGHBOURHOODS AND ENVIRONMENT,REED SPECIALIST RECRUITMENT LTD,02/11/2018,303.01 ,AGENCY STAFF,V001324098
ROCHDALE BOROUGH COUNCIL,02/11/2018,NEIGHBOURHOODS AND ENVIRONMENT,REED SPECIALIST RECRUITMENT LTD,02/11/2018,309.30 ,AGENCY STAFF,V001324098
ROCHDALE BOROUGH COUNCIL,02/11/2018,NEIGHBOURHOODS AND ENVIRONMENT,REED SPECIALIST RECRUITMENT LTD,02/11/2018,338.73 ,AGENCY STAFF,V001324098
ROCHDALE BOROUGH COUNCIL,02/11/2018,PROPERTY AND HIGHWAYS,REED SPECIALIST RECRUITMENT LTD,02/11/2018,355.60 ,AGENCY STAFF,V001324098
ROCHDALE BOROUGH COUNCIL,02/11/2018,NEIGHBOURHOODS AND ENVIRONMENT,REED SPECIALIST RECRUITMENT LTD,02/11/2018,356.43 ,AGENCY STAFF,V001324098
ROCHDALE BOROUGH COUNCIL,02/11/2018,CHILDREN�S SOCIAL CARE,REED SPECIALIST RECRUITMENT LTD,02/11/2018,357.40 ,AGENCY STAFF,V001324098
ROCHDALE BOROUGH COUNCIL,02/11/2018,PROPERTY AND HIGHWAYS,REED SPECIALIST RECRUITMENT LTD,02/11/2018,364.96 ,AGENCY STAFF,V001324098
ROCHDALE BOROUGH COUNCIL,02/11/2018,ECONOMY DIRECTORATE,REED SPECIALIST RECRUITMENT LTD,02/11/2018,369.74 ,AGENCY STAFF,V001324098
ROCHDALE BOROUGH COUNCIL,02/11/2018,NEIGHBOURHOODS AND ENVIRONMENT,REED SPECIALIST RECRUITMENT LTD,02/11/2018,380.92 ,AGENCY STAFF,V001324098
ROCHDALE BOROUGH COUNCIL,02/11/2018,NEIGHBOURHOODS AND ENVIRONMENT,REED SPECIALIST RECRUITMENT LTD,02/11/2018,380.92 ,AGENCY STAFF,V001324098
ROCHDALE BOROUGH COUNCIL,02/11/2018,NEIGHBOURHOODS AND ENVIRONMENT,REED SPECIALIST RECRUITMENT LTD,02/11/2018,386.61 ,AGENCY STAFF,V001324098
ROCHDALE BOROUGH COUNCIL,02/11/2018,NEIGHBOURHOODS AND ENVIRONMENT,REED SPECIALIST RECRUITMENT LTD,02/11/2018,386.61 ,AGENCY STAFF,V001324098
ROCHDALE BOROUGH COUNCIL,02/11/2018,NEIGHBOURHOODS AND ENVIRONMENT,REED SPECIALIST RECRUITMENT LTD,02/11/2018,386.61 ,AGENCY STAFF,V001324098
ROCHDALE BOROUGH COUNCIL,02/11/2018,NEIGHBOURHOODS AND ENVIRONMENT,REED SPECIALIST RECRUITMENT LTD,02/11/2018,386.61 ,AGENCY STAFF,V001324098
ROCHDALE BOROUGH COUNCIL,02/11/2018,NEIGHBOURHOODS AND ENVIRONMENT,REED SPECIALIST RECRUITMENT LTD,02/11/2018,386.61 ,AGENCY STAFF,V001324098
ROCHDALE BOROUGH COUNCIL,02/11/2018,NEIGHBOURHOODS AND ENVIRONMENT,REED SPECIALIST RECRUITMENT LTD,02/11/2018,386.61 ,AGENCY STAFF,V001324098
ROCHDALE BOROUGH COUNCIL,02/11/2018,NEIGHBOURHOODS AND ENVIRONMENT,REED SPECIALIST RECRUITMENT LTD,02/11/2018,386.61 ,AGENCY STAFF,V001324098
ROCHDALE BOROUGH COUNCIL,02/11/2018,NEIGHBOURHOODS AND ENVIRONMENT,REED SPECIALIST RECRUITMENT LTD,02/11/2018,386.61 ,AGENCY STAFF,V001324098
ROCHDALE BOROUGH COUNCIL,02/11/2018,NEIGHBOURHOODS AND ENVIRONMENT,REED SPECIALIST RECRUITMENT LTD,02/11/2018,386.61 ,AGENCY STAFF,V001324098
ROCHDALE BOROUGH COUNCIL,02/11/2018,NEIGHBOURHOODS AND ENVIRONMENT,REED SPECIALIST RECRUITMENT LTD,02/11/2018,386.61 ,AGENCY STAFF,V001324098
ROCHDALE BOROUGH COUNCIL,02/11/2018,NEIGHBOURHOODS AND ENVIRONMENT,REED SPECIALIST RECRUITMENT LTD,02/11/2018,386.61 ,AGENCY STAFF,V001324098
ROCHDALE BOROUGH COUNCIL,02/11/2018,NEIGHBOURHOODS AND ENVIRONMENT,REED SPECIALIST RECRUITMENT LTD,02/11/2018,386.61 ,AGENCY STAFF,V001324098
ROCHDALE BOROUGH COUNCIL,02/11/2018,NEIGHBOURHOODS AND ENVIRONMENT,REED SPECIALIST RECRUITMENT LTD,02/11/2018,386.61 ,AGENCY STAFF,V001324098
ROCHDALE BOROUGH COUNCIL,02/11/2018,NEIGHBOURHOODS AND ENVIRONMENT,REED SPECIALIST RECRUITMENT LTD,02/11/2018,386.61 ,AGENCY STAFF,V001324098
ROCHDALE BOROUGH COUNCIL,02/11/2018,ECONOMY DIRECTORATE,REED SPECIALIST RECRUITMENT LTD,02/11/2018,420.93 ,AGENCY STAFF,V001324098
ROCHDALE BOROUGH COUNCIL,02/11/2018,ECONOMY DIRECTORATE,REED SPECIALIST RECRUITMENT LTD,02/11/2018,426.63 ,AGENCY STAFF,V001324098
ROCHDALE BOROUGH COUNCIL,02/11/2018,ECONOMY DIRECTORATE,REED SPECIALIST RECRUITMENT LTD,02/11/2018,427.63 ,AGENCY STAFF,V001324098
ROCHDALE BOROUGH COUNCIL,02/11/2018,NEIGHBOURHOODS AND ENVIRONMENT,REED SPECIALIST RECRUITMENT LTD,02/11/2018,432.18 ,AGENCY STAFF,V001324098
ROCHDALE BOROUGH COUNCIL,02/11/2018,NEIGHBOURHOODS AND ENVIRONMENT,REED SPECIALIST RECRUITMENT LTD,02/11/2018,432.18 ,AGENCY STAFF,V001324098
ROCHDALE BOROUGH COUNCIL,02/11/2018,NEIGHBOURHOODS AND ENVIRONMENT,REED SPECIALIST RECRUITMENT LTD,02/11/2018,432.18 ,AGENCY STAFF,V001324098
ROCHDALE BOROUGH COUNCIL,02/11/2018,NEIGHBOURHOODS AND ENVIRONMENT,REED SPECIALIST RECRUITMENT LTD,02/11/2018,432.18 ,AGENCY STAFF,V001324098
ROCHDALE BOROUGH COUNCIL,02/11/2018,NEIGHBOURHOODS AND ENVIRONMENT,REED SPECIALIST RECRUITMENT LTD,02/11/2018,432.18 ,AGENCY STAFF,V001324098
ROCHDALE BOROUGH COUNCIL,02/11/2018,NEIGHBOURHOODS AND ENVIRONMENT,REED SPECIALIST RECRUITMENT LTD,02/11/2018,432.18 ,AGENCY STAFF,V001324098
ROCHDALE BOROUGH COUNCIL,02/11/2018,NEIGHBOURHOODS AND ENVIRONMENT,REED SPECIALIST RECRUITMENT LTD,02/11/2018,432.18 ,AGENCY STAFF,V001324098
ROCHDALE BOROUGH COUNCIL,02/11/2018,NEIGHBOURHOODS AND ENVIRONMENT,REED SPECIALIST RECRUITMENT LTD,02/11/2018,432.18 ,AGENCY STAFF,V001324098
ROCHDALE BOROUGH COUNCIL,02/11/2018,NEIGHBOURHOODS AND ENVIRONMENT,REED SPECIALIST RECRUITMENT LTD,02/11/2018,432.18 ,AGENCY STAFF,V001324098
ROCHDALE BOROUGH COUNCIL,02/11/2018,NEIGHBOURHOODS AND ENVIRONMENT,REED SPECIALIST RECRUITMENT LTD,02/11/2018,432.18 ,AGENCY STAFF,V001324098
ROCHDALE BOROUGH COUNCIL,02/11/2018,NEIGHBOURHOODS AND ENVIRONMENT,REED SPECIALIST RECRUITMENT LTD,02/11/2018,432.18 ,AGENCY STAFF,V001324098
ROCHDALE BOROUGH COUNCIL,02/11/2018,NEIGHBOURHOODS AND ENVIRONMENT,REED SPECIALIST RECRUITMENT LTD,02/11/2018,432.18 ,AGENCY STAFF,V001324098
ROCHDALE BOROUGH COUNCIL,02/11/2018,NEIGHBOURHOODS AND ENVIRONMENT,REED SPECIALIST RECRUITMENT LTD,02/11/2018,432.18 ,AGENCY STAFF,V001324098
ROCHDALE BOROUGH COUNCIL,02/11/2018,NEIGHBOURHOODS AND ENVIRONMENT,REED SPECIALIST RECRUITMENT LTD,02/11/2018,432.18 ,AGENCY STAFF,V001324098
ROCHDALE BOROUGH COUNCIL,02/11/2018,NEIGHBOURHOODS AND ENVIRONMENT,REED SPECIALIST RECRUITMENT LTD,02/11/2018,432.18 ,AGENCY STAFF,V001324098
ROCHDALE BOROUGH COUNCIL,02/11/2018,NEIGHBOURHOODS AND ENVIRONMENT,REED SPECIALIST RECRUITMENT LTD,02/11/2018,432.18 ,AGENCY STAFF,V001324098
ROCHDALE BOROUGH COUNCIL,02/11/2018,NEIGHBOURHOODS AND ENVIRONMENT,REED SPECIALIST RECRUITMENT LTD,02/11/2018,432.18 ,AGENCY STAFF,V001324098
ROCHDALE BOROUGH COUNCIL,02/11/2018,NEIGHBOURHOODS AND ENVIRONMENT,REED SPECIALIST RECRUITMENT LTD,02/11/2018,432.18 ,AGENCY STAFF,V001324098
ROCHDALE BOROUGH COUNCIL,02/11/2018,NEIGHBOURHOODS AND ENVIRONMENT,REED SPECIALIST RECRUITMENT LTD,02/11/2018,432.18 ,AGENCY STAFF,V001324098
ROCHDALE BOROUGH COUNCIL,02/11/2018,NEIGHBOURHOODS AND ENVIRONMENT,REED SPECIALIST RECRUITMENT LTD,02/11/2018,432.18 ,AGENCY STAFF,V001324098
ROCHDALE BOROUGH COUNCIL,02/11/2018,NEIGHBOURHOODS AND ENVIRONMENT,REED SPECIALIST RECRUITMENT LTD,02/11/2018,432.18 ,AGENCY STAFF,V001324098
ROCHDALE BOROUGH COUNCIL,02/11/2018,NEIGHBOURHOODS AND ENVIRONMENT,REED SPECIALIST RECRUITMENT LTD,02/11/2018,432.18 ,AGENCY STAFF,V001324098
ROCHDALE BOROUGH COUNCIL,02/11/2018,NEIGHBOURHOODS AND ENVIRONMENT,REED SPECIALIST RECRUITMENT LTD,02/11/2018,432.18 ,AGENCY STAFF,V001324098
ROCHDALE BOROUGH COUNCIL,02/11/2018,NEIGHBOURHOODS AND ENVIRONMENT,REED SPECIALIST RECRUITMENT LTD,02/11/2018,432.18 ,AGENCY STAFF,V001324098
ROCHDALE BOROUGH COUNCIL,02/11/2018,NEIGHBOURHOODS AND ENVIRONMENT,REED SPECIALIST RECRUITMENT LTD,02/11/2018,432.18 ,AGENCY STAFF,V001324098
ROCHDALE BOROUGH COUNCIL,02/11/2018,NEIGHBOURHOODS AND ENVIRONMENT,REED SPECIALIST RECRUITMENT LTD,02/11/2018,432.45 ,AGENCY STAFF,V001324098
ROCHDALE BOROUGH COUNCIL,02/11/2018,NEIGHBOURHOODS AND ENVIRONMENT,REED SPECIALIST RECRUITMENT LTD,02/11/2018,432.45 ,AGENCY STAFF,V001324098
ROCHDALE BOROUGH COUNCIL,02/11/2018,ADULT CARE LCO FUNCTIONS,REED SPECIALIST RECRUITMENT LTD,02/11/2018,432.55 ,AGENCY STAFF,V001324098
ROCHDALE BOROUGH COUNCIL,02/11/2018,NEIGHBOURHOODS AND ENVIRONMENT,REED SPECIALIST RECRUITMENT LTD,02/11/2018,438.00 ,AGENCY STAFF,V001324098
ROCHDALE BOROUGH COUNCIL,02/11/2018,PROPERTY AND HIGHWAYS,REED SPECIALIST RECRUITMENT LTD,02/11/2018,440.98 ,AGENCY STAFF,V001324098
ROCHDALE BOROUGH COUNCIL,02/11/2018,PROPERTY AND HIGHWAYS,REED SPECIALIST RECRUITMENT LTD,02/11/2018,452.60 ,AGENCY STAFF,V001324098
ROCHDALE BOROUGH COUNCIL,02/11/2018,NEIGHBOURHOODS AND ENVIRONMENT,REED SPECIALIST RECRUITMENT LTD,02/11/2018,454.03 ,AGENCY STAFF,V001324098
ROCHDALE BOROUGH COUNCIL,02/11/2018,NEIGHBOURHOODS AND ENVIRONMENT,REED SPECIALIST RECRUITMENT LTD,02/11/2018,464.19 ,AGENCY STAFF,V001324098
ROCHDALE BOROUGH COUNCIL,02/11/2018,NEIGHBOURHOODS AND ENVIRONMENT,REED SPECIALIST RECRUITMENT LTD,02/11/2018,464.19 ,AGENCY STAFF,V001324098
ROCHDALE BOROUGH COUNCIL,02/11/2018,NEIGHBOURHOODS AND ENVIRONMENT,REED SPECIALIST RECRUITMENT LTD,02/11/2018,471.59 ,AGENCY STAFF,V001324098
ROCHDALE BOROUGH COUNCIL,02/11/2018,ECONOMY DIRECTORATE,REED SPECIALIST RECRUITMENT LTD,02/11/2018,477.54 ,AGENCY STAFF,V001324098
ROCHDALE BOROUGH COUNCIL,02/11/2018,ADULT CARE LCO FUNCTIONS,REED SPECIALIST RECRUITMENT LTD,02/11/2018,479.48 ,CAPITAL CONTRIBUTON TO REV SALARIES 7950,V001324098
ROCHDALE BOROUGH COUNCIL,02/11/2018,NEIGHBOURHOODS AND ENVIRONMENT,REED SPECIALIST RECRUITMENT LTD,02/11/2018,486.01 ,AGENCY STAFF,V001324098
ROCHDALE BOROUGH COUNCIL,02/11/2018,NEIGHBOURHOODS AND ENVIRONMENT,REED SPECIALIST RECRUITMENT LTD,02/11/2018,486.01 ,AGENCY STAFF,V001324098
ROCHDALE BOROUGH COUNCIL,02/11/2018,NEIGHBOURHOODS AND ENVIRONMENT,REED SPECIALIST RECRUITMENT LTD,02/11/2018,486.01 ,AGENCY STAFF,V001324098
ROCHDALE BOROUGH COUNCIL,02/11/2018,NEIGHBOURHOODS AND ENVIRONMENT,REED SPECIALIST RECRUITMENT LTD,02/11/2018,486.01 ,AGENCY STAFF,V001324098
ROCHDALE BOROUGH COUNCIL,02/11/2018,ADULT CARE LCO FUNCTIONS,REED SPECIALIST RECRUITMENT LTD,02/11/2018,495.50 ,AGENCY STAFF,V001324098
ROCHDALE BOROUGH COUNCIL,02/11/2018,ADULT CARE LCO FUNCTIONS,REED SPECIALIST RECRUITMENT LTD,02/11/2018,515.11 ,AGENCY STAFF,V001324098
ROCHDALE BOROUGH COUNCIL,02/11/2018,NEIGHBOURHOODS AND ENVIRONMENT,REED SPECIALIST RECRUITMENT LTD,02/11/2018,518.61 ,AGENCY STAFF,V001324098
ROCHDALE BOROUGH COUNCIL,02/11/2018,NEIGHBOURHOODS AND ENVIRONMENT,REED SPECIALIST RECRUITMENT LTD,02/11/2018,525.63 ,AGENCY STAFF,V001324098
ROCHDALE BOROUGH COUNCIL,02/11/2018,NEIGHBOURHOODS AND ENVIRONMENT,REED SPECIALIST RECRUITMENT LTD,02/11/2018,525.63 ,AGENCY STAFF,V001324098
ROCHDALE BOROUGH COUNCIL,02/11/2018,NEIGHBOURHOODS AND ENVIRONMENT,REED SPECIALIST RECRUITMENT LTD,02/11/2018,529.23 ,AGENCY STAFF,V001324098
ROCHDALE BOROUGH COUNCIL,02/11/2018,NEIGHBOURHOODS AND ENVIRONMENT,REED SPECIALIST RECRUITMENT LTD,02/11/2018,529.23 ,AGENCY STAFF,V001324098
ROCHDALE BOROUGH COUNCIL,02/11/2018,NEIGHBOURHOODS AND ENVIRONMENT,REED SPECIALIST RECRUITMENT LTD,02/11/2018,551.68 ,AGENCY STAFF,V001324098
ROCHDALE BOROUGH COUNCIL,02/11/2018,NEIGHBOURHOODS AND ENVIRONMENT,REED SPECIALIST RECRUITMENT LTD,02/11/2018,564.09 ,AGENCY STAFF,V001324098
ROCHDALE BOROUGH COUNCIL,02/11/2018,NEIGHBOURHOODS AND ENVIRONMENT,REED SPECIALIST RECRUITMENT LTD,02/11/2018,564.09 ,AGENCY STAFF,V001324098
ROCHDALE BOROUGH COUNCIL,02/11/2018,NEIGHBOURHOODS AND ENVIRONMENT,REED SPECIALIST RECRUITMENT LTD,02/11/2018,564.09 ,AGENCY STAFF,V001324098
ROCHDALE BOROUGH COUNCIL,02/11/2018,NEIGHBOURHOODS AND ENVIRONMENT,REED SPECIALIST RECRUITMENT LTD,02/11/2018,564.09 ,AGENCY STAFF,V001324098
ROCHDALE BOROUGH COUNCIL,02/11/2018,NEIGHBOURHOODS AND ENVIRONMENT,REED SPECIALIST RECRUITMENT LTD,02/11/2018,564.09 ,AGENCY STAFF,V001324098
ROCHDALE BOROUGH COUNCIL,02/11/2018,ADULT CARE LCO FUNCTIONS,REED SPECIALIST RECRUITMENT LTD,02/11/2018,578.09 ,AGENCY STAFF,V001324098
ROCHDALE BOROUGH COUNCIL,02/11/2018,NEIGHBOURHOODS AND ENVIRONMENT,REED SPECIALIST RECRUITMENT LTD,02/11/2018,601.37 ,AGENCY STAFF,V001324098
ROCHDALE BOROUGH COUNCIL,02/11/2018,NEIGHBOURHOODS AND ENVIRONMENT,REED SPECIALIST RECRUITMENT LTD,02/11/2018,601.37 ,AGENCY STAFF,V001324098
ROCHDALE BOROUGH COUNCIL,02/11/2018,NEIGHBOURHOODS AND ENVIRONMENT,REED SPECIALIST RECRUITMENT LTD,02/11/2018,601.37 ,AGENCY STAFF,V001324098
ROCHDALE BOROUGH COUNCIL,02/11/2018,EARLY HELP AND SCHOOLS,REED SPECIALIST RECRUITMENT LTD,02/11/2018,605.62 ,AGENCY STAFF,V001324098
ROCHDALE BOROUGH COUNCIL,02/11/2018,CHILDREN�S SOCIAL CARE,REED SPECIALIST RECRUITMENT LTD,02/11/2018,605.62 ,AGENCY STAFF,V001324098
ROCHDALE BOROUGH COUNCIL,02/11/2018,CHILDREN�S SOCIAL CARE,REED SPECIALIST RECRUITMENT LTD,02/11/2018,606.17 ,AGENCY STAFF,V001324098
ROCHDALE BOROUGH COUNCIL,02/11/2018,ADULT CARE LCO FUNCTIONS,REED SPECIALIST RECRUITMENT LTD,02/11/2018,619.38 ,AGENCY STAFF,V001324098
ROCHDALE BOROUGH COUNCIL,02/11/2018,CHILDREN�S SOCIAL CARE,REED SPECIALIST RECRUITMENT LTD,02/11/2018,619.38 ,AGENCY STAFF,V001324098
ROCHDALE BOROUGH COUNCIL,02/11/2018,CHILDREN�S SOCIAL CARE,REED SPECIALIST RECRUITMENT LTD,02/11/2018,619.38 ,AGENCY STAFF,V001324098
ROCHDALE BOROUGH COUNCIL,02/11/2018,NEIGHBOURHOODS AND ENVIRONMENT,REED SPECIALIST RECRUITMENT LTD,02/11/2018,632.28 ,AGENCY STAFF,V001324098
ROCHDALE BOROUGH COUNCIL,02/11/2018,NEIGHBOURHOODS AND ENVIRONMENT,REED SPECIALIST RECRUITMENT LTD,02/11/2018,682.85 ,AGENCY STAFF,V001324098
ROCHDALE BOROUGH COUNCIL,02/11/2018,CHILDREN�S SOCIAL CARE,REED SPECIALIST RECRUITMENT LTD,02/11/2018,701.64 ,AGENCY STAFF,V001324098
ROCHDALE BOROUGH COUNCIL,02/11/2018,CHILDREN�S SOCIAL CARE,REED SPECIALIST RECRUITMENT LTD,02/11/2018,781.20 ,AGENCY STAFF,V001324098
ROCHDALE BOROUGH COUNCIL,02/11/2018,CHILDREN�S SOCIAL CARE,REED SPECIALIST RECRUITMENT LTD,02/11/2018,791.73 ,AGENCY STAFF,V001324098
ROCHDALE BOROUGH COUNCIL,02/11/2018,CHILDREN�S SOCIAL CARE,REED SPECIALIST RECRUITMENT LTD,02/11/2018,801.03 ,AGENCY STAFF,V001324098
ROCHDALE BOROUGH COUNCIL,02/11/2018,ADULT CARE LCO FUNCTIONS,REED SPECIALIST RECRUITMENT LTD,02/11/2018,825.84 ,AGENCY STAFF,V001324098
ROCHDALE BOROUGH COUNCIL,02/11/2018,PROPERTY AND HIGHWAYS,REED SPECIALIST RECRUITMENT LTD,02/11/2018,840.47 ,AGENCY STAFF,V001324098
ROCHDALE BOROUGH COUNCIL,02/11/2018,CHILDREN�S SOCIAL CARE,REED SPECIALIST RECRUITMENT LTD,02/11/2018,857.67 ,AGENCY STAFF,V001324098
ROCHDALE BOROUGH COUNCIL,02/11/2018,CHILDREN�S SOCIAL CARE,REED SPECIALIST RECRUITMENT LTD,02/11/2018,897.92 ,AGENCY STAFF,V001324098
ROCHDALE BOROUGH COUNCIL,02/11/2018,PROPERTY AND HIGHWAYS,REED SPECIALIST RECRUITMENT LTD,02/11/2018,919.45 ,AGENCY STAFF,V001324098
ROCHDALE BOROUGH COUNCIL,02/11/2018,PROPERTY AND HIGHWAYS,REED SPECIALIST RECRUITMENT LTD,02/11/2018,940.54 ,AGENCY STAFF,V001324098
ROCHDALE BOROUGH COUNCIL,02/11/2018,CHILDREN�S SOCIAL CARE,REED SPECIALIST RECRUITMENT LTD,02/11/2018,958.74 ,AGENCY STAFF,V001324098
ROCHDALE BOROUGH COUNCIL,02/11/2018,CHILDREN�S SOCIAL CARE,REED SPECIALIST RECRUITMENT LTD,02/11/2018,1018.54 ,AGENCY STAFF,V001324098
ROCHDALE BOROUGH COUNCIL,02/11/2018,ADULT CARE LCO FUNCTIONS,REED SPECIALIST RECRUITMENT LTD,02/11/2018,1018.54 ,AGENCY STAFF,V001324098
ROCHDALE BOROUGH COUNCIL,02/11/2018,ADULT CARE LCO FUNCTIONS,REED SPECIALIST RECRUITMENT LTD,02/11/2018,1018.54 ,AGENCY STAFF,V001324098
ROCHDALE BOROUGH COUNCIL,02/11/2018,EARLY HELP AND SCHOOLS,REED SPECIALIST RECRUITMENT LTD,02/11/2018,1018.54 ,AGENCY STAFF,V001324098
ROCHDALE BOROUGH COUNCIL,02/11/2018,CHILDREN�S SOCIAL CARE,REED SPECIALIST RECRUITMENT LTD,02/11/2018,1018.54 ,AGENCY STAFF,V001324098
ROCHDALE BOROUGH COUNCIL,02/11/2018,ADULT CARE LCO FUNCTIONS,REED SPECIALIST RECRUITMENT LTD,02/11/2018,1018.54 ,AGENCY STAFF,V001324098
ROCHDALE BOROUGH COUNCIL,02/11/2018,EARLY HELP AND SCHOOLS,REED SPECIALIST RECRUITMENT LTD,02/11/2018,1018.54 ,AGENCY STAFF,V001324098
ROCHDALE BOROUGH COUNCIL,02/11/2018,CHILDREN�S SOCIAL CARE,REED SPECIALIST RECRUITMENT LTD,02/11/2018,1018.54 ,AGENCY STAFF,V001324098
ROCHDALE BOROUGH COUNCIL,02/11/2018,CHILDREN�S SOCIAL CARE,REED SPECIALIST RECRUITMENT LTD,02/11/2018,1018.54 ,AGENCY STAFF,V001324098
ROCHDALE BOROUGH COUNCIL,02/11/2018,CHILDREN�S SOCIAL CARE,REED SPECIALIST RECRUITMENT LTD,02/11/2018,1018.54 ,AGENCY STAFF,V001324098
ROCHDALE BOROUGH COUNCIL,02/11/2018,CHILDREN�S SOCIAL CARE,REED SPECIALIST RECRUITMENT LTD,02/11/2018,1018.54 ,AGENCY STAFF,V001324098
ROCHDALE BOROUGH COUNCIL,02/11/2018,CHILDREN�S SOCIAL CARE,REED SPECIALIST RECRUITMENT LTD,02/11/2018,1018.54 ,AGENCY STAFF,V001324098
ROCHDALE BOROUGH COUNCIL,02/11/2018,CHILDREN�S SOCIAL CARE,REED SPECIALIST RECRUITMENT LTD,02/11/2018,1018.54 ,AGENCY STAFF,V001324098
ROCHDALE BOROUGH COUNCIL,02/11/2018,CHILDREN�S SOCIAL CARE,REED SPECIALIST RECRUITMENT LTD,02/11/2018,1018.54 ,AGENCY STAFF,V001324098
ROCHDALE BOROUGH COUNCIL,02/11/2018,CHILDREN�S SOCIAL CARE,REED SPECIALIST RECRUITMENT LTD,02/11/2018,1018.54 ,AGENCY STAFF,V001324098
ROCHDALE BOROUGH COUNCIL,02/11/2018,ADULT CARE LCO FUNCTIONS,REED SPECIALIST RECRUITMENT LTD,02/11/2018,1021.91 ,AGENCY STAFF,V001324098
ROCHDALE BOROUGH COUNCIL,02/11/2018,CHILDREN�S SOCIAL CARE,REED SPECIALIST RECRUITMENT LTD,02/11/2018,1038.84 ,AGENCY STAFF,V001324098
ROCHDALE BOROUGH COUNCIL,02/11/2018,CHILDREN�S SOCIAL CARE,REED SPECIALIST RECRUITMENT LTD,02/11/2018,1128.80 ,AGENCY STAFF,V001324098
ROCHDALE BOROUGH COUNCIL,02/11/2018,NEIGHBOURHOODS AND ENVIRONMENT,REED SPECIALIST RECRUITMENT LTD,02/11/2018,1176.50 ,AGENCY STAFF,V001324098
ROCHDALE BOROUGH COUNCIL,02/11/2018,CHILDREN�S SOCIAL CARE,REED SPECIALIST RECRUITMENT LTD,02/11/2018,1202.80 ,AGENCY STAFF,V001324098
ROCHDALE BOROUGH COUNCIL,02/11/2018,CHILDREN�S SOCIAL CARE,REED SPECIALIST RECRUITMENT LTD,02/11/2018,1276.80 ,AGENCY STAFF,V001324098
ROCHDALE BOROUGH COUNCIL,02/11/2018,RESOURCES,REED SPECIALIST RECRUITMENT LTD,02/11/2018,1434.69 ,AGENCY STAFF,V001324098
ROCHDALE BOROUGH COUNCIL,02/11/2018,CHILDREN�S SOCIAL CARE,REED SPECIALIST RECRUITMENT LTD,02/11/2018,2035.75 ,AGENCY STAFF,V001324098
ROCHDALE BOROUGH COUNCIL,05/11/2018,RESOURCES,CRITIQOM LIMITED,05/11/2018,28.04 ,PRINTING,V001324099
ROCHDALE BOROUGH COUNCIL,09/11/2018,NEIGHBOURHOODS AND ENVIRONMENT,CICELEY COMMERCIALS LIMITED,09/11/2018,10.49 ,VEHICLE MAINTENANCE,V001324126
ROCHDALE BOROUGH COUNCIL,09/11/2018,NEIGHBOURHOODS AND ENVIRONMENT,CICELEY COMMERCIALS LIMITED,09/11/2018,29.40 ,VEHICLE MAINTENANCE,V001324126
ROCHDALE BOROUGH COUNCIL,09/11/2018,NEIGHBOURHOODS AND ENVIRONMENT,CICELEY COMMERCIALS LIMITED,09/11/2018,33.20 ,VEHICLE MAINTENANCE,V001324126
ROCHDALE BOROUGH COUNCIL,09/11/2018,NEIGHBOURHOODS AND ENVIRONMENT,CICELEY COMMERCIALS LIMITED,09/11/2018,33.50 ,VEHICLE MAINTENANCE,V001324126
ROCHDALE BOROUGH COUNCIL,09/11/2018,NEIGHBOURHOODS AND ENVIRONMENT,CICELEY COMMERCIALS LIMITED,09/11/2018,44.03 ,VEHICLE MAINTENANCE,V001324126
ROCHDALE BOROUGH COUNCIL,09/11/2018,NEIGHBOURHOODS AND ENVIRONMENT,CICELEY COMMERCIALS LIMITED,09/11/2018,97.29 ,VEHICLE MAINTENANCE,V001324126
ROCHDALE BOROUGH COUNCIL,09/11/2018,NEIGHBOURHOODS AND ENVIRONMENT,CICELEY COMMERCIALS LIMITED,09/11/2018,110.86 ,VEHICLE MAINTENANCE,V001324126
ROCHDALE BOROUGH COUNCIL,09/11/2018,PUBLIC HEALTH,LINK4LIFE CHARITY,09/11/2018,1933.90 ,EXPENSES - GENERAL,V001324127
ROCHDALE BOROUGH COUNCIL,12/11/2018,PROPERTY AND HIGHWAYS,ABBEY ARCHITECTURAL IRONMONGERY CO LTD,12/11/2018,3.89 ,BUILDING MATERIALS,V001324433
ROCHDALE BOROUGH COUNCIL,12/11/2018,PROPERTY AND HIGHWAYS,ABBEY ARCHITECTURAL IRONMONGERY CO LTD,12/11/2018,5.31 ,BUILDING MATERIALS,V001324433
ROCHDALE BOROUGH COUNCIL,12/11/2018,PROPERTY AND HIGHWAYS,ABBEY ARCHITECTURAL IRONMONGERY CO LTD,12/11/2018,6.87 ,BUILDING MATERIALS,V001324433
ROCHDALE BOROUGH COUNCIL,12/11/2018,PROPERTY AND HIGHWAYS,ABBEY ARCHITECTURAL IRONMONGERY CO LTD,12/11/2018,13.34 ,BUILDING MATERIALS,V001324433
ROCHDALE BOROUGH COUNCIL,12/11/2018,PROPERTY AND HIGHWAYS,ABBEY ARCHITECTURAL IRONMONGERY CO LTD,12/11/2018,15.00 ,BUILDING MATERIALS,V001324433
ROCHDALE BOROUGH COUNCIL,12/11/2018,PROPERTY AND HIGHWAYS,ABBEY ARCHITECTURAL IRONMONGERY CO LTD,12/11/2018,17.38 ,BUILDING MATERIALS,V001324433
ROCHDALE BOROUGH COUNCIL,12/11/2018,PROPERTY AND HIGHWAYS,ABBEY ARCHITECTURAL IRONMONGERY CO LTD,12/11/2018,28.25 ,BUILDING MATERIALS,V001324433
ROCHDALE BOROUGH COUNCIL,12/11/2018,PROPERTY AND HIGHWAYS,ABBEY ARCHITECTURAL IRONMONGERY CO LTD,12/11/2018,43.21 ,BUILDING MATERIALS,V001324433
ROCHDALE BOROUGH COUNCIL,12/11/2018,PROPERTY AND HIGHWAYS,ABBEY ARCHITECTURAL IRONMONGERY CO LTD,12/11/2018,53.50 ,BUILDING MATERIALS,V001324433
ROCHDALE BOROUGH COUNCIL,12/11/2018,PROPERTY AND HIGHWAYS,ABBEY ARCHITECTURAL IRONMONGERY CO LTD,12/11/2018,74.54 ,BUILDING MATERIALS,V001324433
ROCHDALE BOROUGH COUNCIL,08/11/2018,PROPERTY AND HIGHWAYS,ROCHDALE GLASS AND GLAZING CO LTD,08/11/2018,104.00 ,BUILDING MATERIALS,V001324435
ROCHDALE BOROUGH COUNCIL,01/11/2018,PROPERTY AND HIGHWAYS,NORTHWEST ASBESTOS REMOVALS LTD,01/11/2018,210.00 ,EQUIPMENT - GENERAL,V001324436
ROCHDALE BOROUGH COUNCIL,02/11/2018,NEIGHBOURHOODS AND ENVIRONMENT,NORTHWEST ASBESTOS REMOVALS LTD,02/11/2018,490.00 ,EQUIPMENT - GENERAL,V001324437
ROCHDALE BOROUGH COUNCIL,02/11/2018,NEIGHBOURHOODS AND ENVIRONMENT,BT GLOBAL SERVICES,02/11/2018,19.76 ,COMMUNICATION AND COMPUTING - GENERAL,V001324482
ROCHDALE BOROUGH COUNCIL,12/11/2018,NEIGHBOURHOODS AND ENVIRONMENT,RPS CONSULTING SERVICES LTD,12/11/2018,15.00 ,CONDITION SURVEYS,V001324485
ROCHDALE BOROUGH COUNCIL,12/11/2018,ADULT CARE LCO FUNCTIONS,RPS CONSULTING SERVICES LTD,12/11/2018,45.00 ,MINOR BUILDING WORKS,V001324485
ROCHDALE BOROUGH COUNCIL,12/11/2018,EARLY HELP AND SCHOOLS,RPS CONSULTING SERVICES LTD,12/11/2018,60.00 ,ARCHITECTS FEES,V001324485
ROCHDALE BOROUGH COUNCIL,08/11/2018,ECONOMY DIRECTORATE,ROTA ROD LIMITED,08/11/2018,70.00 ,REPAIRS & ALTS OF BUILDINGS,V001324490
ROCHDALE BOROUGH COUNCIL,09/11/2018,ECONOMY DIRECTORATE,FISHERS CLEANING SERVICES LIMITED,09/11/2018,64.93 ,SUPPLIES AND SERVICES PROVISION,V001324495
ROCHDALE BOROUGH COUNCIL,08/11/2018,ECONOMY DIRECTORATE,ROTA ROD LIMITED,08/11/2018,120.00 ,REPAIRS & ALTS OF BUILDINGS,V001324496
ROCHDALE BOROUGH COUNCIL,19/11/2018,NEIGHBOURHOODS AND ENVIRONMENT,UNIVERSAL LAUNDRY SERVICES,19/11/2018,661.62 ,CATERING - GENERAL,V001324497
ROCHDALE BOROUGH COUNCIL,09/11/2018,ADULT CARE LCO FUNCTIONS,ELDERCARE UK LTD,09/11/2018,8067.94 ,SERVICE LEVEL AGREEMENTS,V001324499
ROCHDALE BOROUGH COUNCIL,19/11/2018,NEIGHBOURHOODS AND ENVIRONMENT,YORKSHIRE PURCHASING ORGANISATION,19/11/2018,2.84 ,EQUIPMENT - GENERAL,V001324500
ROCHDALE BOROUGH COUNCIL,19/11/2018,NEIGHBOURHOODS AND ENVIRONMENT,YORKSHIRE PURCHASING ORGANISATION,19/11/2018,18.71 ,EQUIPMENT - GENERAL,V001324500
ROCHDALE BOROUGH COUNCIL,02/11/2018,NEIGHBOURHOODS AND ENVIRONMENT,CICELEY COMMERCIALS LIMITED,02/11/2018,4.79 ,VEHICLE MAINTENANCE,V001324502
ROCHDALE BOROUGH COUNCIL,02/11/2018,NEIGHBOURHOODS AND ENVIRONMENT,CICELEY COMMERCIALS LIMITED,02/11/2018,19.14 ,VEHICLE MAINTENANCE,V001324502
ROCHDALE BOROUGH COUNCIL,02/11/2018,NEIGHBOURHOODS AND ENVIRONMENT,CICELEY COMMERCIALS LIMITED,02/11/2018,60.03 ,VEHICLE MAINTENANCE,V001324502
ROCHDALE BOROUGH COUNCIL,09/11/2018,ADULT CARE LCO FUNCTIONS,BROTHERS OF CHARITY SERVICES,09/11/2018,448.80 ,HOME CARE - ADULT SERVICES,V001324693
ROCHDALE BOROUGH COUNCIL,09/11/2018,ADULT CARE LCO FUNCTIONS,BROTHERS OF CHARITY SERVICES,09/11/2018,149.60 ,HOME CARE - ADULT SERVICES,V001324694
ROCHDALE BOROUGH COUNCIL,09/11/2018,NEIGHBOURHOODS AND ENVIRONMENT,VIZWEAR,09/11/2018,23.02 ,"CLOTHES, UNIFORM AND LAUNDRY",V001324759
ROCHDALE BOROUGH COUNCIL,08/11/2018,NEIGHBOURHOODS AND ENVIRONMENT,CROMWELL TOOLS MANCHESTER,08/11/2018,372.12 ,EQUIPMENT - GENERAL,V001324832
ROCHDALE BOROUGH COUNCIL,02/11/2018,NEIGHBOURHOODS AND ENVIRONMENT,H ROTHWELL AND CO LTD,02/11/2018,33.00 ,"CLOTHES, UNIFORM AND LAUNDRY",V001325226
ROCHDALE BOROUGH COUNCIL,02/11/2018,NEIGHBOURHOODS AND ENVIRONMENT,H ROTHWELL AND CO LTD,02/11/2018,33.00 ,"CLOTHES, UNIFORM AND LAUNDRY",V001325226
ROCHDALE BOROUGH COUNCIL,02/11/2018,ADULT CARE LCO FUNCTIONS,TORDAN HEALTHCARE,02/11/2018,468.80 ,HOME CARE - ADULT SERVICES,V001325470
ROCHDALE BOROUGH COUNCIL,08/11/2018,ECONOMY DIRECTORATE,NPOWER BUSINESS,08/11/2018,95.63 ,GAS,V001325575
ROCHDALE BOROUGH COUNCIL,08/11/2018,ECONOMY DIRECTORATE,S T HEATINGS SERVICES LTD,08/11/2018,623.70 ,CENTRAL HEATING,V001325583
ROCHDALE BOROUGH COUNCIL,08/11/2018,ECONOMY DIRECTORATE,S T HEATINGS SERVICES LTD,08/11/2018,137.95 ,CENTRAL HEATING,V001325584
ROCHDALE BOROUGH COUNCIL,01/11/2018,PROPERTY AND HIGHWAYS,MARTIN MCCOLL LTD,01/11/2018,4.30 ,BOOKS/NEWSPAPERS/PERIODICALS,V001325585
ROCHDALE BOROUGH COUNCIL,13/11/2018,ADULT CARE LCO FUNCTIONS,UPS BUILDING AND MAINTENANCE LTD,13/11/2018,1829.90 ,MINOR BUILDING WORKS,V001325937
ROCHDALE BOROUGH COUNCIL,13/11/2018,ADULT CARE LCO FUNCTIONS,UPS BUILDING AND MAINTENANCE LTD,13/11/2018,2744.86 ,MINOR BUILDING WORKS,V001325937
ROCHDALE BOROUGH COUNCIL,28/11/2018,CHILDREN�S SOCIAL CARE,CRESTA WORLD TRAVEL LIMITED,28/11/2018,12.70 ,PUBLIC TRANSPORT,V001325951
ROCHDALE BOROUGH COUNCIL,02/11/2018,EARLY HELP AND SCHOOLS,BAKER ROSS LTD,02/11/2018,4.99 ,ARTS & CRAFTS,V001325954
ROCHDALE BOROUGH COUNCIL,02/11/2018,EARLY HELP AND SCHOOLS,BAKER ROSS LTD,02/11/2018,7.91 ,ARTS & CRAFTS,V001325954
ROCHDALE BOROUGH COUNCIL,06/11/2018,EARLY HELP AND SCHOOLS,BANNER GROUP LIMITED,06/11/2018,103.02 ,PRINTING & STATIONERY,V001325959
ROCHDALE BOROUGH COUNCIL,09/11/2018,ECONOMY DIRECTORATE,LINK4LIFE CHARITY,09/11/2018,1570.00 ,REPAIRS & ALTS OF BUILDINGS,V001325963
ROCHDALE BOROUGH COUNCIL,06/11/2018,EARLY HELP AND SCHOOLS,F BRIERLEY & SON LIMITED,06/11/2018,400.00 ,REPAIRS & ALTS OF BUILDINGS,V001325964
ROCHDALE BOROUGH COUNCIL,22/11/2018,EARLY HELP AND SCHOOLS,YORKSHIRE PURCHASING ORGANISATION,22/11/2018,6.15 ,EQUIPMENT - GENERAL,V001325965
ROCHDALE BOROUGH COUNCIL,22/11/2018,EARLY HELP AND SCHOOLS,YORKSHIRE PURCHASING ORGANISATION,22/11/2018,55.10 ,EQUIPMENT - GENERAL,V001325965
ROCHDALE BOROUGH COUNCIL,29/11/2018,NEIGHBOURHOODS AND ENVIRONMENT,THE PROTON GROUP LIMITED,29/11/2018,203.37 ,CLEANING MATERIALS,V001325966
ROCHDALE BOROUGH COUNCIL,07/11/2018,NEIGHBOURHOODS AND ENVIRONMENT,NISBETS PLC,07/11/2018,348.86 ,HEALTH AND SAFETY,V001325967
ROCHDALE BOROUGH COUNCIL,01/11/2018,PROPERTY AND HIGHWAYS,REACH PUBLISHING SERVICES LTD,01/11/2018,91.98 ,ADVERTISING,V001325973
ROCHDALE BOROUGH COUNCIL,01/11/2018,PROPERTY AND HIGHWAYS,REACH PUBLISHING SERVICES LTD,01/11/2018,119.57 ,ADVERTISING,V001325974
ROCHDALE BOROUGH COUNCIL,01/11/2018,PROPERTY AND HIGHWAYS,REACH PUBLISHING SERVICES LTD,01/11/2018,76.78 ,ADVERTISING,V001325975
ROCHDALE BOROUGH COUNCIL,01/11/2018,PROPERTY AND HIGHWAYS,REACH PUBLISHING SERVICES LTD,01/11/2018,101.18 ,ADVERTISING,V001325976
ROCHDALE BOROUGH COUNCIL,06/11/2018,PROPERTY AND HIGHWAYS,REACH PUBLISHING SERVICES LTD,06/11/2018,91.98 ,ADVERTISING,V001325977
ROCHDALE BOROUGH COUNCIL,08/11/2018,ECONOMY DIRECTORATE,S T HEATINGS SERVICES LTD,08/11/2018,2640.04 ,ONGOING DISBURSEMENTS,V001325978
ROCHDALE BOROUGH COUNCIL,05/11/2018,PROPERTY AND HIGHWAYS,HOWARTH TIMBER AND BUILDING SUPPLIES LTD,05/11/2018,22.16 ,BUILDING MATERIALS,V001325979
ROCHDALE BOROUGH COUNCIL,05/11/2018,PROPERTY AND HIGHWAYS,HOWARTH TIMBER AND BUILDING SUPPLIES LTD,05/11/2018,19.98 ,BUILDING MATERIALS,V001325980
ROCHDALE BOROUGH COUNCIL,02/11/2018,PROPERTY AND HIGHWAYS,HOWDENS JOINERY CO LIMITED,02/11/2018,107.36 ,BUILDING MATERIALS,V001325981
ROCHDALE BOROUGH COUNCIL,07/11/2018,ADULT CARE LCO FUNCTIONS,ROYAL MAIL GROUP PLC,07/11/2018,152.49 ,POSTAGE,V001325986
ROCHDALE BOROUGH COUNCIL,01/11/2018,EARLY HELP AND SCHOOLS,MONARCH EDUCATION LTD,01/11/2018,575.00 ,OTHER LA`S - SEN PROVISION,V001326003
ROCHDALE BOROUGH COUNCIL,01/11/2018,EARLY HELP AND SCHOOLS,MONARCH EDUCATION LTD,01/11/2018,575.00 ,OTHER LA`S - SEN PROVISION,V001326004
ROCHDALE BOROUGH COUNCIL,08/11/2018,PROPERTY AND HIGHWAYS,F BRIERLEY & SON LIMITED,08/11/2018,2420.00 ,BUILDING MATERIALS,V001326036
ROCHDALE BOROUGH COUNCIL,06/11/2018,NEIGHBOURHOODS AND ENVIRONMENT,F BRIERLEY & SON LIMITED,06/11/2018,130.00 ,REPAIRS & ALTS OF BUILDINGS,V001326037
ROCHDALE BOROUGH COUNCIL,08/11/2018,ECONOMY DIRECTORATE,F S MOULT AND SON,08/11/2018,20.00 ,REPAIRS & ALTS OF BUILDINGS,V001326038
ROCHDALE BOROUGH COUNCIL,08/11/2018,ECONOMY DIRECTORATE,F S MOULT AND SON,08/11/2018,200.00 ,REPAIRS & ALTS OF BUILDINGS,V001326038
ROCHDALE BOROUGH COUNCIL,08/11/2018,EARLY HELP AND SCHOOLS,F S MOULT AND SON,08/11/2018,17.70 ,REPAIRS & ALTS OF BUILDINGS,V001326039
ROCHDALE BOROUGH COUNCIL,08/11/2018,EARLY HELP AND SCHOOLS,F S MOULT AND SON,08/11/2018,75.00 ,REPAIRS & ALTS OF BUILDINGS,V001326039
ROCHDALE BOROUGH COUNCIL,08/11/2018,PROPERTY AND HIGHWAYS,F S MOULT AND SON,08/11/2018,21.00 ,REPAIRS & ALTS OF BUILDINGS,V001326040
ROCHDALE BOROUGH COUNCIL,08/11/2018,PROPERTY AND HIGHWAYS,F S MOULT AND SON,08/11/2018,100.00 ,REPAIRS & ALTS OF BUILDINGS,V001326040
ROCHDALE BOROUGH COUNCIL,05/11/2018,PROPERTY AND HIGHWAYS,HOWARTH TIMBER AND BUILDING SUPPLIES LTD,05/11/2018,21.39 ,BUILDING MATERIALS,V001326045
ROCHDALE BOROUGH COUNCIL,05/11/2018,PROPERTY AND HIGHWAYS,HOWARTH TIMBER AND BUILDING SUPPLIES LTD,05/11/2018,73.94 ,BUILDING MATERIALS,V001326046
ROCHDALE BOROUGH COUNCIL,19/11/2018,NEIGHBOURHOODS AND ENVIRONMENT,AMTOLL LIMITED,19/11/2018,2.20 ,CLEANING EQUIPMENT,V001326048
ROCHDALE BOROUGH COUNCIL,19/11/2018,NEIGHBOURHOODS AND ENVIRONMENT,AMTOLL LIMITED,19/11/2018,2.38 ,CLEANING EQUIPMENT,V001326048
ROCHDALE BOROUGH COUNCIL,19/11/2018,NEIGHBOURHOODS AND ENVIRONMENT,AMTOLL LIMITED,19/11/2018,3.34 ,CLEANING MATERIALS,V001326048
ROCHDALE BOROUGH COUNCIL,19/11/2018,NEIGHBOURHOODS AND ENVIRONMENT,AMTOLL LIMITED,19/11/2018,3.64 ,CLEANING MATERIALS,V001326048
ROCHDALE BOROUGH COUNCIL,19/11/2018,NEIGHBOURHOODS AND ENVIRONMENT,AMTOLL LIMITED,19/11/2018,6.04 ,CLEANING MATERIALS,V001326048
ROCHDALE BOROUGH COUNCIL,19/11/2018,NEIGHBOURHOODS AND ENVIRONMENT,AMTOLL LIMITED,19/11/2018,7.05 ,CLEANING EQUIPMENT,V001326048
ROCHDALE BOROUGH COUNCIL,19/11/2018,NEIGHBOURHOODS AND ENVIRONMENT,AMTOLL LIMITED,19/11/2018,7.32 ,CONSUMABLES,V001326048
ROCHDALE BOROUGH COUNCIL,19/11/2018,NEIGHBOURHOODS AND ENVIRONMENT,AMTOLL LIMITED,19/11/2018,7.40 ,CLEANING MATERIALS,V001326048
ROCHDALE BOROUGH COUNCIL,19/11/2018,NEIGHBOURHOODS AND ENVIRONMENT,AMTOLL LIMITED,19/11/2018,7.64 ,CLEANING MATERIALS,V001326048
ROCHDALE BOROUGH COUNCIL,19/11/2018,NEIGHBOURHOODS AND ENVIRONMENT,AMTOLL LIMITED,19/11/2018,8.62 ,CLEANING MATERIALS,V001326048
ROCHDALE BOROUGH COUNCIL,19/11/2018,NEIGHBOURHOODS AND ENVIRONMENT,AMTOLL LIMITED,19/11/2018,9.36 ,CLEANING MATERIALS,V001326048
ROCHDALE BOROUGH COUNCIL,19/11/2018,NEIGHBOURHOODS AND ENVIRONMENT,AMTOLL LIMITED,19/11/2018,9.38 ,CLEANING MATERIALS,V001326048
ROCHDALE BOROUGH COUNCIL,19/11/2018,NEIGHBOURHOODS AND ENVIRONMENT,AMTOLL LIMITED,19/11/2018,15.24 ,CLEANING MATERIALS,V001326048
ROCHDALE BOROUGH COUNCIL,12/11/2018,NEIGHBOURHOODS AND ENVIRONMENT,AMTOLL LIMITED,12/11/2018,1.23 ,CONSUMABLES,V001326049
ROCHDALE BOROUGH COUNCIL,12/11/2018,NEIGHBOURHOODS AND ENVIRONMENT,AMTOLL LIMITED,12/11/2018,2.51 ,CLEANING MATERIALS,V001326049
ROCHDALE BOROUGH COUNCIL,12/11/2018,NEIGHBOURHOODS AND ENVIRONMENT,AMTOLL LIMITED,12/11/2018,3.70 ,CLEANING MATERIALS,V001326049
ROCHDALE BOROUGH COUNCIL,12/11/2018,NEIGHBOURHOODS AND ENVIRONMENT,AMTOLL LIMITED,12/11/2018,4.69 ,CLEANING MATERIALS,V001326049
ROCHDALE BOROUGH COUNCIL,12/11/2018,NEIGHBOURHOODS AND ENVIRONMENT,AMTOLL LIMITED,12/11/2018,7.50 ,CLEANING MATERIALS,V001326049
ROCHDALE BOROUGH COUNCIL,12/11/2018,NEIGHBOURHOODS AND ENVIRONMENT,AMTOLL LIMITED,12/11/2018,7.62 ,CLEANING MATERIALS,V001326049
ROCHDALE BOROUGH COUNCIL,12/11/2018,NEIGHBOURHOODS AND ENVIRONMENT,AMTOLL LIMITED,12/11/2018,225.00 ,CONSUMABLES,V001326051
ROCHDALE BOROUGH COUNCIL,15/11/2018,NEIGHBOURHOODS AND ENVIRONMENT,TFG STAGE TECHNOLOGY LTD,15/11/2018,220.00 ,EQUIPMENT - GENERAL,V001326053
ROCHDALE BOROUGH COUNCIL,19/11/2018,NEIGHBOURHOODS AND ENVIRONMENT,A J CARTER ORGAN BUILDER LTD,19/11/2018,300.00 ,REPAIRS & ALTS OF BUILDINGS,V001326055
ROCHDALE BOROUGH COUNCIL,15/11/2018,ECONOMY DIRECTORATE,MEADOWFIELD COMMUNITY CENTRE,15/11/2018,150.00 ,ROOM HIRE,V001326064
ROCHDALE BOROUGH COUNCIL,09/11/2018,ADULT CARE LCO FUNCTIONS,THE PENNINE ACUTE HOSPITALS NHS TRUST,09/11/2018,1666.66 ,SERVICE LEVEL AGREEMENTS,V001326065
ROCHDALE BOROUGH COUNCIL,09/11/2018,ADULT CARE LCO FUNCTIONS,THE PENNINE ACUTE HOSPITALS NHS TRUST,09/11/2018,2500.00 ,SERVICE LEVEL AGREEMENTS,V001326066
ROCHDALE BOROUGH COUNCIL,08/11/2018,NEIGHBOURHOODS AND ENVIRONMENT,THE PENNINE ACUTE HOSPITALS NHS TRUST,08/11/2018,15102.00 ,MORTUARY CHARGES,V001326100
ROCHDALE BOROUGH COUNCIL,05/11/2018,RESOURCES,ROSSENDALES,05/11/2018,0.00 ,INPUT VAT -  ADJUSTMENTS,V001326103
ROCHDALE BOROUGH COUNCIL,02/11/2018,CHILDREN�S SOCIAL CARE,CRESTA WORLD TRAVEL LIMITED,02/11/2018,10.90 ,PUBLIC TRANSPORT,V001326116
ROCHDALE BOROUGH COUNCIL,08/11/2018,ECONOMY DIRECTORATE,TRANSPORT FOR GREATER MANCHESTER,08/11/2018,20498.04 ,ARCHITECTS FEES,V001326117
ROCHDALE BOROUGH COUNCIL,08/11/2018,ECONOMY DIRECTORATE,TALKTALK BUSINESS,08/11/2018,414.60 ,EQUIPMENT - GENERAL,V001326135
ROCHDALE BOROUGH COUNCIL,02/11/2018,PROPERTY AND HIGHWAYS,ELECTRIC CENTER,02/11/2018,117.56 ,BUILDING MATERIALS,V001326143
ROCHDALE BOROUGH COUNCIL,02/11/2018,PROPERTY AND HIGHWAYS,ELECTRIC CENTER,02/11/2018,62.70 ,BUILDING MATERIALS,V001326144
ROCHDALE BOROUGH COUNCIL,05/11/2018,PROPERTY AND HIGHWAYS,HOWARTH TIMBER AND BUILDING SUPPLIES LTD,05/11/2018,6.18 ,BUILDING MATERIALS,V001326145
ROCHDALE BOROUGH COUNCIL,02/11/2018,ECONOMY DIRECTORATE,PEEL GRAPHICS LIMITED,02/11/2018,60.00 ,SUPPLIES AND SERVICES PROVISION,V001326146
ROCHDALE BOROUGH COUNCIL,05/11/2018,PROPERTY AND HIGHWAYS,W J LEWIS BUILDERS MERCHANTS LIMITED,05/11/2018,22.95 ,BUILDING MATERIALS,V001326147
ROCHDALE BOROUGH COUNCIL,05/11/2018,PROPERTY AND HIGHWAYS,W J LEWIS BUILDERS MERCHANTS LIMITED,05/11/2018,22.03 ,BUILDING MATERIALS,V001326148
ROCHDALE BOROUGH COUNCIL,05/11/2018,PROPERTY AND HIGHWAYS,W J LEWIS BUILDERS MERCHANTS LIMITED,05/11/2018,6.56 ,BUILDING MATERIALS,V001326149
ROCHDALE BOROUGH COUNCIL,05/11/2018,PROPERTY AND HIGHWAYS,W J LEWIS BUILDERS MERCHANTS LIMITED,05/11/2018,58.37 ,BUILDING MATERIALS,V001326150
ROCHDALE BOROUGH COUNCIL,05/11/2018,PROPERTY AND HIGHWAYS,W J LEWIS BUILDERS MERCHANTS LIMITED,05/11/2018,100.45 ,BUILDING MATERIALS,V001326151
ROCHDALE BOROUGH COUNCIL,01/11/2018,PROPERTY AND HIGHWAYS,BANNER GROUP LIMITED,01/11/2018,6.61 ,PRINTING & STATIONERY,V001326153
ROCHDALE BOROUGH COUNCIL,01/11/2018,EARLY HELP AND SCHOOLS,BANNER GROUP LIMITED,01/11/2018,17.78 ,PRINTING & STATIONERY,V001326154
ROCHDALE BOROUGH COUNCIL,01/11/2018,PROPERTY AND HIGHWAYS,BANNER GROUP LIMITED,01/11/2018,4.60 ,PRINTING & STATIONERY,V001326155
ROCHDALE BOROUGH COUNCIL,01/11/2018,ECONOMY DIRECTORATE,BANNER GROUP LIMITED,01/11/2018,19.44 ,PRINTING & STATIONERY,V001326156
ROCHDALE BOROUGH COUNCIL,01/11/2018,PROPERTY AND HIGHWAYS,BANNER GROUP LIMITED,01/11/2018,11.20 ,SECURITY,V001326157
ROCHDALE BOROUGH COUNCIL,01/11/2018,EARLY HELP AND SCHOOLS,ROMPA,01/11/2018,4.95 ,EQUIPMENT - GENERAL,V001326160
ROCHDALE BOROUGH COUNCIL,01/11/2018,EARLY HELP AND SCHOOLS,ROMPA,01/11/2018,9.95 ,EQUIPMENT - GENERAL,V001326160
ROCHDALE BOROUGH COUNCIL,01/11/2018,EARLY HELP AND SCHOOLS,ROMPA,01/11/2018,13.90 ,EQUIPMENT - GENERAL,V001326160
ROCHDALE BOROUGH COUNCIL,01/11/2018,EARLY HELP AND SCHOOLS,ROMPA,01/11/2018,55.00 ,EQUIPMENT - GENERAL,V001326160
ROCHDALE BOROUGH COUNCIL,01/11/2018,NEIGHBOURHOODS AND ENVIRONMENT,FAUN ZOELLER UK LTD,01/11/2018,12.75 ,VEHICLE MAINTENANCE,V001326182
ROCHDALE BOROUGH COUNCIL,01/11/2018,NEIGHBOURHOODS AND ENVIRONMENT,FAUN ZOELLER UK LTD,01/11/2018,58.60 ,VEHICLE MAINTENANCE,V001326182
ROCHDALE BOROUGH COUNCIL,13/11/2018,NEIGHBOURHOODS AND ENVIRONMENT,TRAVIS PERKINS TRADING CO LTD,13/11/2018,13.02 ,EQUIPMENT - GENERAL,V001326184
ROCHDALE BOROUGH COUNCIL,02/11/2018,NEIGHBOURHOODS AND ENVIRONMENT,QUEENSWAY COMMERCIALS LTD,02/11/2018,70.00 ,VEHICLE MAINTENANCE,V001326188
ROCHDALE BOROUGH COUNCIL,02/11/2018,NEIGHBOURHOODS AND ENVIRONMENT,QUEENSWAY COMMERCIALS LTD,02/11/2018,113.00 ,VEHICLE MAINTENANCE,V001326188
ROCHDALE BOROUGH COUNCIL,01/11/2018,NEIGHBOURHOODS AND ENVIRONMENT,MANTRA LEARNING LTD,01/11/2018,175.00 ,TRAINING,V001326189
ROCHDALE BOROUGH COUNCIL,01/11/2018,PROPERTY AND HIGHWAYS,BIFFA WASTE SERVICES LIMITED,01/11/2018,400.30 ,ONGOING DISBURSEMENTS,V001326275
ROCHDALE BOROUGH COUNCIL,16/11/2018,PROPERTY AND HIGHWAYS,E ON ENERGY SOLUTIONS LIMITED,16/11/2018,2885.92 ,MINOR BUILDING WORKS,V001326276
ROCHDALE BOROUGH COUNCIL,02/11/2018,PROPERTY AND HIGHWAYS,FRANK KEY TOOL HIRE LTD,02/11/2018,25.00 ,BUILDING MATERIALS,V001326277
ROCHDALE BOROUGH COUNCIL,02/11/2018,PROPERTY AND HIGHWAYS,FRANK KEY TOOL HIRE LTD,02/11/2018,13.98 ,BUILDING MATERIALS,V001326278
ROCHDALE BOROUGH COUNCIL,01/11/2018,ECONOMY DIRECTORATE,BANNER GROUP LIMITED,01/11/2018,3.85 ,PRINTING & STATIONERY,V001326280
ROCHDALE BOROUGH COUNCIL,01/11/2018,ECONOMY DIRECTORATE,BANNER GROUP LIMITED,01/11/2018,8.28 ,PRINTING & STATIONERY,V001326280
ROCHDALE BOROUGH COUNCIL,01/11/2018,ECONOMY DIRECTORATE,BANNER GROUP LIMITED,01/11/2018,8.28 ,PRINTING & STATIONERY,V001326280
ROCHDALE BOROUGH COUNCIL,01/11/2018,ECONOMY DIRECTORATE,BANNER GROUP LIMITED,01/11/2018,8.76 ,PRINTING & STATIONERY,V001326280
ROCHDALE BOROUGH COUNCIL,01/11/2018,ECONOMY DIRECTORATE,BANNER GROUP LIMITED,01/11/2018,9.30 ,PRINTING & STATIONERY,V001326280
ROCHDALE BOROUGH COUNCIL,01/11/2018,ECONOMY DIRECTORATE,BANNER GROUP LIMITED,01/11/2018,9.79 ,PRINTING & STATIONERY,V001326280
ROCHDALE BOROUGH COUNCIL,01/11/2018,ECONOMY DIRECTORATE,BANNER GROUP LIMITED,01/11/2018,18.27 ,PRINTING & STATIONERY,V001326280
ROCHDALE BOROUGH COUNCIL,01/11/2018,EARLY HELP AND SCHOOLS,BANNER GROUP LIMITED,01/11/2018,5.24 ,PRINTING & STATIONERY,V001326281
ROCHDALE BOROUGH COUNCIL,05/11/2018,ECONOMY DIRECTORATE,REACH PUBLISHING SERVICES LTD,05/11/2018,62.82 ,PUBLIC NOTICES,V001326283
ROCHDALE BOROUGH COUNCIL,01/11/2018,CHILDREN�S SOCIAL CARE,BANNER GROUP LIMITED,01/11/2018,1.84 ,PRINTING & STATIONERY,V001326288
ROCHDALE BOROUGH COUNCIL,01/11/2018,CHILDREN�S SOCIAL CARE,BANNER GROUP LIMITED,01/11/2018,2.06 ,PRINTING & STATIONERY,V001326288
ROCHDALE BOROUGH COUNCIL,01/11/2018,CHILDREN�S SOCIAL CARE,BANNER GROUP LIMITED,01/11/2018,4.80 ,PRINTING & STATIONERY,V001326288
ROCHDALE BOROUGH COUNCIL,01/11/2018,CHILDREN�S SOCIAL CARE,BANNER GROUP LIMITED,01/11/2018,7.20 ,PRINTING & STATIONERY,V001326288
ROCHDALE BOROUGH COUNCIL,01/11/2018,CHILDREN�S SOCIAL CARE,BANNER GROUP LIMITED,01/11/2018,7.80 ,PRINTING & STATIONERY,V001326288
ROCHDALE BOROUGH COUNCIL,01/11/2018,CHILDREN�S SOCIAL CARE,BANNER GROUP LIMITED,01/11/2018,8.12 ,PRINTING & STATIONERY,V001326288
ROCHDALE BOROUGH COUNCIL,02/11/2018,NEIGHBOURHOODS AND ENVIRONMENT,PENNINE PUMP & TANK CO,02/11/2018,779.00 ,TRANSACTIONS-EXPENDITURE,V001326289
ROCHDALE BOROUGH COUNCIL,01/11/2018,NEIGHBOURHOODS AND ENVIRONMENT,ROCHDALE TOWN CENTRE MANAGEMENT LTD,01/11/2018,1268.00 ,ADVERTISING,V001326293
ROCHDALE BOROUGH COUNCIL,02/11/2018,NEIGHBOURHOODS AND ENVIRONMENT,ARCO GROUP LIMITED,02/11/2018,50.36 ,EVENTS,V001326297
ROCHDALE BOROUGH COUNCIL,02/11/2018,ADULT CARE LCO FUNCTIONS,REDACTED - PERSONAL DATA,02/11/2018,1200.00 ,TRAINING,V001326322
ROCHDALE BOROUGH COUNCIL,01/11/2018,EARLY HELP AND SCHOOLS,GATENBY SANDERSON,01/11/2018,2880.00 ,COSTS MET BY SCHOOL,V001326323
ROCHDALE BOROUGH COUNCIL,02/11/2018,CHILDREN�S SOCIAL CARE,CRESTA WORLD TRAVEL LIMITED,02/11/2018,111.50 ,PUBLIC TRANSPORT,V001326327
ROCHDALE BOROUGH COUNCIL,02/11/2018,CHILDREN�S SOCIAL CARE,REDACTED - PERSONAL DATA,02/11/2018,150.00 ,ACTIVITIES,V001326328
ROCHDALE BOROUGH COUNCIL,01/11/2018,NEIGHBOURHOODS AND ENVIRONMENT,BANNER GROUP LIMITED,01/11/2018,8.83 ,PRINTING & STATIONERY,V001326330
ROCHDALE BOROUGH COUNCIL,01/11/2018,ADULT CARE LCO FUNCTIONS,BANNER GROUP LIMITED,01/11/2018,3.00 ,PRINTING & STATIONERY,V001326331
ROCHDALE BOROUGH COUNCIL,01/11/2018,ADULT CARE LCO FUNCTIONS,BANNER GROUP LIMITED,01/11/2018,3.09 ,PRINTING & STATIONERY,V001326331
ROCHDALE BOROUGH COUNCIL,01/11/2018,ADULT CARE LCO FUNCTIONS,BANNER GROUP LIMITED,01/11/2018,3.93 ,PRINTING & STATIONERY,V001326331
ROCHDALE BOROUGH COUNCIL,01/11/2018,ADULT CARE LCO FUNCTIONS,BANNER GROUP LIMITED,01/11/2018,4.41 ,PRINTING & STATIONERY,V001326331
ROCHDALE BOROUGH COUNCIL,01/11/2018,ADULT CARE LCO FUNCTIONS,BANNER GROUP LIMITED,01/11/2018,11.68 ,PRINTING & STATIONERY,V001326331
ROCHDALE BOROUGH COUNCIL,01/11/2018,ADULT CARE LCO FUNCTIONS,BANNER GROUP LIMITED,01/11/2018,35.56 ,PRINTING & STATIONERY,V001326331
ROCHDALE BOROUGH COUNCIL,01/11/2018,EARLY HELP AND SCHOOLS,BANNER GROUP LIMITED,01/11/2018,3.62 ,PRINTING & STATIONERY,V001326332
ROCHDALE BOROUGH COUNCIL,01/11/2018,EARLY HELP AND SCHOOLS,BANNER GROUP LIMITED,01/11/2018,1.71 ,EQUIPMENT - GENERAL,V001326333
ROCHDALE BOROUGH COUNCIL,01/11/2018,EARLY HELP AND SCHOOLS,BANNER GROUP LIMITED,01/11/2018,4.14 ,EQUIPMENT - GENERAL,V001326333
ROCHDALE BOROUGH COUNCIL,01/11/2018,EARLY HELP AND SCHOOLS,BANNER GROUP LIMITED,01/11/2018,6.90 ,EQUIPMENT - GENERAL,V001326333
ROCHDALE BOROUGH COUNCIL,01/11/2018,CHILDREN�S SOCIAL CARE,BANNER GROUP LIMITED,01/11/2018,0.94 ,PRINTING & STATIONERY,V001326334
ROCHDALE BOROUGH COUNCIL,01/11/2018,CHILDREN�S SOCIAL CARE,BANNER GROUP LIMITED,01/11/2018,5.52 ,PRINTING & STATIONERY,V001326334
ROCHDALE BOROUGH COUNCIL,01/11/2018,CHILDREN�S SOCIAL CARE,BANNER GROUP LIMITED,01/11/2018,5.86 ,PRINTING & STATIONERY,V001326334
ROCHDALE BOROUGH COUNCIL,01/11/2018,EARLY HELP AND SCHOOLS,BANNER GROUP LIMITED,01/11/2018,26.67 ,PRINTING & STATIONERY,V001326335
ROCHDALE BOROUGH COUNCIL,01/11/2018,ECONOMY DIRECTORATE,BANNER GROUP LIMITED,01/11/2018,9.03 ,PRINTING & STATIONERY,V001326336
ROCHDALE BOROUGH COUNCIL,01/11/2018,NEIGHBOURHOODS AND ENVIRONMENT,BANNER GROUP LIMITED,01/11/2018,8.90 ,PRINTING & STATIONERY,V001326337
ROCHDALE BOROUGH COUNCIL,01/11/2018,EARLY HELP AND SCHOOLS,BANNER GROUP LIMITED,01/11/2018,9.60 ,PRINTING & STATIONERY,V001326338
ROCHDALE BOROUGH COUNCIL,01/11/2018,EARLY HELP AND SCHOOLS,BANNER GROUP LIMITED,01/11/2018,5.24 ,PRINTING & STATIONERY,V001326339
ROCHDALE BOROUGH COUNCIL,01/11/2018,EARLY HELP AND SCHOOLS,BANNER GROUP LIMITED,01/11/2018,24.42 ,PRINTING & STATIONERY,V001326339
ROCHDALE BOROUGH COUNCIL,01/11/2018,EARLY HELP AND SCHOOLS,BANNER GROUP LIMITED,01/11/2018,30.36 ,PRINTING & STATIONERY,V001326339
ROCHDALE BOROUGH COUNCIL,01/11/2018,EARLY HELP AND SCHOOLS,BANNER GROUP LIMITED,01/11/2018,1.38 ,PRINTING & STATIONERY,V001326340
ROCHDALE BOROUGH COUNCIL,01/11/2018,EARLY HELP AND SCHOOLS,BANNER GROUP LIMITED,01/11/2018,11.08 ,PRINTING & STATIONERY,V001326340
ROCHDALE BOROUGH COUNCIL,01/11/2018,EARLY HELP AND SCHOOLS,BANNER GROUP LIMITED,01/11/2018,12.42 ,PRINTING & STATIONERY,V001326340
ROCHDALE BOROUGH COUNCIL,01/11/2018,EARLY HELP AND SCHOOLS,BANNER GROUP LIMITED,01/11/2018,35.56 ,PRINTING & STATIONERY,V001326340
ROCHDALE BOROUGH COUNCIL,01/11/2018,NEIGHBOURHOODS AND ENVIRONMENT,BANNER GROUP LIMITED,01/11/2018,3.09 ,PRINTING & STATIONERY,V001326341
ROCHDALE BOROUGH COUNCIL,01/11/2018,NEIGHBOURHOODS AND ENVIRONMENT,BANNER GROUP LIMITED,01/11/2018,5.86 ,PRINTING & STATIONERY,V001326341
ROCHDALE BOROUGH COUNCIL,01/11/2018,NEIGHBOURHOODS AND ENVIRONMENT,BANNER GROUP LIMITED,01/11/2018,7.24 ,PRINTING & STATIONERY,V001326341
ROCHDALE BOROUGH COUNCIL,01/11/2018,NEIGHBOURHOODS AND ENVIRONMENT,BANNER GROUP LIMITED,01/11/2018,35.56 ,PRINTING & STATIONERY,V001326341
ROCHDALE BOROUGH COUNCIL,01/11/2018,EARLY HELP AND SCHOOLS,BANNER GROUP LIMITED,01/11/2018,2.82 ,PRINTING & STATIONERY,V001326342
ROCHDALE BOROUGH COUNCIL,01/11/2018,EARLY HELP AND SCHOOLS,BANNER GROUP LIMITED,01/11/2018,3.03 ,PRINTING & STATIONERY,V001326342
ROCHDALE BOROUGH COUNCIL,01/11/2018,EARLY HELP AND SCHOOLS,BANNER GROUP LIMITED,01/11/2018,3.81 ,PRINTING & STATIONERY,V001326342
ROCHDALE BOROUGH COUNCIL,01/11/2018,EARLY HELP AND SCHOOLS,BANNER GROUP LIMITED,01/11/2018,5.15 ,PRINTING & STATIONERY,V001326342
ROCHDALE BOROUGH COUNCIL,01/11/2018,ECONOMY DIRECTORATE,BANNER GROUP LIMITED,01/11/2018,3.00 ,PRINTING & STATIONERY,V001326343
ROCHDALE BOROUGH COUNCIL,01/11/2018,NEIGHBOURHOODS AND ENVIRONMENT,BANNER GROUP LIMITED,01/11/2018,2.58 ,PRINTING & STATIONERY,V001326344
ROCHDALE BOROUGH COUNCIL,01/11/2018,NEIGHBOURHOODS AND ENVIRONMENT,BANNER GROUP LIMITED,01/11/2018,3.24 ,PRINTING & STATIONERY,V001326344
ROCHDALE BOROUGH COUNCIL,01/11/2018,NEIGHBOURHOODS AND ENVIRONMENT,BANNER GROUP LIMITED,01/11/2018,3.44 ,PRINTING & STATIONERY,V001326344
ROCHDALE BOROUGH COUNCIL,01/11/2018,NEIGHBOURHOODS AND ENVIRONMENT,BANNER GROUP LIMITED,01/11/2018,4.16 ,PRINTING & STATIONERY,V001326344
ROCHDALE BOROUGH COUNCIL,01/11/2018,NEIGHBOURHOODS AND ENVIRONMENT,BANNER GROUP LIMITED,01/11/2018,5.52 ,PRINTING & STATIONERY,V001326344
ROCHDALE BOROUGH COUNCIL,01/11/2018,NEIGHBOURHOODS AND ENVIRONMENT,BANNER GROUP LIMITED,01/11/2018,5.69 ,PRINTING & STATIONERY,V001326344
ROCHDALE BOROUGH COUNCIL,01/11/2018,NEIGHBOURHOODS AND ENVIRONMENT,BANNER GROUP LIMITED,01/11/2018,35.56 ,PRINTING & STATIONERY,V001326344
ROCHDALE BOROUGH COUNCIL,01/11/2018,NEIGHBOURHOODS AND ENVIRONMENT,BANNER GROUP LIMITED,01/11/2018,26.01 ,EQUIPMENT - GENERAL,V001326346
ROCHDALE BOROUGH COUNCIL,02/11/2018,PROPERTY AND HIGHWAYS,ARCO GROUP LIMITED,02/11/2018,103.27 ,"CLOTHES, UNIFORM AND LAUNDRY",V001326348
ROCHDALE BOROUGH COUNCIL,02/11/2018,ECONOMY DIRECTORATE,BANNER GROUP LIMITED,02/11/2018,2.03 ,PRINTING & STATIONERY,V001326349
ROCHDALE BOROUGH COUNCIL,02/11/2018,ECONOMY DIRECTORATE,ELECTRIC CENTER,02/11/2018,96.40 ,ELECTRICAL,V001326350
ROCHDALE BOROUGH COUNCIL,07/11/2018,NEIGHBOURHOODS AND ENVIRONMENT,BANNER GROUP LIMITED,07/11/2018,444.50 ,PRINTING & STATIONERY,V001326354
ROCHDALE BOROUGH COUNCIL,01/11/2018,NEIGHBOURHOODS AND ENVIRONMENT,BANNER GROUP LIMITED,01/11/2018,87.04 ,IT EQUIPMENT,V001326355
ROCHDALE BOROUGH COUNCIL,01/11/2018,EARLY HELP AND SCHOOLS,DAISY COMMUNICATIONS LTD,01/11/2018,27.00 ,MOBILE PHONE,V001326356
ROCHDALE BOROUGH COUNCIL,01/11/2018,EARLY HELP AND SCHOOLS,DAISY COMMUNICATIONS LTD,01/11/2018,27.00 ,MOBILE PHONE,V001326357
ROCHDALE BOROUGH COUNCIL,01/11/2018,NEIGHBOURHOODS AND ENVIRONMENT,BANNER GROUP LIMITED,01/11/2018,444.50 ,PRINTING & STATIONERY,V001326359
ROCHDALE BOROUGH COUNCIL,02/11/2018,EARLY HELP AND SCHOOLS,ROSS CARE,02/11/2018,4417.63 ,EQUIPMENT - GENERAL,V001326360
ROCHDALE BOROUGH COUNCIL,02/11/2018,EARLY HELP AND SCHOOLS,MILLENNIUM TRANSLATIONS LTD,02/11/2018,42.80 ,TRANSLATION & INTERPRETATION,V001326362
ROCHDALE BOROUGH COUNCIL,09/11/2018,EARLY HELP AND SCHOOLS,LONGFORD PARK SCHOOL,09/11/2018,3333.00 ,INDEPENDENT UNITS,V001326363
ROCHDALE BOROUGH COUNCIL,01/11/2018,CHILDREN�S SOCIAL CARE,BROWNS BOOK FOR STUDENTS,01/11/2018,11.19 ,BOOKS/NEWSPAPERS/PERIODICALS,V001326367
ROCHDALE BOROUGH COUNCIL,01/11/2018,CHILDREN�S SOCIAL CARE,BROWNS BOOK FOR STUDENTS,01/11/2018,55.17 ,BOOKS/NEWSPAPERS/PERIODICALS,V001326367
ROCHDALE BOROUGH COUNCIL,02/11/2018,EARLY HELP AND SCHOOLS,BANNER GROUP LIMITED,02/11/2018,19.74 ,PRINTING & STATIONERY,V001326369
ROCHDALE BOROUGH COUNCIL,02/11/2018,EARLY HELP AND SCHOOLS,MAC ROOFING ANDCONTRACTING LIMITED,02/11/2018,2665.62 ,MINOR BUILDING WORKS,V001326372
ROCHDALE BOROUGH COUNCIL,07/11/2018,NEIGHBOURHOODS AND ENVIRONMENT,PREMIER CLEAN UK LIMITED,07/11/2018,360.00 ,MAINTENANCE,V001326374
ROCHDALE BOROUGH COUNCIL,07/11/2018,NEIGHBOURHOODS AND ENVIRONMENT,PREMIER CLEAN UK LIMITED,07/11/2018,210.00 ,MAINTENANCE,V001326375
ROCHDALE BOROUGH COUNCIL,16/11/2018,PUBLIC HEALTH,LINK4LIFE CHARITY,16/11/2018,3663.67 ,PROFESSIONAL FEES,V001326379
ROCHDALE BOROUGH COUNCIL,02/11/2018,NEIGHBOURHOODS AND ENVIRONMENT,NORTHWEST ASBESTOS REMOVALS LTD,02/11/2018,320.00 ,EQUIPMENT - GENERAL,V001326380
ROCHDALE BOROUGH COUNCIL,07/11/2018,NEIGHBOURHOODS AND ENVIRONMENT,IMAGE@WORK LTD,07/11/2018,700.25 ,"CLOTHES, UNIFORM AND LAUNDRY",V001326387
ROCHDALE BOROUGH COUNCIL,01/11/2018,PROPERTY AND HIGHWAYS,CHRISTMAS PLUS LTD,01/11/2018,1248.00 ,ENERGY COSTS,V001326390
ROCHDALE BOROUGH COUNCIL,08/11/2018,EARLY HELP AND SCHOOLS,CROSSROADS CARE IN GREATER MANCHESTER,08/11/2018,5922.00 ,ACTIVITIES,V001326398
ROCHDALE BOROUGH COUNCIL,08/11/2018,EARLY HELP AND SCHOOLS,CROSSROADS CARE IN GREATER MANCHESTER,08/11/2018,1287.00 ,ACTIVITIES,V001326400
ROCHDALE BOROUGH COUNCIL,08/11/2018,EARLY HELP AND SCHOOLS,CROSSROADS CARE IN GREATER MANCHESTER,08/11/2018,351.00 ,ACTIVITIES,V001326401
ROCHDALE BOROUGH COUNCIL,08/11/2018,EARLY HELP AND SCHOOLS,CROSSROADS CARE IN GREATER MANCHESTER,08/11/2018,288.00 ,ACTIVITIES,V001326403
ROCHDALE BOROUGH COUNCIL,08/11/2018,EARLY HELP AND SCHOOLS,CROSSROADS CARE IN GREATER MANCHESTER,08/11/2018,144.00 ,ACTIVITIES,V001326404
ROCHDALE BOROUGH COUNCIL,08/11/2018,EARLY HELP AND SCHOOLS,CROSSROADS CARE IN GREATER MANCHESTER,08/11/2018,378.00 ,ACTIVITIES,V001326405
ROCHDALE BOROUGH COUNCIL,08/11/2018,EARLY HELP AND SCHOOLS,CROSSROADS CARE IN GREATER MANCHESTER,08/11/2018,90.00 ,ACTIVITIES,V001326406
ROCHDALE BOROUGH COUNCIL,08/11/2018,EARLY HELP AND SCHOOLS,CROSSROADS CARE IN GREATER MANCHESTER,08/11/2018,648.00 ,ACTIVITIES,V001326407
ROCHDALE BOROUGH COUNCIL,08/11/2018,EARLY HELP AND SCHOOLS,CROSSROADS CARE IN GREATER MANCHESTER,08/11/2018,576.00 ,ACTIVITIES,V001326408
ROCHDALE BOROUGH COUNCIL,15/11/2018,PUBLIC HEALTH,MANCHESTER CITY COUNCIL,15/11/2018,3852.82 ,PROFESSIONAL FEES,V001326413
ROCHDALE BOROUGH COUNCIL,01/11/2018,NEIGHBOURHOODS AND ENVIRONMENT,BROXAP LIMITED,01/11/2018,450.00 ,ACTIVITIES,V001326414
ROCHDALE BOROUGH COUNCIL,01/11/2018,NEIGHBOURHOODS AND ENVIRONMENT,TREE HEROES LTD,01/11/2018,180.00 ,CONTRACTS,V001326415
ROCHDALE BOROUGH COUNCIL,02/11/2018,NEIGHBOURHOODS AND ENVIRONMENT,PITNEY BOWES POSTAGE BY PHONE,02/11/2018,200.00 ,POSTAGE,V001326418
ROCHDALE BOROUGH COUNCIL,02/11/2018,EARLY HELP AND SCHOOLS,BARNARDOS,02/11/2018,10539.83 ,ACTIVITIES,V001326419
ROCHDALE BOROUGH COUNCIL,01/11/2018,NEIGHBOURHOODS AND ENVIRONMENT,G AND A TAYLOR HOTELS LTD,01/11/2018,58.00 ,ACCOMMODATION,V001326447
ROCHDALE BOROUGH COUNCIL,01/11/2018,NEIGHBOURHOODS AND ENVIRONMENT,G AND A TAYLOR HOTELS LTD,01/11/2018,232.00 ,ACCOMMODATION,V001326447
ROCHDALE BOROUGH COUNCIL,01/11/2018,ADULT CARE LCO FUNCTIONS,STANNAH LIFT SERVICES LTD,01/11/2018,2036.00 ,MINOR BUILDING WORKS,V001326483
ROCHDALE BOROUGH COUNCIL,05/11/2018,PROPERTY AND HIGHWAYS,HOWARTH TIMBER AND BUILDING SUPPLIES LTD,05/11/2018,116.25 ,BUILDING MATERIALS,V001326497
ROCHDALE BOROUGH COUNCIL,02/11/2018,PROPERTY AND HIGHWAYS,ELECTRIC CENTER,02/11/2018,217.00 ,BUILDING MATERIALS,V001326498
ROCHDALE BOROUGH COUNCIL,02/11/2018,PROPERTY AND HIGHWAYS,HOWDENS JOINERY CO LIMITED,02/11/2018,82.21 ,BUILDING MATERIALS,V001326499
ROCHDALE BOROUGH COUNCIL,08/11/2018,PROPERTY AND HIGHWAYS,ATLAS SECURITY PRODUCTS LTD,08/11/2018,180.00 ,PROPERTY - WORKS ELEMENT,V001326500
ROCHDALE BOROUGH COUNCIL,02/11/2018,PROPERTY AND HIGHWAYS,INTERSAFETY,02/11/2018,24.25 ,"CLOTHES, UNIFORM AND LAUNDRY",V001326502
ROCHDALE BOROUGH COUNCIL,02/11/2018,PROPERTY AND HIGHWAYS,HOWARTH TIMBER AND BUILDING SUPPLIES LTD,02/11/2018,12.72 ,BUILDING MATERIALS,V001326503
ROCHDALE BOROUGH COUNCIL,08/11/2018,ECONOMY DIRECTORATE,ABC INDUSTRIAL DOORS LTD,08/11/2018,95.50 ,ELECTRICAL,V001326504
ROCHDALE BOROUGH COUNCIL,08/11/2018,ECONOMY DIRECTORATE,ABC INDUSTRIAL DOORS LTD,08/11/2018,95.50 ,ELECTRICAL,V001326505
ROCHDALE BOROUGH COUNCIL,08/11/2018,PROPERTY AND HIGHWAYS,ABC INDUSTRIAL DOORS LTD,08/11/2018,167.50 ,PROPERTY - WORKS ELEMENT,V001326506
ROCHDALE BOROUGH COUNCIL,08/11/2018,ECONOMY DIRECTORATE,ABC INDUSTRIAL DOORS LTD,08/11/2018,1650.00 ,ELECTRICAL,V001326507
ROCHDALE BOROUGH COUNCIL,08/11/2018,PROPERTY AND HIGHWAYS,ABC INDUSTRIAL DOORS LTD,08/11/2018,595.00 ,PROPERTY - WORKS ELEMENT,V001326508
ROCHDALE BOROUGH COUNCIL,08/11/2018,ECONOMY DIRECTORATE,ABC INDUSTRIAL DOORS LTD,08/11/2018,95.50 ,ELECTRICAL,V001326509
ROCHDALE BOROUGH COUNCIL,02/11/2018,NEIGHBOURHOODS AND ENVIRONMENT,J COONEY LTD,02/11/2018,1500.00 ,EQUIPMENT - GENERAL,V001326510
ROCHDALE BOROUGH COUNCIL,08/11/2018,NEIGHBOURHOODS AND ENVIRONMENT,REDACTED - PERSONAL DATA,08/11/2018,300.00 ,REPAIRS & ALTS OF BUILDINGS,V001326513
ROCHDALE BOROUGH COUNCIL,12/11/2018,NEIGHBOURHOODS AND ENVIRONMENT,BANNER GROUP LIMITED,12/11/2018,338.72 ,PRINTING & STATIONERY,V001326514
ROCHDALE BOROUGH COUNCIL,12/11/2018,NEIGHBOURHOODS AND ENVIRONMENT,BANNER GROUP LIMITED,12/11/2018,67.70 ,PRINTING & STATIONERY,V001326515
ROCHDALE BOROUGH COUNCIL,12/11/2018,NEIGHBOURHOODS AND ENVIRONMENT,BANNER GROUP LIMITED,12/11/2018,4.12 ,PRINTING & STATIONERY,V001326517
ROCHDALE BOROUGH COUNCIL,12/11/2018,NEIGHBOURHOODS AND ENVIRONMENT,BANNER GROUP LIMITED,12/11/2018,7.24 ,PRINTING & STATIONERY,V001326517
ROCHDALE BOROUGH COUNCIL,12/11/2018,NEIGHBOURHOODS AND ENVIRONMENT,BANNER GROUP LIMITED,12/11/2018,8.52 ,PRINTING & STATIONERY,V001326517
ROCHDALE BOROUGH COUNCIL,12/11/2018,NEIGHBOURHOODS AND ENVIRONMENT,BANNER GROUP LIMITED,12/11/2018,13.20 ,PRINTING & STATIONERY,V001326517
ROCHDALE BOROUGH COUNCIL,12/11/2018,NEIGHBOURHOODS AND ENVIRONMENT,BANNER GROUP LIMITED,12/11/2018,22.08 ,PRINTING & STATIONERY,V001326517
ROCHDALE BOROUGH COUNCIL,02/11/2018,ECONOMY DIRECTORATE,CASTLEMERE COMMUNITY CENTRE,02/11/2018,160.00 ,ROOM HIRE,V001326518
ROCHDALE BOROUGH COUNCIL,02/11/2018,NEIGHBOURHOODS AND ENVIRONMENT,CRESTA WORLD TRAVEL LIMITED,02/11/2018,294.00 ,STAFF TRAVELLING EXPENSES,V001326521
ROCHDALE BOROUGH COUNCIL,06/11/2018,NEIGHBOURHOODS AND ENVIRONMENT,AMTOLL LIMITED,06/11/2018,13.44 ,CLEANING MATERIALS,V001326530
ROCHDALE BOROUGH COUNCIL,06/11/2018,NEIGHBOURHOODS AND ENVIRONMENT,AMTOLL LIMITED,06/11/2018,20.85 ,CONSUMABLES,V001326530
ROCHDALE BOROUGH COUNCIL,06/11/2018,NEIGHBOURHOODS AND ENVIRONMENT,AMTOLL LIMITED,06/11/2018,41.97 ,CONSUMABLES,V001326530
ROCHDALE BOROUGH COUNCIL,06/11/2018,NEIGHBOURHOODS AND ENVIRONMENT,AMTOLL LIMITED,06/11/2018,3.66 ,CONSUMABLES,V001326531
ROCHDALE BOROUGH COUNCIL,06/11/2018,NEIGHBOURHOODS AND ENVIRONMENT,AMTOLL LIMITED,06/11/2018,8.96 ,CLEANING MATERIALS,V001326531
ROCHDALE BOROUGH COUNCIL,06/11/2018,NEIGHBOURHOODS AND ENVIRONMENT,AMTOLL LIMITED,06/11/2018,13.86 ,CONSUMABLES,V001326531
ROCHDALE BOROUGH COUNCIL,06/11/2018,NEIGHBOURHOODS AND ENVIRONMENT,AMTOLL LIMITED,06/11/2018,15.24 ,CLEANING MATERIALS,V001326531
ROCHDALE BOROUGH COUNCIL,06/11/2018,NEIGHBOURHOODS AND ENVIRONMENT,AMTOLL LIMITED,06/11/2018,111.92 ,CONSUMABLES,V001326531
ROCHDALE BOROUGH COUNCIL,06/11/2018,NEIGHBOURHOODS AND ENVIRONMENT,AMTOLL LIMITED,06/11/2018,2.38 ,CLEANING EQUIPMENT,V001326532
ROCHDALE BOROUGH COUNCIL,06/11/2018,NEIGHBOURHOODS AND ENVIRONMENT,AMTOLL LIMITED,06/11/2018,4.54 ,CLEANING MATERIALS,V001326532
ROCHDALE BOROUGH COUNCIL,06/11/2018,NEIGHBOURHOODS AND ENVIRONMENT,AMTOLL LIMITED,06/11/2018,10.86 ,EQUIPMENT - GENERAL,V001326532
ROCHDALE BOROUGH COUNCIL,06/11/2018,NEIGHBOURHOODS AND ENVIRONMENT,AMTOLL LIMITED,06/11/2018,12.08 ,CLEANING MATERIALS,V001326532
ROCHDALE BOROUGH COUNCIL,06/11/2018,NEIGHBOURHOODS AND ENVIRONMENT,AMTOLL LIMITED,06/11/2018,27.72 ,CONSUMABLES,V001326532
ROCHDALE BOROUGH COUNCIL,06/11/2018,NEIGHBOURHOODS AND ENVIRONMENT,AMTOLL LIMITED,06/11/2018,0.40 ,CLEANING MATERIALS,V001326533
ROCHDALE BOROUGH COUNCIL,06/11/2018,NEIGHBOURHOODS AND ENVIRONMENT,AMTOLL LIMITED,06/11/2018,1.19 ,CLEANING EQUIPMENT,V001326533
ROCHDALE BOROUGH COUNCIL,06/11/2018,NEIGHBOURHOODS AND ENVIRONMENT,AMTOLL LIMITED,06/11/2018,1.40 ,CLEANING EQUIPMENT,V001326533
ROCHDALE BOROUGH COUNCIL,06/11/2018,NEIGHBOURHOODS AND ENVIRONMENT,AMTOLL LIMITED,06/11/2018,2.44 ,CLEANING EQUIPMENT,V001326533
ROCHDALE BOROUGH COUNCIL,06/11/2018,NEIGHBOURHOODS AND ENVIRONMENT,AMTOLL LIMITED,06/11/2018,2.85 ,CLEANING MATERIALS,V001326533
ROCHDALE BOROUGH COUNCIL,06/11/2018,NEIGHBOURHOODS AND ENVIRONMENT,AMTOLL LIMITED,06/11/2018,3.60 ,CLEANING MATERIALS,V001326533
ROCHDALE BOROUGH COUNCIL,06/11/2018,NEIGHBOURHOODS AND ENVIRONMENT,AMTOLL LIMITED,06/11/2018,3.60 ,CLEANING MATERIALS,V001326533
ROCHDALE BOROUGH COUNCIL,06/11/2018,NEIGHBOURHOODS AND ENVIRONMENT,AMTOLL LIMITED,06/11/2018,4.31 ,CLEANING MATERIALS,V001326533
ROCHDALE BOROUGH COUNCIL,06/11/2018,NEIGHBOURHOODS AND ENVIRONMENT,AMTOLL LIMITED,06/11/2018,4.48 ,CLEANING MATERIALS,V001326533
ROCHDALE BOROUGH COUNCIL,06/11/2018,NEIGHBOURHOODS AND ENVIRONMENT,AMTOLL LIMITED,06/11/2018,4.92 ,CONSUMABLES,V001326533
ROCHDALE BOROUGH COUNCIL,06/11/2018,NEIGHBOURHOODS AND ENVIRONMENT,AMTOLL LIMITED,06/11/2018,6.68 ,CLEANING MATERIALS,V001326533
ROCHDALE BOROUGH COUNCIL,06/11/2018,NEIGHBOURHOODS AND ENVIRONMENT,AMTOLL LIMITED,06/11/2018,7.40 ,CLEANING MATERIALS,V001326533
ROCHDALE BOROUGH COUNCIL,06/11/2018,NEIGHBOURHOODS AND ENVIRONMENT,AMTOLL LIMITED,06/11/2018,9.38 ,CLEANING MATERIALS,V001326533
ROCHDALE BOROUGH COUNCIL,06/11/2018,NEIGHBOURHOODS AND ENVIRONMENT,AMTOLL LIMITED,06/11/2018,10.92 ,CLEANING MATERIALS,V001326533
ROCHDALE BOROUGH COUNCIL,06/11/2018,NEIGHBOURHOODS AND ENVIRONMENT,AMTOLL LIMITED,06/11/2018,10.98 ,CONSUMABLES,V001326533
ROCHDALE BOROUGH COUNCIL,06/11/2018,NEIGHBOURHOODS AND ENVIRONMENT,AMTOLL LIMITED,06/11/2018,15.00 ,CLEANING MATERIALS,V001326533
ROCHDALE BOROUGH COUNCIL,06/11/2018,NEIGHBOURHOODS AND ENVIRONMENT,AMTOLL LIMITED,06/11/2018,29.16 ,CONSUMABLES,V001326533
ROCHDALE BOROUGH COUNCIL,06/11/2018,NEIGHBOURHOODS AND ENVIRONMENT,AMTOLL LIMITED,06/11/2018,30.48 ,CLEANING MATERIALS,V001326533
ROCHDALE BOROUGH COUNCIL,06/11/2018,NEIGHBOURHOODS AND ENVIRONMENT,AMTOLL LIMITED,06/11/2018,55.96 ,CONSUMABLES,V001326533
ROCHDALE BOROUGH COUNCIL,07/11/2018,NEIGHBOURHOODS AND ENVIRONMENT,NISBETS PLC,07/11/2018,99.85 ,HEALTH AND SAFETY,V001326536
ROCHDALE BOROUGH COUNCIL,09/11/2018,NEIGHBOURHOODS AND ENVIRONMENT,EVERYTHING EVERYWHERE,09/11/2018,-50.00 ,MOBILE PHONE,V001326713
ROCHDALE BOROUGH COUNCIL,09/11/2018,CHILDREN�S SOCIAL CARE,EVERYTHING EVERYWHERE,09/11/2018,-50.00 ,MOBILE PHONE,V001326718
ROCHDALE BOROUGH COUNCIL,09/11/2018,EARLY HELP AND SCHOOLS,EVERYTHING EVERYWHERE,09/11/2018,-165.00 ,MOBILE PHONE,V001326725
ROCHDALE BOROUGH COUNCIL,02/11/2018,RESOURCES,CIPFA,02/11/2018,200.00 ,TRAINING-QUALIFICATION,V001327688
ROCHDALE BOROUGH COUNCIL,09/11/2018,CHILDREN�S SOCIAL CARE,EVERYTHING EVERYWHERE,09/11/2018,49.00 ,MOBILE PHONE,V001327689
ROCHDALE BOROUGH COUNCIL,09/11/2018,RESOURCES,EVERYTHING EVERYWHERE,09/11/2018,165.00 ,MOBILE PHONE,V001327690
ROCHDALE BOROUGH COUNCIL,12/11/2018,CHILDREN�S SOCIAL CARE,EVERYTHING EVERYWHERE,12/11/2018,140.00 ,MOBILE PHONE,V001327691
ROCHDALE BOROUGH COUNCIL,09/11/2018,NEIGHBOURHOODS AND ENVIRONMENT,EVERYTHING EVERYWHERE,09/11/2018,140.00 ,TRANSACTIONS-EXPENDITURE,V001327692
ROCHDALE BOROUGH COUNCIL,02/11/2018,PROPERTY AND HIGHWAYS,STHREE PARTNERSHIP LLP,02/11/2018,1875.00 ,AGENCY STAFF,V001327695
ROCHDALE BOROUGH COUNCIL,13/11/2018,NEIGHBOURHOODS AND ENVIRONMENT,ZEN INTERNET LIMITED,13/11/2018,50.00 ,COMMUNICATION AND COMPUTING - GENERAL,V001327696
ROCHDALE BOROUGH COUNCIL,08/11/2018,NEIGHBOURHOODS AND ENVIRONMENT,CF CORPORATE FINANCE LTD,08/11/2018,531.18 ,HIRE OF EQUIPMENT,V001327697
ROCHDALE BOROUGH COUNCIL,05/11/2018,PROPERTY AND HIGHWAYS,ABBEY ARCHITECTURAL IRONMONGERY CO LTD,05/11/2018,9.46 ,BUILDING MATERIALS,V001327698
ROCHDALE BOROUGH COUNCIL,05/11/2018,PROPERTY AND HIGHWAYS,ABBEY ARCHITECTURAL IRONMONGERY CO LTD,05/11/2018,19.13 ,BUILDING MATERIALS,V001327698
ROCHDALE BOROUGH COUNCIL,05/11/2018,PROPERTY AND HIGHWAYS,ABBEY ARCHITECTURAL IRONMONGERY CO LTD,05/11/2018,20.58 ,BUILDING MATERIALS,V001327698
ROCHDALE BOROUGH COUNCIL,05/11/2018,PROPERTY AND HIGHWAYS,ABBEY ARCHITECTURAL IRONMONGERY CO LTD,05/11/2018,29.35 ,BUILDING MATERIALS,V001327698
ROCHDALE BOROUGH COUNCIL,05/11/2018,PROPERTY AND HIGHWAYS,ABBEY ARCHITECTURAL IRONMONGERY CO LTD,05/11/2018,37.38 ,BUILDING MATERIALS,V001327698
ROCHDALE BOROUGH COUNCIL,05/11/2018,PROPERTY AND HIGHWAYS,ABBEY ARCHITECTURAL IRONMONGERY CO LTD,05/11/2018,59.50 ,BUILDING MATERIALS,V001327698
ROCHDALE BOROUGH COUNCIL,05/11/2018,PROPERTY AND HIGHWAYS,ABBEY ARCHITECTURAL IRONMONGERY CO LTD,05/11/2018,81.95 ,BUILDING MATERIALS,V001327698
ROCHDALE BOROUGH COUNCIL,05/11/2018,PROPERTY AND HIGHWAYS,ABBEY ARCHITECTURAL IRONMONGERY CO LTD,05/11/2018,158.60 ,BUILDING MATERIALS,V001327698
ROCHDALE BOROUGH COUNCIL,05/11/2018,PROPERTY AND HIGHWAYS,HOWARTH TIMBER AND BUILDING SUPPLIES LTD,05/11/2018,97.62 ,BUILDING MATERIALS,V001327699
ROCHDALE BOROUGH COUNCIL,08/11/2018,PROPERTY AND HIGHWAYS,PPG ARCHITECTURAL COATINGS UK LIMITED,08/11/2018,13.07 ,BUILDING MATERIALS,V001327700
ROCHDALE BOROUGH COUNCIL,08/11/2018,PROPERTY AND HIGHWAYS,ASTLEY HIRE LTD,08/11/2018,621.25 ,EQUIPMENT - GENERAL,V001327701
ROCHDALE BOROUGH COUNCIL,19/11/2018,CHILDREN�S SOCIAL CARE,CAS FM LIMITED,19/11/2018,2450.00 ,FURNITURE - GENERAL,V001327703
ROCHDALE BOROUGH COUNCIL,02/11/2018,COMMISSIONING AND STATUTORY,REDACTED - PERSONAL DATA,02/11/2018,173.37 ,EXPENSES - GENERAL,V001327708
ROCHDALE BOROUGH COUNCIL,01/11/2018,EARLY HELP AND SCHOOLS,TEACHING PERSONNEL LTD,01/11/2018,963.75 ,AGENCY STAFF,V001327736
ROCHDALE BOROUGH COUNCIL,01/11/2018,COMMISSIONING AND STATUTORY,ACTION FIRST IPEOPLE LTD,01/11/2018,2450.00 ,FEES / COMMISSION,V001327849
ROCHDALE BOROUGH COUNCIL,01/11/2018,COMMISSIONING AND STATUTORY,ACTION FIRST IPEOPLE LTD,01/11/2018,1400.00 ,FEES / COMMISSION,V001327850
ROCHDALE BOROUGH COUNCIL,01/11/2018,COMMISSIONING AND STATUTORY,ACTION FIRST IPEOPLE LTD,01/11/2018,350.00 ,FEES / COMMISSION,V001327851
ROCHDALE BOROUGH COUNCIL,01/11/2018,COMMISSIONING AND STATUTORY,ACTION FIRST IPEOPLE LTD,01/11/2018,1050.00 ,FEES / COMMISSION,V001327852
ROCHDALE BOROUGH COUNCIL,01/11/2018,COMMISSIONING AND STATUTORY,ACTION FIRST IPEOPLE LTD,01/11/2018,1400.00 ,FEES / COMMISSION,V001327853
ROCHDALE BOROUGH COUNCIL,01/11/2018,COMMISSIONING AND STATUTORY,ACTION FIRST IPEOPLE LTD,01/11/2018,1050.00 ,FEES / COMMISSION,V001327854
ROCHDALE BOROUGH COUNCIL,02/11/2018,ECONOMY DIRECTORATE,DAISY COMMUNICATIONS LTD,02/11/2018,27.00 ,MOBILE PHONE,V001327872
ROCHDALE BOROUGH COUNCIL,01/11/2018,NEIGHBOURHOODS AND ENVIRONMENT,BROXAP LIMITED,01/11/2018,5625.00 ,EQUIPMENT - GENERAL,V001329268
ROCHDALE BOROUGH COUNCIL,01/11/2018,RESOURCES,BANNER GROUP LIMITED,01/11/2018,16.71 ,PRINTING & STATIONERY,V001329269
ROCHDALE BOROUGH COUNCIL,02/11/2018,NEIGHBOURHOODS AND ENVIRONMENT,REDACTED - PERSONAL DATA,02/11/2018,200.00 ,EVENTS,V001329273
ROCHDALE BOROUGH COUNCIL,02/11/2018,NEIGHBOURHOODS AND ENVIRONMENT,REDACTED - PERSONAL DATA,02/11/2018,192.00 ,EVENTS,V001329274
ROCHDALE BOROUGH COUNCIL,02/11/2018,NEIGHBOURHOODS AND ENVIRONMENT,REDACTED - PERSONAL DATA,02/11/2018,100.00 ,EVENTS,V001329275
ROCHDALE BOROUGH COUNCIL,06/11/2018,NEIGHBOURHOODS AND ENVIRONMENT,REDACTED - PERSONAL DATA,06/11/2018,360.00 ,EVENTS,V001329276
ROCHDALE BOROUGH COUNCIL,06/11/2018,NEIGHBOURHOODS AND ENVIRONMENT,BANNER GROUP LIMITED,06/11/2018,41.16 ,PRINTING & STATIONERY,V001329281
ROCHDALE BOROUGH COUNCIL,02/11/2018,NEIGHBOURHOODS AND ENVIRONMENT,ORCHARD  RECYCLING SERVICE LTD,02/11/2018,478.50 ,EQUIPMENT - GENERAL,V001329282
ROCHDALE BOROUGH COUNCIL,02/11/2018,COMMISSIONING AND STATUTORY,REDACTED - PERSONAL DATA,02/11/2018,173.37 ,EXPENSES - GENERAL,V001329283
ROCHDALE BOROUGH COUNCIL,06/11/2018,ADULT CARE LCO FUNCTIONS,STANNAH LIFT SERVICES LTD,06/11/2018,50.00 ,REMOVAL EXPENDITURE,V001329284
ROCHDALE BOROUGH COUNCIL,06/11/2018,NEIGHBOURHOODS AND ENVIRONMENT,TG PRODUCTION SUPPLY LTD,06/11/2018,3152.63 ,EVENTS,V001329285
ROCHDALE BOROUGH COUNCIL,02/11/2018,ECONOMY DIRECTORATE,ROCHDALE DEVELOPMENT AGENCY,02/11/2018,21.33 ,MINOR BUILDING WORKS,V001329287
ROCHDALE BOROUGH COUNCIL,02/11/2018,ECONOMY DIRECTORATE,ROCHDALE DEVELOPMENT AGENCY,02/11/2018,72.79 ,MARKETING EXPENDITURE,V001329287
ROCHDALE BOROUGH COUNCIL,02/11/2018,ECONOMY DIRECTORATE,ROCHDALE DEVELOPMENT AGENCY,02/11/2018,78.00 ,MARKETING EXPENDITURE,V001329287
ROCHDALE BOROUGH COUNCIL,02/11/2018,ECONOMY DIRECTORATE,ROCHDALE DEVELOPMENT AGENCY,02/11/2018,80.00 ,STREET FURNITURE,V001329287
ROCHDALE BOROUGH COUNCIL,02/11/2018,ECONOMY DIRECTORATE,ROCHDALE DEVELOPMENT AGENCY,02/11/2018,310.00 ,REFUSE DISPOSAL,V001329287
ROCHDALE BOROUGH COUNCIL,02/11/2018,ECONOMY DIRECTORATE,ROCHDALE DEVELOPMENT AGENCY,02/11/2018,712.00 ,ACTIVITIES,V001329287
ROCHDALE BOROUGH COUNCIL,02/11/2018,ECONOMY DIRECTORATE,ROCHDALE DEVELOPMENT AGENCY,02/11/2018,797.80 ,ACTIVITIES,V001329287
ROCHDALE BOROUGH COUNCIL,02/11/2018,ECONOMY DIRECTORATE,ROCHDALE DEVELOPMENT AGENCY,02/11/2018,900.00 ,MARKETING EXPENDITURE,V001329287
ROCHDALE BOROUGH COUNCIL,02/11/2018,ECONOMY DIRECTORATE,ROCHDALE DEVELOPMENT AGENCY,02/11/2018,1500.00 ,MARKETING EXPENDITURE,V001329287
ROCHDALE BOROUGH COUNCIL,02/11/2018,ECONOMY DIRECTORATE,ROCHDALE DEVELOPMENT AGENCY,02/11/2018,2000.00 ,ACTIVITIES,V001329287
ROCHDALE BOROUGH COUNCIL,02/11/2018,ADULT CARE LCO FUNCTIONS,STANNAH LIFT SERVICES LTD,02/11/2018,50.00 ,REMOVAL EXPENDITURE,V001329288
ROCHDALE BOROUGH COUNCIL,16/11/2018,PUBLIC HEALTH,TAMESIDE METROPOLITAN BOROUGH COUNCIL,16/11/2018,47854.00 ,PH NETWORK COSTS,V001329290
ROCHDALE BOROUGH COUNCIL,16/11/2018,NEIGHBOURHOODS AND ENVIRONMENT,EVERYTHING EVERYWHERE LIMITED,16/11/2018,387.25 ,TRANSACTIONS-EXPENDITURE,V001329292
ROCHDALE BOROUGH COUNCIL,16/11/2018,NEIGHBOURHOODS AND ENVIRONMENT,EVERYTHING EVERYWHERE LIMITED,16/11/2018,25.59 ,TRANSACTIONS-EXPENDITURE,V001329293
ROCHDALE BOROUGH COUNCIL,16/11/2018,NEIGHBOURHOODS AND ENVIRONMENT,EVERYTHING EVERYWHERE LIMITED,16/11/2018,2322.23 ,TRANSACTIONS-EXPENDITURE,V001329294
ROCHDALE BOROUGH COUNCIL,16/11/2018,NEIGHBOURHOODS AND ENVIRONMENT,EVERYTHING EVERYWHERE LIMITED,16/11/2018,175.38 ,TRANSACTIONS-EXPENDITURE,V001329295
ROCHDALE BOROUGH COUNCIL,16/11/2018,NEIGHBOURHOODS AND ENVIRONMENT,EVERYTHING EVERYWHERE LIMITED,16/11/2018,423.02 ,TRANSACTIONS-EXPENDITURE,V001329296
ROCHDALE BOROUGH COUNCIL,16/11/2018,NEIGHBOURHOODS AND ENVIRONMENT,EVERYTHING EVERYWHERE LIMITED,16/11/2018,5486.17 ,TRANSACTIONS-EXPENDITURE,V001329297
ROCHDALE BOROUGH COUNCIL,06/11/2018,PROPERTY AND HIGHWAYS,F S MOULT AND SON,06/11/2018,2000.00 ,MINOR BUILDING WORKS,V001329298
ROCHDALE BOROUGH COUNCIL,06/11/2018,PROPERTY AND HIGHWAYS,F S MOULT AND SON,06/11/2018,10179.00 ,MINOR BUILDING WORKS,V001329298
ROCHDALE BOROUGH COUNCIL,06/11/2018,ECONOMY DIRECTORATE,PEEL GRAPHICS LIMITED,06/11/2018,25.00 ,PRINTING & STATIONERY,V001329299
ROCHDALE BOROUGH COUNCIL,06/11/2018,NEIGHBOURHOODS AND ENVIRONMENT,NORTHWEST ASBESTOS REMOVALS LTD,06/11/2018,105.00 ,EQUIPMENT - GENERAL,V001329300
ROCHDALE BOROUGH COUNCIL,22/11/2018,PROPERTY AND HIGHWAYS,DDH FABRICATIONS LTD,22/11/2018,970.00 ,REPAIRS & ALTS OF BUILDINGS,V001329302
ROCHDALE BOROUGH COUNCIL,02/11/2018,NEIGHBOURHOODS AND ENVIRONMENT,BRITISH TELECOMMUNICATIONS PLC,02/11/2018,1.56 ,TELEPHONE EXPENDITURE,V001329303
ROCHDALE BOROUGH COUNCIL,02/11/2018,CHILDREN�S SOCIAL CARE,BRITISH TELECOMMUNICATIONS PLC,02/11/2018,2.33 ,TELEPHONE EXPENDITURE,V001329303
ROCHDALE BOROUGH COUNCIL,02/11/2018,NEIGHBOURHOODS AND ENVIRONMENT,BRITISH TELECOMMUNICATIONS PLC,02/11/2018,12.00 ,TELEPHONE EXPENDITURE,V001329303
ROCHDALE BOROUGH COUNCIL,02/11/2018,NEIGHBOURHOODS AND ENVIRONMENT,BRITISH TELECOMMUNICATIONS PLC,02/11/2018,12.63 ,TELEPHONE EXPENDITURE,V001329303
ROCHDALE BOROUGH COUNCIL,02/11/2018,NEIGHBOURHOODS AND ENVIRONMENT,BRITISH TELECOMMUNICATIONS PLC,02/11/2018,12.63 ,TELEPHONE EXPENDITURE,V001329303
ROCHDALE BOROUGH COUNCIL,02/11/2018,NEIGHBOURHOODS AND ENVIRONMENT,BRITISH TELECOMMUNICATIONS PLC,02/11/2018,12.63 ,TELEPHONE EXPENDITURE,V001329303
ROCHDALE BOROUGH COUNCIL,02/11/2018,NEIGHBOURHOODS AND ENVIRONMENT,BRITISH TELECOMMUNICATIONS PLC,02/11/2018,12.63 ,TELEPHONE EXPENDITURE,V001329303
ROCHDALE BOROUGH COUNCIL,02/11/2018,NEIGHBOURHOODS AND ENVIRONMENT,BRITISH TELECOMMUNICATIONS PLC,02/11/2018,12.63 ,TELEPHONE EXPENDITURE,V001329303
ROCHDALE BOROUGH COUNCIL,02/11/2018,NEIGHBOURHOODS AND ENVIRONMENT,BRITISH TELECOMMUNICATIONS PLC,02/11/2018,12.63 ,TELEPHONE EXPENDITURE,V001329303
ROCHDALE BOROUGH COUNCIL,02/11/2018,NEIGHBOURHOODS AND ENVIRONMENT,BRITISH TELECOMMUNICATIONS PLC,02/11/2018,12.63 ,TELEPHONE EXPENDITURE,V001329303
ROCHDALE BOROUGH COUNCIL,02/11/2018,NEIGHBOURHOODS AND ENVIRONMENT,BRITISH TELECOMMUNICATIONS PLC,02/11/2018,12.63 ,TELEPHONE EXPENDITURE,V001329303
ROCHDALE BOROUGH COUNCIL,02/11/2018,NEIGHBOURHOODS AND ENVIRONMENT,BRITISH TELECOMMUNICATIONS PLC,02/11/2018,12.63 ,TELEPHONE EXPENDITURE,V001329303
ROCHDALE BOROUGH COUNCIL,02/11/2018,NEIGHBOURHOODS AND ENVIRONMENT,BRITISH TELECOMMUNICATIONS PLC,02/11/2018,12.63 ,TELEPHONE EXPENDITURE,V001329303
ROCHDALE BOROUGH COUNCIL,02/11/2018,NEIGHBOURHOODS AND ENVIRONMENT,BRITISH TELECOMMUNICATIONS PLC,02/11/2018,12.63 ,TELEPHONE EXPENDITURE,V001329303
ROCHDALE BOROUGH COUNCIL,02/11/2018,NEIGHBOURHOODS AND ENVIRONMENT,BRITISH TELECOMMUNICATIONS PLC,02/11/2018,12.63 ,TELEPHONE EXPENDITURE,V001329303
ROCHDALE BOROUGH COUNCIL,02/11/2018,NEIGHBOURHOODS AND ENVIRONMENT,BRITISH TELECOMMUNICATIONS PLC,02/11/2018,12.63 ,TELEPHONE EXPENDITURE,V001329303
ROCHDALE BOROUGH COUNCIL,02/11/2018,NEIGHBOURHOODS AND ENVIRONMENT,BRITISH TELECOMMUNICATIONS PLC,02/11/2018,12.63 ,TELEPHONE EXPENDITURE,V001329303
ROCHDALE BOROUGH COUNCIL,02/11/2018,NEIGHBOURHOODS AND ENVIRONMENT,BRITISH TELECOMMUNICATIONS PLC,02/11/2018,12.63 ,TELEPHONE EXPENDITURE,V001329303
ROCHDALE BOROUGH COUNCIL,02/11/2018,NEIGHBOURHOODS AND ENVIRONMENT,BRITISH TELECOMMUNICATIONS PLC,02/11/2018,12.63 ,TELEPHONE EXPENDITURE,V001329303
ROCHDALE BOROUGH COUNCIL,02/11/2018,NEIGHBOURHOODS AND ENVIRONMENT,BRITISH TELECOMMUNICATIONS PLC,02/11/2018,12.63 ,TELEPHONE EXPENDITURE,V001329303
ROCHDALE BOROUGH COUNCIL,02/11/2018,NEIGHBOURHOODS AND ENVIRONMENT,BRITISH TELECOMMUNICATIONS PLC,02/11/2018,12.63 ,TELEPHONE EXPENDITURE,V001329303
ROCHDALE BOROUGH COUNCIL,02/11/2018,NEIGHBOURHOODS AND ENVIRONMENT,BRITISH TELECOMMUNICATIONS PLC,02/11/2018,12.63 ,TELEPHONE EXPENDITURE,V001329303
ROCHDALE BOROUGH COUNCIL,02/11/2018,NEIGHBOURHOODS AND ENVIRONMENT,BRITISH TELECOMMUNICATIONS PLC,02/11/2018,12.63 ,TELEPHONE EXPENDITURE,V001329303
ROCHDALE BOROUGH COUNCIL,02/11/2018,NEIGHBOURHOODS AND ENVIRONMENT,BRITISH TELECOMMUNICATIONS PLC,02/11/2018,12.63 ,TELEPHONE EXPENDITURE,V001329303
ROCHDALE BOROUGH COUNCIL,02/11/2018,NEIGHBOURHOODS AND ENVIRONMENT,BRITISH TELECOMMUNICATIONS PLC,02/11/2018,12.63 ,TELEPHONE EXPENDITURE,V001329303
ROCHDALE BOROUGH COUNCIL,02/11/2018,EARLY HELP AND SCHOOLS,BRITISH TELECOMMUNICATIONS PLC,02/11/2018,12.63 ,TELEPHONE EXPENDITURE,V001329303
ROCHDALE BOROUGH COUNCIL,02/11/2018,EARLY HELP AND SCHOOLS,BRITISH TELECOMMUNICATIONS PLC,02/11/2018,12.63 ,TELEPHONE EXPENDITURE,V001329303
ROCHDALE BOROUGH COUNCIL,02/11/2018,EARLY HELP AND SCHOOLS,BRITISH TELECOMMUNICATIONS PLC,02/11/2018,12.63 ,TELEPHONE EXPENDITURE,V001329303
ROCHDALE BOROUGH COUNCIL,02/11/2018,EARLY HELP AND SCHOOLS,BRITISH TELECOMMUNICATIONS PLC,02/11/2018,12.63 ,TELEPHONE EXPENDITURE,V001329303
ROCHDALE BOROUGH COUNCIL,02/11/2018,EARLY HELP AND SCHOOLS,BRITISH TELECOMMUNICATIONS PLC,02/11/2018,12.63 ,TELEPHONE EXPENDITURE,V001329303
ROCHDALE BOROUGH COUNCIL,02/11/2018,EARLY HELP AND SCHOOLS,BRITISH TELECOMMUNICATIONS PLC,02/11/2018,12.63 ,TELEPHONE EXPENDITURE,V001329303
ROCHDALE BOROUGH COUNCIL,02/11/2018,RESOURCES,BRITISH TELECOMMUNICATIONS PLC,02/11/2018,12.63 ,TELEPHONE EXPENDITURE,V001329303
ROCHDALE BOROUGH COUNCIL,02/11/2018,RESOURCES,BRITISH TELECOMMUNICATIONS PLC,02/11/2018,12.63 ,TELEPHONE EXPENDITURE,V001329303
ROCHDALE BOROUGH COUNCIL,02/11/2018,ADULT CARE LCO FUNCTIONS,BRITISH TELECOMMUNICATIONS PLC,02/11/2018,12.63 ,TELEPHONE EXPENDITURE,V001329303
ROCHDALE BOROUGH COUNCIL,02/11/2018,ADULT CARE LCO FUNCTIONS,BRITISH TELECOMMUNICATIONS PLC,02/11/2018,12.63 ,TELEPHONE EXPENDITURE,V001329303
ROCHDALE BOROUGH COUNCIL,02/11/2018,ADULT CARE LCO FUNCTIONS,BRITISH TELECOMMUNICATIONS PLC,02/11/2018,12.63 ,TELEPHONE EXPENDITURE,V001329303
ROCHDALE BOROUGH COUNCIL,02/11/2018,ADULT CARE LCO FUNCTIONS,BRITISH TELECOMMUNICATIONS PLC,02/11/2018,12.63 ,TELEPHONE EXPENDITURE,V001329303
ROCHDALE BOROUGH COUNCIL,02/11/2018,ADULT CARE LCO FUNCTIONS,BRITISH TELECOMMUNICATIONS PLC,02/11/2018,12.63 ,TELEPHONE EXPENDITURE,V001329303
ROCHDALE BOROUGH COUNCIL,02/11/2018,ADULT CARE LCO FUNCTIONS,BRITISH TELECOMMUNICATIONS PLC,02/11/2018,12.63 ,TELEPHONE EXPENDITURE,V001329303
ROCHDALE BOROUGH COUNCIL,02/11/2018,ADULT CARE LCO FUNCTIONS,BRITISH TELECOMMUNICATIONS PLC,02/11/2018,12.63 ,TELEPHONE EXPENDITURE,V001329303
ROCHDALE BOROUGH COUNCIL,02/11/2018,ADULT CARE LCO FUNCTIONS,BRITISH TELECOMMUNICATIONS PLC,02/11/2018,12.63 ,TELEPHONE EXPENDITURE,V001329303
ROCHDALE BOROUGH COUNCIL,02/11/2018,ECONOMY DIRECTORATE,BRITISH TELECOMMUNICATIONS PLC,02/11/2018,12.63 ,TELEPHONE EXPENDITURE,V001329303
ROCHDALE BOROUGH COUNCIL,02/11/2018,ECONOMY DIRECTORATE,BRITISH TELECOMMUNICATIONS PLC,02/11/2018,12.63 ,TELEPHONE EXPENDITURE,V001329303
ROCHDALE BOROUGH COUNCIL,02/11/2018,ECONOMY DIRECTORATE,BRITISH TELECOMMUNICATIONS PLC,02/11/2018,12.63 ,TELEPHONE EXPENDITURE,V001329303
ROCHDALE BOROUGH COUNCIL,02/11/2018,ECONOMY DIRECTORATE,BRITISH TELECOMMUNICATIONS PLC,02/11/2018,12.63 ,TELEPHONE EXPENDITURE,V001329303
ROCHDALE BOROUGH COUNCIL,02/11/2018,ECONOMY DIRECTORATE,BRITISH TELECOMMUNICATIONS PLC,02/11/2018,12.63 ,TELEPHONE EXPENDITURE,V001329303
ROCHDALE BOROUGH COUNCIL,02/11/2018,ECONOMY DIRECTORATE,BRITISH TELECOMMUNICATIONS PLC,02/11/2018,12.63 ,TELEPHONE EXPENDITURE,V001329303
ROCHDALE BOROUGH COUNCIL,02/11/2018,CHILDREN�S SOCIAL CARE,BRITISH TELECOMMUNICATIONS PLC,02/11/2018,12.63 ,TELEPHONE EXPENDITURE,V001329303
ROCHDALE BOROUGH COUNCIL,02/11/2018,NEIGHBOURHOODS AND ENVIRONMENT,BRITISH TELECOMMUNICATIONS PLC,02/11/2018,12.65 ,TELEPHONE EXPENDITURE,V001329303
ROCHDALE BOROUGH COUNCIL,02/11/2018,ECONOMY DIRECTORATE,BRITISH TELECOMMUNICATIONS PLC,02/11/2018,12.66 ,TELEPHONE EXPENDITURE,V001329303
ROCHDALE BOROUGH COUNCIL,02/11/2018,NEIGHBOURHOODS AND ENVIRONMENT,BRITISH TELECOMMUNICATIONS PLC,02/11/2018,12.70 ,TELEPHONE EXPENDITURE,V001329303
ROCHDALE BOROUGH COUNCIL,02/11/2018,NEIGHBOURHOODS AND ENVIRONMENT,BRITISH TELECOMMUNICATIONS PLC,02/11/2018,12.74 ,TELEPHONE EXPENDITURE,V001329303
ROCHDALE BOROUGH COUNCIL,02/11/2018,CHILDREN�S SOCIAL CARE,BRITISH TELECOMMUNICATIONS PLC,02/11/2018,12.82 ,TELEPHONE EXPENDITURE,V001329303
ROCHDALE BOROUGH COUNCIL,02/11/2018,EARLY HELP AND SCHOOLS,BRITISH TELECOMMUNICATIONS PLC,02/11/2018,13.75 ,TELEPHONE EXPENDITURE,V001329303
ROCHDALE BOROUGH COUNCIL,02/11/2018,NEIGHBOURHOODS AND ENVIRONMENT,BRITISH TELECOMMUNICATIONS PLC,02/11/2018,14.19 ,TELEPHONE EXPENDITURE,V001329303
ROCHDALE BOROUGH COUNCIL,02/11/2018,NEIGHBOURHOODS AND ENVIRONMENT,BRITISH TELECOMMUNICATIONS PLC,02/11/2018,14.19 ,TELEPHONE EXPENDITURE,V001329303
ROCHDALE BOROUGH COUNCIL,02/11/2018,CHILDREN�S SOCIAL CARE,BRITISH TELECOMMUNICATIONS PLC,02/11/2018,14.19 ,TELEPHONE EXPENDITURE,V001329303
ROCHDALE BOROUGH COUNCIL,02/11/2018,EARLY HELP AND SCHOOLS,BRITISH TELECOMMUNICATIONS PLC,02/11/2018,14.67 ,TELEPHONE EXPENDITURE,V001329303
ROCHDALE BOROUGH COUNCIL,02/11/2018,NEIGHBOURHOODS AND ENVIRONMENT,BRITISH TELECOMMUNICATIONS PLC,02/11/2018,15.12 ,TELEPHONE EXPENDITURE,V001329303
ROCHDALE BOROUGH COUNCIL,02/11/2018,CHILDREN�S SOCIAL CARE,BRITISH TELECOMMUNICATIONS PLC,02/11/2018,16.16 ,TELEPHONE EXPENDITURE,V001329303
ROCHDALE BOROUGH COUNCIL,02/11/2018,NEIGHBOURHOODS AND ENVIRONMENT,BRITISH TELECOMMUNICATIONS PLC,02/11/2018,16.63 ,TELEPHONE EXPENDITURE,V001329303
ROCHDALE BOROUGH COUNCIL,02/11/2018,ADULT CARE LCO FUNCTIONS,BRITISH TELECOMMUNICATIONS PLC,02/11/2018,16.63 ,TELEPHONE EXPENDITURE,V001329303
ROCHDALE BOROUGH COUNCIL,02/11/2018,EARLY HELP AND SCHOOLS,BRITISH TELECOMMUNICATIONS PLC,02/11/2018,16.64 ,TELEPHONE EXPENDITURE,V001329303
ROCHDALE BOROUGH COUNCIL,02/11/2018,NEIGHBOURHOODS AND ENVIRONMENT,BRITISH TELECOMMUNICATIONS PLC,02/11/2018,17.33 ,TELEPHONE EXPENDITURE,V001329303
ROCHDALE BOROUGH COUNCIL,02/11/2018,NEIGHBOURHOODS AND ENVIRONMENT,BRITISH TELECOMMUNICATIONS PLC,02/11/2018,18.00 ,TELEPHONE EXPENDITURE,V001329303
ROCHDALE BOROUGH COUNCIL,02/11/2018,ADULT CARE LCO FUNCTIONS,BRITISH TELECOMMUNICATIONS PLC,02/11/2018,18.00 ,TELEPHONE EXPENDITURE,V001329303
ROCHDALE BOROUGH COUNCIL,02/11/2018,CHILDREN�S SOCIAL CARE,BRITISH TELECOMMUNICATIONS PLC,02/11/2018,18.11 ,TELEPHONE EXPENDITURE,V001329303
ROCHDALE BOROUGH COUNCIL,02/11/2018,NEIGHBOURHOODS AND ENVIRONMENT,BRITISH TELECOMMUNICATIONS PLC,02/11/2018,19.32 ,TELEPHONE EXPENDITURE,V001329303
ROCHDALE BOROUGH COUNCIL,02/11/2018,NEIGHBOURHOODS AND ENVIRONMENT,BRITISH TELECOMMUNICATIONS PLC,02/11/2018,19.75 ,TELEPHONE EXPENDITURE,V001329303
ROCHDALE BOROUGH COUNCIL,02/11/2018,ADULT CARE LCO FUNCTIONS,BRITISH TELECOMMUNICATIONS PLC,02/11/2018,20.26 ,TELEPHONE EXPENDITURE,V001329303
ROCHDALE BOROUGH COUNCIL,02/11/2018,ADULT CARE LCO FUNCTIONS,BRITISH TELECOMMUNICATIONS PLC,02/11/2018,22.68 ,TELEPHONE EXPENDITURE,V001329303
ROCHDALE BOROUGH COUNCIL,02/11/2018,ADULT CARE LCO FUNCTIONS,BRITISH TELECOMMUNICATIONS PLC,02/11/2018,22.76 ,TELEPHONE EXPENDITURE,V001329303
ROCHDALE BOROUGH COUNCIL,02/11/2018,CHILDREN�S SOCIAL CARE,BRITISH TELECOMMUNICATIONS PLC,02/11/2018,23.70 ,TELEPHONE EXPENDITURE,V001329303
ROCHDALE BOROUGH COUNCIL,02/11/2018,ADULT CARE LCO FUNCTIONS,BRITISH TELECOMMUNICATIONS PLC,02/11/2018,25.49 ,TELEPHONE EXPENDITURE,V001329303
ROCHDALE BOROUGH COUNCIL,02/11/2018,RESOURCES,BRITISH TELECOMMUNICATIONS PLC,02/11/2018,25.90 ,TELEPHONE EXPENDITURE,V001329303
ROCHDALE BOROUGH COUNCIL,02/11/2018,ECONOMY DIRECTORATE,BRITISH TELECOMMUNICATIONS PLC,02/11/2018,25.90 ,TELEPHONE EXPENDITURE,V001329303
ROCHDALE BOROUGH COUNCIL,02/11/2018,CHILDREN�S SOCIAL CARE,BRITISH TELECOMMUNICATIONS PLC,02/11/2018,25.90 ,TELEPHONE EXPENDITURE,V001329303
ROCHDALE BOROUGH COUNCIL,02/11/2018,NEIGHBOURHOODS AND ENVIRONMENT,BRITISH TELECOMMUNICATIONS PLC,02/11/2018,28.60 ,TELEPHONE EXPENDITURE,V001329303
ROCHDALE BOROUGH COUNCIL,02/11/2018,EARLY HELP AND SCHOOLS,BRITISH TELECOMMUNICATIONS PLC,02/11/2018,30.47 ,TELEPHONE EXPENDITURE,V001329303
ROCHDALE BOROUGH COUNCIL,02/11/2018,NEIGHBOURHOODS AND ENVIRONMENT,BRITISH TELECOMMUNICATIONS PLC,02/11/2018,33.02 ,TELEPHONE EXPENDITURE,V001329303
ROCHDALE BOROUGH COUNCIL,02/11/2018,NEIGHBOURHOODS AND ENVIRONMENT,BRITISH TELECOMMUNICATIONS PLC,02/11/2018,33.34 ,TELEPHONE EXPENDITURE,V001329303
ROCHDALE BOROUGH COUNCIL,02/11/2018,NEIGHBOURHOODS AND ENVIRONMENT,BRITISH TELECOMMUNICATIONS PLC,02/11/2018,33.43 ,TELEPHONE EXPENDITURE,V001329303
ROCHDALE BOROUGH COUNCIL,02/11/2018,NEIGHBOURHOODS AND ENVIRONMENT,BRITISH TELECOMMUNICATIONS PLC,02/11/2018,33.47 ,TELEPHONE EXPENDITURE,V001329303
ROCHDALE BOROUGH COUNCIL,02/11/2018,NEIGHBOURHOODS AND ENVIRONMENT,BRITISH TELECOMMUNICATIONS PLC,02/11/2018,33.64 ,TELEPHONE EXPENDITURE,V001329303
ROCHDALE BOROUGH COUNCIL,02/11/2018,CHILDREN�S SOCIAL CARE,BRITISH TELECOMMUNICATIONS PLC,02/11/2018,33.81 ,TELEPHONE EXPENDITURE,V001329303
ROCHDALE BOROUGH COUNCIL,02/11/2018,NEIGHBOURHOODS AND ENVIRONMENT,BRITISH TELECOMMUNICATIONS PLC,02/11/2018,33.87 ,TELEPHONE EXPENDITURE,V001329303
ROCHDALE BOROUGH COUNCIL,02/11/2018,NEIGHBOURHOODS AND ENVIRONMENT,BRITISH TELECOMMUNICATIONS PLC,02/11/2018,33.93 ,TELEPHONE EXPENDITURE,V001329303
ROCHDALE BOROUGH COUNCIL,02/11/2018,NEIGHBOURHOODS AND ENVIRONMENT,BRITISH TELECOMMUNICATIONS PLC,02/11/2018,34.86 ,TELEPHONE EXPENDITURE,V001329303
ROCHDALE BOROUGH COUNCIL,02/11/2018,NEIGHBOURHOODS AND ENVIRONMENT,BRITISH TELECOMMUNICATIONS PLC,02/11/2018,34.94 ,TELEPHONE EXPENDITURE,V001329303
ROCHDALE BOROUGH COUNCIL,02/11/2018,NEIGHBOURHOODS AND ENVIRONMENT,BRITISH TELECOMMUNICATIONS PLC,02/11/2018,35.24 ,TELEPHONE EXPENDITURE,V001329303
ROCHDALE BOROUGH COUNCIL,02/11/2018,EARLY HELP AND SCHOOLS,BRITISH TELECOMMUNICATIONS PLC,02/11/2018,35.82 ,TELEPHONE EXPENDITURE,V001329303
ROCHDALE BOROUGH COUNCIL,02/11/2018,EARLY HELP AND SCHOOLS,BRITISH TELECOMMUNICATIONS PLC,02/11/2018,35.90 ,TELEPHONE EXPENDITURE,V001329303
ROCHDALE BOROUGH COUNCIL,02/11/2018,NEIGHBOURHOODS AND ENVIRONMENT,BRITISH TELECOMMUNICATIONS PLC,02/11/2018,36.07 ,TELEPHONE EXPENDITURE,V001329303
ROCHDALE BOROUGH COUNCIL,02/11/2018,NEIGHBOURHOODS AND ENVIRONMENT,BRITISH TELECOMMUNICATIONS PLC,02/11/2018,36.64 ,TELEPHONE EXPENDITURE,V001329303
ROCHDALE BOROUGH COUNCIL,02/11/2018,ECONOMY DIRECTORATE,BRITISH TELECOMMUNICATIONS PLC,02/11/2018,37.02 ,TELEPHONE EXPENDITURE,V001329303
ROCHDALE BOROUGH COUNCIL,02/11/2018,NEIGHBOURHOODS AND ENVIRONMENT,BRITISH TELECOMMUNICATIONS PLC,02/11/2018,37.27 ,TELEPHONE EXPENDITURE,V001329303
ROCHDALE BOROUGH COUNCIL,02/11/2018,ADULT CARE LCO FUNCTIONS,BRITISH TELECOMMUNICATIONS PLC,02/11/2018,37.64 ,TELEPHONE EXPENDITURE,V001329303
ROCHDALE BOROUGH COUNCIL,02/11/2018,ADULT CARE LCO FUNCTIONS,BRITISH TELECOMMUNICATIONS PLC,02/11/2018,37.89 ,TELEPHONE EXPENDITURE,V001329303
ROCHDALE BOROUGH COUNCIL,02/11/2018,NEIGHBOURHOODS AND ENVIRONMENT,BRITISH TELECOMMUNICATIONS PLC,02/11/2018,38.37 ,TELEPHONE EXPENDITURE,V001329303
ROCHDALE BOROUGH COUNCIL,02/11/2018,NEIGHBOURHOODS AND ENVIRONMENT,BRITISH TELECOMMUNICATIONS PLC,02/11/2018,39.27 ,TELEPHONE EXPENDITURE,V001329303
ROCHDALE BOROUGH COUNCIL,02/11/2018,NEIGHBOURHOODS AND ENVIRONMENT,BRITISH TELECOMMUNICATIONS PLC,02/11/2018,40.67 ,TELEPHONE EXPENDITURE,V001329303
ROCHDALE BOROUGH COUNCIL,02/11/2018,NEIGHBOURHOODS AND ENVIRONMENT,BRITISH TELECOMMUNICATIONS PLC,02/11/2018,43.90 ,TELEPHONE EXPENDITURE,V001329303
ROCHDALE BOROUGH COUNCIL,02/11/2018,NEIGHBOURHOODS AND ENVIRONMENT,BRITISH TELECOMMUNICATIONS PLC,02/11/2018,46.29 ,TELEPHONE EXPENDITURE,V001329303
ROCHDALE BOROUGH COUNCIL,02/11/2018,NEIGHBOURHOODS AND ENVIRONMENT,BRITISH TELECOMMUNICATIONS PLC,02/11/2018,49.94 ,TELEPHONE EXPENDITURE,V001329303
ROCHDALE BOROUGH COUNCIL,02/11/2018,CHILDREN�S SOCIAL CARE,BRITISH TELECOMMUNICATIONS PLC,02/11/2018,58.90 ,TELEPHONE EXPENDITURE,V001329303
ROCHDALE BOROUGH COUNCIL,02/11/2018,ECONOMY DIRECTORATE,BRITISH TELECOMMUNICATIONS PLC,02/11/2018,61.93 ,TELEPHONE EXPENDITURE,V001329303
ROCHDALE BOROUGH COUNCIL,02/11/2018,EARLY HELP AND SCHOOLS,BRITISH TELECOMMUNICATIONS PLC,02/11/2018,69.78 ,TELEPHONE EXPENDITURE,V001329303
ROCHDALE BOROUGH COUNCIL,02/11/2018,EARLY HELP AND SCHOOLS,BRITISH TELECOMMUNICATIONS PLC,02/11/2018,76.36 ,TELEPHONE EXPENDITURE,V001329303
ROCHDALE BOROUGH COUNCIL,02/11/2018,ECONOMY DIRECTORATE,BRITISH TELECOMMUNICATIONS PLC,02/11/2018,101.93 ,TELEPHONE EXPENDITURE,V001329303
ROCHDALE BOROUGH COUNCIL,02/11/2018,NEIGHBOURHOODS AND ENVIRONMENT,BRITISH TELECOMMUNICATIONS PLC,02/11/2018,102.78 ,TELEPHONE EXPENDITURE,V001329303
ROCHDALE BOROUGH COUNCIL,02/11/2018,CHILDREN�S SOCIAL CARE,BRITISH TELECOMMUNICATIONS PLC,02/11/2018,266.14 ,TELEPHONE EXPENDITURE,V001329303
ROCHDALE BOROUGH COUNCIL,02/11/2018,NEIGHBOURHOODS AND ENVIRONMENT,BRITISH TELECOMMUNICATIONS PLC,02/11/2018,1772.00 ,TELEPHONE EXPENDITURE,V001329303
ROCHDALE BOROUGH COUNCIL,06/11/2018,ECONOMY DIRECTORATE,REDACTED - PERSONAL DATA,06/11/2018,60.00 ,SUPPLIES AND SERVICES PROVISION,V001329323
ROCHDALE BOROUGH COUNCIL,06/11/2018,NEIGHBOURHOODS AND ENVIRONMENT,ELLIOTT BUSINESS EQUIPMENT AND SCALES LTD,06/11/2018,212.00 ,PRINTING & STATIONERY,V001329326
ROCHDALE BOROUGH COUNCIL,15/11/2018,NEIGHBOURHOODS AND ENVIRONMENT,YORKSHIRE PURCHASING ORGANISATION,15/11/2018,5.19 ,EQUIPMENT - GENERAL,V001329328
ROCHDALE BOROUGH COUNCIL,06/11/2018,PROPERTY AND HIGHWAYS,DDH FABRICATIONS LTD,06/11/2018,220.00 ,BUILDING MATERIALS,V001329329
ROCHDALE BOROUGH COUNCIL,06/11/2018,PROPERTY AND HIGHWAYS,DDH FABRICATIONS LTD,06/11/2018,140.00 ,BUILDING MATERIALS,V001329330
ROCHDALE BOROUGH COUNCIL,06/11/2018,NEIGHBOURHOODS AND ENVIRONMENT,REDACTED - PERSONAL DATA,06/11/2018,60.00 ,ACTIVITIES,V001329343
ROCHDALE BOROUGH COUNCIL,06/11/2018,NEIGHBOURHOODS AND ENVIRONMENT,REDACTED - PERSONAL DATA,06/11/2018,70.00 ,ACTIVITIES,V001329343
ROCHDALE BOROUGH COUNCIL,01/11/2018,NEIGHBOURHOODS AND ENVIRONMENT,DICK WHITTINGTON GUEST HOUSE,01/11/2018,220.00 ,ACCOMMODATION,V001329350
ROCHDALE BOROUGH COUNCIL,01/11/2018,CHILDREN�S SOCIAL CARE,FUSION CARE,01/11/2018,750.00 ,TRAVELLING GENERAL EXPENSES,V001329452
ROCHDALE BOROUGH COUNCIL,02/11/2018,CHILDREN�S SOCIAL CARE,INDEPENDENT TOGETHER LTD,02/11/2018,1396.43 ,YOUNG PEOPLES RENTS,V001329471
ROCHDALE BOROUGH COUNCIL,07/11/2018,CHILDREN�S SOCIAL CARE,LEEDS CITY COUNCIL,07/11/2018,5112.79 ,FOSTER PARENTS BASIC ALLOWANCE,V001329513
ROCHDALE BOROUGH COUNCIL,02/11/2018,CHILDREN�S SOCIAL CARE,NORTHERN COMMUNITY PATHWAYS LTD,02/11/2018,8694.28 ,YOUNG PEOPLES RENTS,V001329615
ROCHDALE BOROUGH COUNCIL,01/11/2018,CHILDREN�S SOCIAL CARE,CARE 4 CHILDREN RESIDENTIAL SERVICES,01/11/2018,588.60 ,PUBLIC TRANSPORT,V001329731
ROCHDALE BOROUGH COUNCIL,02/11/2018,CHILDREN�S SOCIAL CARE,CATS SOLUTIONS,02/11/2018,31.01 ,ACTIVITIES,V001329798
ROCHDALE BOROUGH COUNCIL,02/11/2018,EARLY HELP AND SCHOOLS,ESSENTIAL PAPERS LIMITED,02/11/2018,19.96 ,EQUIPMENT - GENERAL,V001329811
ROCHDALE BOROUGH COUNCIL,02/11/2018,EARLY HELP AND SCHOOLS,ESSENTIAL PAPERS LIMITED,02/11/2018,9.98 ,EQUIPMENT - GENERAL,V001329817
ROCHDALE BOROUGH COUNCIL,02/11/2018,NEIGHBOURHOODS AND ENVIRONMENT,LANCASHIRE LOCK AND SAFE COMPANY LIMITED,02/11/2018,12.00 ,EQUIPMENT - GENERAL,V001330030
ROCHDALE BOROUGH COUNCIL,05/11/2018,ECONOMY DIRECTORATE,IRWELL STREET METALS,05/11/2018,91.94 ,REFUSE DISPOSAL,V001330038
ROCHDALE BOROUGH COUNCIL,05/11/2018,ECONOMY DIRECTORATE,IRWELL STREET METALS,05/11/2018,144.26 ,REFUSE DISPOSAL,V001330039
ROCHDALE BOROUGH COUNCIL,05/11/2018,ECONOMY DIRECTORATE,IRWELL STREET METALS,05/11/2018,162.64 ,REFUSE DISPOSAL,V001330040
ROCHDALE BOROUGH COUNCIL,06/11/2018,PROPERTY AND HIGHWAYS,ELECTRIC CENTER,06/11/2018,235.86 ,BUILDING MATERIALS,V001330041
ROCHDALE BOROUGH COUNCIL,06/11/2018,NEIGHBOURHOODS AND ENVIRONMENT,BANNER GROUP LIMITED,06/11/2018,20.82 ,PRINTING & STATIONERY,V001330042
ROCHDALE BOROUGH COUNCIL,06/11/2018,CHILDREN�S SOCIAL CARE,DAISY COMMUNICATIONS LTD,06/11/2018,27.00 ,MOBILE PHONE,V001330043
ROCHDALE BOROUGH COUNCIL,07/11/2018,PROPERTY AND HIGHWAYS,HOWDENS JOINERY CO LIMITED,07/11/2018,80.52 ,BUILDING MATERIALS,V001330045
ROCHDALE BOROUGH COUNCIL,06/11/2018,NEIGHBOURHOODS AND ENVIRONMENT,EURO LABEL PRINTERS LIMITED,06/11/2018,1956.00 ,PUBLICITY,V001330048
ROCHDALE BOROUGH COUNCIL,06/11/2018,NEIGHBOURHOODS AND ENVIRONMENT,EURO LABEL PRINTERS LIMITED,06/11/2018,406.00 ,PUBLICITY,V001330049
ROCHDALE BOROUGH COUNCIL,02/11/2018,CHILDREN�S SOCIAL CARE,SPECSAVERS OPTICIANS,02/11/2018,20.00 ,EYE TESTS  VDU USERS,V001330050
ROCHDALE BOROUGH COUNCIL,02/11/2018,NEIGHBOURHOODS AND ENVIRONMENT,SPECSAVERS OPTICIANS,02/11/2018,20.00 ,EYE TESTS  VDU USERS,V001330051
ROCHDALE BOROUGH COUNCIL,02/11/2018,NEIGHBOURHOODS AND ENVIRONMENT,SPECSAVERS OPTICIANS,02/11/2018,20.00 ,EYE TESTS  VDU USERS,V001330052
ROCHDALE BOROUGH COUNCIL,02/11/2018,NEIGHBOURHOODS AND ENVIRONMENT,REDACTED - PERSONAL DATA,02/11/2018,298.70 ,TAXI HIRE,V001330055
ROCHDALE BOROUGH COUNCIL,12/11/2018,NEIGHBOURHOODS AND ENVIRONMENT,OLYMPIC EXECUTIVE TRAVEL,12/11/2018,2163.06 ,TAXI HIRE,V001330061
ROCHDALE BOROUGH COUNCIL,01/11/2018,EARLY HELP AND SCHOOLS,BANNER GROUP LIMITED,01/11/2018,3.32 ,PRINTING & STATIONERY,V001330069
ROCHDALE BOROUGH COUNCIL,01/11/2018,EARLY HELP AND SCHOOLS,BANNER GROUP LIMITED,01/11/2018,3.93 ,PRINTING & STATIONERY,V001330069
ROCHDALE BOROUGH COUNCIL,06/11/2018,EARLY HELP AND SCHOOLS,AXIOM EDUCATION ROCHDALE LIMITED,06/11/2018,1703.62 ,"DEV CAP - NEW CONSTRUCTION,CONVERSION",V001330070
ROCHDALE BOROUGH COUNCIL,06/11/2018,EARLY HELP AND SCHOOLS,AXIOM EDUCATION ROCHDALE LIMITED,06/11/2018,6645.00 ,"DEV CAP - NEW CONSTRUCTION,CONVERSION",V001330072
ROCHDALE BOROUGH COUNCIL,01/11/2018,EARLY HELP AND SCHOOLS,BANNER GROUP LIMITED,01/11/2018,17.78 ,PRINTING & STATIONERY,V001330075
ROCHDALE BOROUGH COUNCIL,01/11/2018,EARLY HELP AND SCHOOLS,BANNER GROUP LIMITED,01/11/2018,0.56 ,PRINTING & STATIONERY,V001330076
ROCHDALE BOROUGH COUNCIL,01/11/2018,EARLY HELP AND SCHOOLS,BANNER GROUP LIMITED,01/11/2018,1.14 ,PRINTING & STATIONERY,V001330076
ROCHDALE BOROUGH COUNCIL,01/11/2018,EARLY HELP AND SCHOOLS,BANNER GROUP LIMITED,01/11/2018,2.20 ,PRINTING & STATIONERY,V001330076
ROCHDALE BOROUGH COUNCIL,01/11/2018,EARLY HELP AND SCHOOLS,BANNER GROUP LIMITED,01/11/2018,2.45 ,PRINTING & STATIONERY,V001330076
ROCHDALE BOROUGH COUNCIL,01/11/2018,EARLY HELP AND SCHOOLS,BANNER GROUP LIMITED,01/11/2018,2.58 ,PRINTING & STATIONERY,V001330076
ROCHDALE BOROUGH COUNCIL,01/11/2018,EARLY HELP AND SCHOOLS,BANNER GROUP LIMITED,01/11/2018,2.82 ,PRINTING & STATIONERY,V001330076
ROCHDALE BOROUGH COUNCIL,01/11/2018,EARLY HELP AND SCHOOLS,BANNER GROUP LIMITED,01/11/2018,2.98 ,PRINTING & STATIONERY,V001330076
ROCHDALE BOROUGH COUNCIL,01/11/2018,EARLY HELP AND SCHOOLS,BANNER GROUP LIMITED,01/11/2018,3.68 ,PRINTING & STATIONERY,V001330076
ROCHDALE BOROUGH COUNCIL,01/11/2018,EARLY HELP AND SCHOOLS,BANNER GROUP LIMITED,01/11/2018,3.90 ,PRINTING & STATIONERY,V001330076
ROCHDALE BOROUGH COUNCIL,01/11/2018,EARLY HELP AND SCHOOLS,BANNER GROUP LIMITED,01/11/2018,4.04 ,PRINTING & STATIONERY,V001330076
ROCHDALE BOROUGH COUNCIL,01/11/2018,EARLY HELP AND SCHOOLS,BANNER GROUP LIMITED,01/11/2018,4.60 ,PRINTING & STATIONERY,V001330076
ROCHDALE BOROUGH COUNCIL,01/11/2018,EARLY HELP AND SCHOOLS,BANNER GROUP LIMITED,01/11/2018,8.30 ,PRINTING & STATIONERY,V001330076
ROCHDALE BOROUGH COUNCIL,01/11/2018,EARLY HELP AND SCHOOLS,BANNER GROUP LIMITED,01/11/2018,12.82 ,PRINTING & STATIONERY,V001330076
ROCHDALE BOROUGH COUNCIL,01/11/2018,EARLY HELP AND SCHOOLS,BANNER GROUP LIMITED,01/11/2018,14.20 ,PRINTING & STATIONERY,V001330076
ROCHDALE BOROUGH COUNCIL,01/11/2018,EARLY HELP AND SCHOOLS,BANNER GROUP LIMITED,01/11/2018,145.00 ,PRINTING & STATIONERY,V001330076
ROCHDALE BOROUGH COUNCIL,06/11/2018,EARLY HELP AND SCHOOLS,YORKSHIRE PURCHASING ORGANISATION,06/11/2018,4.45 ,PRINTING & STATIONERY,V001330077
ROCHDALE BOROUGH COUNCIL,01/11/2018,EARLY HELP AND SCHOOLS,BANNER GROUP LIMITED,01/11/2018,1.84 ,PRINTING & STATIONERY,V001330078
ROCHDALE BOROUGH COUNCIL,01/11/2018,EARLY HELP AND SCHOOLS,BANNER GROUP LIMITED,01/11/2018,1.96 ,PRINTING & STATIONERY,V001330078
ROCHDALE BOROUGH COUNCIL,01/11/2018,EARLY HELP AND SCHOOLS,BANNER GROUP LIMITED,01/11/2018,2.98 ,PRINTING & STATIONERY,V001330078
ROCHDALE BOROUGH COUNCIL,01/11/2018,EARLY HELP AND SCHOOLS,BANNER GROUP LIMITED,01/11/2018,6.41 ,PRINTING & STATIONERY,V001330078
ROCHDALE BOROUGH COUNCIL,01/11/2018,EARLY HELP AND SCHOOLS,BANNER GROUP LIMITED,01/11/2018,8.08 ,PRINTING & STATIONERY,V001330078
ROCHDALE BOROUGH COUNCIL,01/11/2018,EARLY HELP AND SCHOOLS,BANNER GROUP LIMITED,01/11/2018,38.90 ,PRINTING & STATIONERY,V001330078
ROCHDALE BOROUGH COUNCIL,01/11/2018,EARLY HELP AND SCHOOLS,SAFEGARD SOLUTIONS LTD,01/11/2018,269.00 ,EQUIPMENT - GENERAL,V001330079
ROCHDALE BOROUGH COUNCIL,02/11/2018,EARLY HELP AND SCHOOLS,BANNER GROUP LIMITED,02/11/2018,0.92 ,PRINTING & STATIONERY,V001330080
ROCHDALE BOROUGH COUNCIL,02/11/2018,EARLY HELP AND SCHOOLS,BANNER GROUP LIMITED,02/11/2018,5.15 ,PRINTING & STATIONERY,V001330080
ROCHDALE BOROUGH COUNCIL,02/11/2018,EARLY HELP AND SCHOOLS,BANNER GROUP LIMITED,02/11/2018,9.80 ,PRINTING & STATIONERY,V001330080
ROCHDALE BOROUGH COUNCIL,02/11/2018,EARLY HELP AND SCHOOLS,BANNER GROUP LIMITED,02/11/2018,22.84 ,PRINTING & STATIONERY,V001330080
ROCHDALE BOROUGH COUNCIL,02/11/2018,NEIGHBOURHOODS AND ENVIRONMENT,NO GRAFFITI LTD,02/11/2018,118.00 ,CONTRACTED SERVICES,V001330084
ROCHDALE BOROUGH COUNCIL,01/11/2018,NEIGHBOURHOODS AND ENVIRONMENT,NO GRAFFITI LTD,01/11/2018,1500.00 ,CONTRACTED SERVICES,V001330086
ROCHDALE BOROUGH COUNCIL,01/11/2018,ECONOMY DIRECTORATE,BANNER GROUP LIMITED,01/11/2018,0.56 ,PRINTING & STATIONERY,V001330087
ROCHDALE BOROUGH COUNCIL,01/11/2018,ECONOMY DIRECTORATE,BANNER GROUP LIMITED,01/11/2018,1.96 ,PRINTING & STATIONERY,V001330087
ROCHDALE BOROUGH COUNCIL,01/11/2018,ECONOMY DIRECTORATE,BANNER GROUP LIMITED,01/11/2018,1.96 ,PRINTING & STATIONERY,V001330087
ROCHDALE BOROUGH COUNCIL,01/11/2018,ECONOMY DIRECTORATE,BANNER GROUP LIMITED,01/11/2018,2.06 ,PRINTING & STATIONERY,V001330087
ROCHDALE BOROUGH COUNCIL,01/11/2018,ECONOMY DIRECTORATE,BANNER GROUP LIMITED,01/11/2018,2.30 ,PRINTING & STATIONERY,V001330087
ROCHDALE BOROUGH COUNCIL,01/11/2018,ECONOMY DIRECTORATE,BANNER GROUP LIMITED,01/11/2018,2.55 ,PRINTING & STATIONERY,V001330087
ROCHDALE BOROUGH COUNCIL,01/11/2018,ECONOMY DIRECTORATE,BANNER GROUP LIMITED,01/11/2018,5.69 ,PRINTING & STATIONERY,V001330087
ROCHDALE BOROUGH COUNCIL,01/11/2018,ECONOMY DIRECTORATE,BANNER GROUP LIMITED,01/11/2018,7.62 ,PRINTING & STATIONERY,V001330087
ROCHDALE BOROUGH COUNCIL,01/11/2018,ECONOMY DIRECTORATE,BANNER GROUP LIMITED,01/11/2018,9.20 ,PRINTING & STATIONERY,V001330087
ROCHDALE BOROUGH COUNCIL,01/11/2018,ECONOMY DIRECTORATE,BANNER GROUP LIMITED,01/11/2018,9.60 ,PRINTING & STATIONERY,V001330087
ROCHDALE BOROUGH COUNCIL,01/11/2018,ECONOMY DIRECTORATE,BANNER GROUP LIMITED,01/11/2018,15.56 ,PRINTING & STATIONERY,V001330087
ROCHDALE BOROUGH COUNCIL,01/11/2018,ECONOMY DIRECTORATE,BANNER GROUP LIMITED,01/11/2018,22.16 ,PRINTING & STATIONERY,V001330087
ROCHDALE BOROUGH COUNCIL,01/11/2018,NEIGHBOURHOODS AND ENVIRONMENT,LINDUM SEEDED TURF LTD,01/11/2018,390.00 ,EQUIPMENT - GENERAL,V001330090
ROCHDALE BOROUGH COUNCIL,02/11/2018,NEIGHBOURHOODS AND ENVIRONMENT,VIZWEAR,02/11/2018,242.52 ,"CLOTHES, UNIFORM AND LAUNDRY",V001330096
ROCHDALE BOROUGH COUNCIL,02/11/2018,NEIGHBOURHOODS AND ENVIRONMENT,VIZWEAR,02/11/2018,322.90 ,"CLOTHES, UNIFORM AND LAUNDRY",V001330096
ROCHDALE BOROUGH COUNCIL,02/11/2018,NEIGHBOURHOODS AND ENVIRONMENT,VIZWEAR,02/11/2018,387.60 ,"CLOTHES, UNIFORM AND LAUNDRY",V001330096
ROCHDALE BOROUGH COUNCIL,02/11/2018,NEIGHBOURHOODS AND ENVIRONMENT,VIZWEAR,02/11/2018,403.75 ,"CLOTHES, UNIFORM AND LAUNDRY",V001330096
ROCHDALE BOROUGH COUNCIL,01/11/2018,NEIGHBOURHOODS AND ENVIRONMENT,BANNER GROUP LIMITED,01/11/2018,26.00 ,PRINTING & STATIONERY,V001330100
ROCHDALE BOROUGH COUNCIL,02/11/2018,NEIGHBOURHOODS AND ENVIRONMENT,ARCO GROUP LIMITED,02/11/2018,15.24 ,"CLOTHES, UNIFORM AND LAUNDRY",V001330101
ROCHDALE BOROUGH COUNCIL,02/11/2018,NEIGHBOURHOODS AND ENVIRONMENT,ARCO GROUP LIMITED,02/11/2018,8.49 ,"CLOTHES, UNIFORM AND LAUNDRY",V001330102
ROCHDALE BOROUGH COUNCIL,02/11/2018,NEIGHBOURHOODS AND ENVIRONMENT,ARCO GROUP LIMITED,02/11/2018,29.58 ,"CLOTHES, UNIFORM AND LAUNDRY",V001330102
ROCHDALE BOROUGH COUNCIL,02/11/2018,NEIGHBOURHOODS AND ENVIRONMENT,ARCO GROUP LIMITED,02/11/2018,41.91 ,"CLOTHES, UNIFORM AND LAUNDRY",V001330102
ROCHDALE BOROUGH COUNCIL,02/11/2018,NEIGHBOURHOODS AND ENVIRONMENT,GROUNDWORK LANDSCAPES LIMITED,02/11/2018,1053.72 ,EQUIPMENT - GENERAL,V001330103
ROCHDALE BOROUGH COUNCIL,06/11/2018,NEIGHBOURHOODS AND ENVIRONMENT,DEBORAH MCKENNA LTD,06/11/2018,875.00 ,EVENTS,V001330105
ROCHDALE BOROUGH COUNCIL,02/11/2018,NEIGHBOURHOODS AND ENVIRONMENT,ROLAND BARNES MAINTENANCE,02/11/2018,12.25 ,VEHICLE MAINTENANCE,V001330106
ROCHDALE BOROUGH COUNCIL,02/11/2018,NEIGHBOURHOODS AND ENVIRONMENT,ROLAND BARNES MAINTENANCE,02/11/2018,19.90 ,VEHICLE MAINTENANCE,V001330106
ROCHDALE BOROUGH COUNCIL,02/11/2018,NEIGHBOURHOODS AND ENVIRONMENT,ROLAND BARNES MAINTENANCE,02/11/2018,25.80 ,VEHICLE MAINTENANCE,V001330106
ROCHDALE BOROUGH COUNCIL,02/11/2018,NEIGHBOURHOODS AND ENVIRONMENT,ROLAND BARNES MAINTENANCE,02/11/2018,63.22 ,VEHICLE MAINTENANCE,V001330106
ROCHDALE BOROUGH COUNCIL,02/11/2018,NEIGHBOURHOODS AND ENVIRONMENT,ROLAND BARNES MAINTENANCE,02/11/2018,104.63 ,EQUIPMENT - GENERAL,V001330106
ROCHDALE BOROUGH COUNCIL,02/11/2018,NEIGHBOURHOODS AND ENVIRONMENT,ROLAND BARNES MAINTENANCE,02/11/2018,110.80 ,TRANSACTIONS-EXPENDITURE,V001330106
ROCHDALE BOROUGH COUNCIL,07/11/2018,NEIGHBOURHOODS AND ENVIRONMENT,F R SHARROCK LIMITED,07/11/2018,16.00 ,EQUIPMENT - GENERAL,V001330107
ROCHDALE BOROUGH COUNCIL,07/11/2018,NEIGHBOURHOODS AND ENVIRONMENT,F R SHARROCK LIMITED,07/11/2018,39.18 ,EQUIPMENT - GENERAL,V001330107
ROCHDALE BOROUGH COUNCIL,07/11/2018,NEIGHBOURHOODS AND ENVIRONMENT,F R SHARROCK LIMITED,07/11/2018,130.61 ,EQUIPMENT - GENERAL,V001330107
ROCHDALE BOROUGH COUNCIL,07/11/2018,NEIGHBOURHOODS AND ENVIRONMENT,F R SHARROCK LIMITED,07/11/2018,35.47 ,EQUIPMENT - GENERAL,V001330108
ROCHDALE BOROUGH COUNCIL,07/11/2018,NEIGHBOURHOODS AND ENVIRONMENT,F R SHARROCK LIMITED,07/11/2018,49.01 ,EQUIPMENT - GENERAL,V001330108
ROCHDALE BOROUGH COUNCIL,07/11/2018,NEIGHBOURHOODS AND ENVIRONMENT,F R SHARROCK LIMITED,07/11/2018,12.50 ,EQUIPMENT - GENERAL,V001330109
ROCHDALE BOROUGH COUNCIL,07/11/2018,NEIGHBOURHOODS AND ENVIRONMENT,F R SHARROCK LIMITED,07/11/2018,334.97 ,EQUIPMENT - GENERAL,V001330109
ROCHDALE BOROUGH COUNCIL,07/11/2018,NEIGHBOURHOODS AND ENVIRONMENT,F R SHARROCK LIMITED,07/11/2018,108.80 ,EQUIPMENT - GENERAL,V001330110
ROCHDALE BOROUGH COUNCIL,07/11/2018,NEIGHBOURHOODS AND ENVIRONMENT,F R SHARROCK LIMITED,07/11/2018,12.50 ,VEHICLE MAINTENANCE,V001330111
ROCHDALE BOROUGH COUNCIL,07/11/2018,NEIGHBOURHOODS AND ENVIRONMENT,F R SHARROCK LIMITED,07/11/2018,114.66 ,VEHICLE MAINTENANCE,V001330111
ROCHDALE BOROUGH COUNCIL,07/11/2018,NEIGHBOURHOODS AND ENVIRONMENT,F R SHARROCK LIMITED,07/11/2018,201.92 ,EQUIPMENT - GENERAL,V001330112
ROCHDALE BOROUGH COUNCIL,07/11/2018,NEIGHBOURHOODS AND ENVIRONMENT,F R SHARROCK LIMITED,07/11/2018,93.40 ,EQUIPMENT - GENERAL,V001330113
ROCHDALE BOROUGH COUNCIL,07/11/2018,NEIGHBOURHOODS AND ENVIRONMENT,F R SHARROCK LIMITED,07/11/2018,4.51 ,EQUIPMENT - GENERAL,V001330114
ROCHDALE BOROUGH COUNCIL,07/11/2018,NEIGHBOURHOODS AND ENVIRONMENT,F R SHARROCK LIMITED,07/11/2018,6.38 ,EQUIPMENT - GENERAL,V001330114
ROCHDALE BOROUGH COUNCIL,07/11/2018,NEIGHBOURHOODS AND ENVIRONMENT,F R SHARROCK LIMITED,07/11/2018,9.32 ,EQUIPMENT - GENERAL,V001330114
ROCHDALE BOROUGH COUNCIL,07/11/2018,NEIGHBOURHOODS AND ENVIRONMENT,F R SHARROCK LIMITED,07/11/2018,128.32 ,EQUIPMENT - GENERAL,V001330114
ROCHDALE BOROUGH COUNCIL,02/11/2018,ECONOMY DIRECTORATE,BANNER GROUP LIMITED,02/11/2018,5.52 ,PRINTING & STATIONERY,V001330115
ROCHDALE BOROUGH COUNCIL,02/11/2018,EARLY HELP AND SCHOOLS,CRESTA WORLD TRAVEL LIMITED,02/11/2018,92.10 ,PUBLIC TRANSPORT,V001330133
ROCHDALE BOROUGH COUNCIL,02/11/2018,NEIGHBOURHOODS AND ENVIRONMENT,REDACTED - PERSONAL DATA,02/11/2018,100.00 ,EVENTS,V001330134
ROCHDALE BOROUGH COUNCIL,21/11/2018,CHILDREN�S SOCIAL CARE,BURY MBC,21/11/2018,13016.00 ,CONSULTANT FEES,V001330137
ROCHDALE BOROUGH COUNCIL,07/11/2018,NEIGHBOURHOODS AND ENVIRONMENT,TRAVIS PERKINS TRADING CO LTD,07/11/2018,47.38 ,EQUIPMENT - GENERAL,V001330180
ROCHDALE BOROUGH COUNCIL,07/11/2018,NEIGHBOURHOODS AND ENVIRONMENT,PHOENIX SOFTWARE LIMITED,07/11/2018,290.00 ,SOFTWARE,V001330212
ROCHDALE BOROUGH COUNCIL,07/11/2018,NEIGHBOURHOODS AND ENVIRONMENT,PHOENIX SOFTWARE LIMITED,07/11/2018,290.00 ,SOFTWARE,V001330212
ROCHDALE BOROUGH COUNCIL,07/11/2018,NEIGHBOURHOODS AND ENVIRONMENT,PHOENIX SOFTWARE LIMITED,07/11/2018,290.00 ,SOFTWARE,V001330212
ROCHDALE BOROUGH COUNCIL,07/11/2018,ECONOMY DIRECTORATE,PHOENIX SOFTWARE LIMITED,07/11/2018,290.00 ,SOFTWARE,V001330212
ROCHDALE BOROUGH COUNCIL,07/11/2018,RESOURCES,PHOENIX SOFTWARE LIMITED,07/11/2018,290.00 ,SOFTWARE,V001330212
ROCHDALE BOROUGH COUNCIL,07/11/2018,NEIGHBOURHOODS AND ENVIRONMENT,PHOENIX SOFTWARE LIMITED,07/11/2018,290.00 ,SOFTWARE,V001330212
ROCHDALE BOROUGH COUNCIL,07/11/2018,EARLY HELP AND SCHOOLS,PHOENIX SOFTWARE LIMITED,07/11/2018,290.00 ,SOFTWARE,V001330212
ROCHDALE BOROUGH COUNCIL,07/11/2018,EARLY HELP AND SCHOOLS,PHOENIX SOFTWARE LIMITED,07/11/2018,580.00 ,SOFTWARE,V001330212
ROCHDALE BOROUGH COUNCIL,07/11/2018,PUBLIC HEALTH,PHOENIX SOFTWARE LIMITED,07/11/2018,580.00 ,SOFTWARE,V001330212
ROCHDALE BOROUGH COUNCIL,07/11/2018,NEIGHBOURHOODS AND ENVIRONMENT,PHOENIX SOFTWARE LIMITED,07/11/2018,870.00 ,SOFTWARE,V001330212
ROCHDALE BOROUGH COUNCIL,07/11/2018,NEIGHBOURHOODS AND ENVIRONMENT,PHOENIX SOFTWARE LIMITED,07/11/2018,185.00 ,SOFTWARE,V001330213
ROCHDALE BOROUGH COUNCIL,07/11/2018,NEIGHBOURHOODS AND ENVIRONMENT,PHOENIX SOFTWARE LIMITED,07/11/2018,185.00 ,SOFTWARE,V001330213
ROCHDALE BOROUGH COUNCIL,07/11/2018,EARLY HELP AND SCHOOLS,PHOENIX SOFTWARE LIMITED,07/11/2018,185.00 ,SOFTWARE,V001330213
ROCHDALE BOROUGH COUNCIL,07/11/2018,EARLY HELP AND SCHOOLS,PHOENIX SOFTWARE LIMITED,07/11/2018,185.00 ,SOFTWARE,V001330213
ROCHDALE BOROUGH COUNCIL,07/11/2018,RESOURCES,PHOENIX SOFTWARE LIMITED,07/11/2018,185.00 ,SOFTWARE,V001330213
ROCHDALE BOROUGH COUNCIL,07/11/2018,RESOURCES,PHOENIX SOFTWARE LIMITED,07/11/2018,185.00 ,SOFTWARE,V001330213
ROCHDALE BOROUGH COUNCIL,07/11/2018,ADULT CARE LCO FUNCTIONS,PHOENIX SOFTWARE LIMITED,07/11/2018,185.00 ,SOFTWARE,V001330213
ROCHDALE BOROUGH COUNCIL,07/11/2018,PUBLIC HEALTH,PHOENIX SOFTWARE LIMITED,07/11/2018,185.00 ,SOFTWARE,V001330213
ROCHDALE BOROUGH COUNCIL,07/11/2018,CHILDREN�S SOCIAL CARE,PHOENIX SOFTWARE LIMITED,07/11/2018,185.00 ,SOFTWARE,V001330213
ROCHDALE BOROUGH COUNCIL,07/11/2018,RESOURCES,PHOENIX SOFTWARE LIMITED,07/11/2018,185.00 ,SOFTWARE,V001330213
ROCHDALE BOROUGH COUNCIL,07/11/2018,NEIGHBOURHOODS AND ENVIRONMENT,PHOENIX SOFTWARE LIMITED,07/11/2018,185.00 ,SOFTWARE,V001330213
ROCHDALE BOROUGH COUNCIL,07/11/2018,NEIGHBOURHOODS AND ENVIRONMENT,PHOENIX SOFTWARE LIMITED,07/11/2018,185.00 ,SOFTWARE,V001330213
ROCHDALE BOROUGH COUNCIL,07/11/2018,CHILDREN�S SOCIAL CARE,PHOENIX SOFTWARE LIMITED,07/11/2018,370.00 ,SOFTWARE,V001330213
ROCHDALE BOROUGH COUNCIL,07/11/2018,PROPERTY AND HIGHWAYS,PHOENIX SOFTWARE LIMITED,07/11/2018,740.00 ,SOFTWARE,V001330213
ROCHDALE BOROUGH COUNCIL,07/11/2018,RESOURCES,PHOENIX SOFTWARE LIMITED,07/11/2018,925.00 ,SOFTWARE,V001330213
ROCHDALE BOROUGH COUNCIL,07/11/2018,ECONOMY DIRECTORATE,PHOENIX SOFTWARE LIMITED,07/11/2018,1480.00 ,SOFTWARE,V001330213
ROCHDALE BOROUGH COUNCIL,08/11/2018,ADULT CARE LCO FUNCTIONS,DAISY COMMUNICATIONS LTD,08/11/2018,27.00 ,MOBILE PHONE,V001330214
ROCHDALE BOROUGH COUNCIL,07/11/2018,NEIGHBOURHOODS AND ENVIRONMENT,SPECSAVERS OPTICIANS,07/11/2018,20.00 ,EYE TESTS  VDU USERS,V001330215
ROCHDALE BOROUGH COUNCIL,01/11/2018,ECONOMY DIRECTORATE,ARCO GROUP LIMITED,01/11/2018,18.46 ,"CLOTHES, UNIFORM AND LAUNDRY",V001330217
ROCHDALE BOROUGH COUNCIL,02/11/2018,PROPERTY AND HIGHWAYS,SPECSAVERS OPTICIANS,02/11/2018,20.00 ,EYE TESTS  VDU USERS,V001330218
ROCHDALE BOROUGH COUNCIL,07/11/2018,PROPERTY AND HIGHWAYS,ATKINS LIMITED,07/11/2018,3813.91 ,ROADWORKS,V001330219
ROCHDALE BOROUGH COUNCIL,01/11/2018,NEIGHBOURHOODS AND ENVIRONMENT,BANNER GROUP LIMITED,01/11/2018,-20.82 ,CATERING - GENERAL,V001330220
ROCHDALE BOROUGH COUNCIL,01/11/2018,ECONOMY DIRECTORATE,EAST LANCASHIRE SERVICES LIMITED,01/11/2018,-36.04 ,SUPPLIES AND SERVICES PROVISION,V001330221
ROCHDALE BOROUGH COUNCIL,05/11/2018,PROPERTY AND HIGHWAYS,REACH PUBLISHING SERVICES LTD,05/11/2018,125.64 ,ADVERTISING,V001330222
ROCHDALE BOROUGH COUNCIL,05/11/2018,PROPERTY AND HIGHWAYS,REACH PUBLISHING SERVICES LTD,05/11/2018,152.70 ,ADVERTISING,V001330223
ROCHDALE BOROUGH COUNCIL,05/11/2018,PROPERTY AND HIGHWAYS,REACH PUBLISHING SERVICES LTD,05/11/2018,96.62 ,ADVERTISING,V001330224
ROCHDALE BOROUGH COUNCIL,05/11/2018,PROPERTY AND HIGHWAYS,REACH PUBLISHING SERVICES LTD,05/11/2018,128.77 ,ADVERTISING,V001330225
ROCHDALE BOROUGH COUNCIL,05/11/2018,PROPERTY AND HIGHWAYS,REACH PUBLISHING SERVICES LTD,05/11/2018,156.36 ,ADVERTISING,V001330226
ROCHDALE BOROUGH COUNCIL,05/11/2018,PROPERTY AND HIGHWAYS,REACH PUBLISHING SERVICES LTD,05/11/2018,202.35 ,ADVERTISING,V001330227
ROCHDALE BOROUGH COUNCIL,05/11/2018,PROPERTY AND HIGHWAYS,REACH PUBLISHING SERVICES LTD,05/11/2018,160.34 ,LEGAL SERVICES INTERNAL,V001330228
ROCHDALE BOROUGH COUNCIL,05/11/2018,PROPERTY AND HIGHWAYS,REACH PUBLISHING SERVICES LTD,05/11/2018,280.21 ,LEGAL SERVICES INTERNAL,V001330229
ROCHDALE BOROUGH COUNCIL,05/11/2018,PROPERTY AND HIGHWAYS,REACH PUBLISHING SERVICES LTD,05/11/2018,149.21 ,ADVERTISING,V001330230
ROCHDALE BOROUGH COUNCIL,05/11/2018,PROPERTY AND HIGHWAYS,REACH PUBLISHING SERVICES LTD,05/11/2018,137.97 ,ADVERTISING,V001330231
ROCHDALE BOROUGH COUNCIL,05/11/2018,PROPERTY AND HIGHWAYS,REACH PUBLISHING SERVICES LTD,05/11/2018,73.04 ,ADVERTISING,V001330232
ROCHDALE BOROUGH COUNCIL,05/11/2018,PROPERTY AND HIGHWAYS,REACH PUBLISHING SERVICES LTD,05/11/2018,101.18 ,ADVERTISING,V001330233
ROCHDALE BOROUGH COUNCIL,08/11/2018,NEIGHBOURHOODS AND ENVIRONMENT,GTM ELECTRICAL SERVICES LIMITED,08/11/2018,60.00 ,EQUIPMENT - GENERAL,V001330234
ROCHDALE BOROUGH COUNCIL,19/11/2018,ECONOMY DIRECTORATE,GTM ELECTRICAL SERVICES LIMITED,19/11/2018,60.00 ,ELECTRICAL,V001330235
ROCHDALE BOROUGH COUNCIL,02/11/2018,PROPERTY AND HIGHWAYS,JEWSON LTD,02/11/2018,51.74 ,BUILDING MATERIALS,V001330237
ROCHDALE BOROUGH COUNCIL,01/11/2018,NEIGHBOURHOODS AND ENVIRONMENT,B AND  M WASTE SERVICES,01/11/2018,702.84 ,CONTRACTS,V001330238
ROCHDALE BOROUGH COUNCIL,01/11/2018,NEIGHBOURHOODS AND ENVIRONMENT,B AND  M WASTE SERVICES,01/11/2018,640.96 ,CONTRACTS,V001330239
ROCHDALE BOROUGH COUNCIL,16/11/2018,PROPERTY AND HIGHWAYS,HOLOPHANE EUROPE LTD,16/11/2018,1890.00 ,MINOR BUILDING WORKS,V001330241
ROCHDALE BOROUGH COUNCIL,02/11/2018,PROPERTY AND HIGHWAYS,MARTIN MCCOLL LTD,02/11/2018,4.30 ,BOOKS/NEWSPAPERS/PERIODICALS,V001330242
ROCHDALE BOROUGH COUNCIL,07/11/2018,PROPERTY AND HIGHWAYS,CALEDONIAN LIFTS MANCHESTER LTD,07/11/2018,67.50 ,PROPERTY - WORKS ELEMENT,V001330243
ROCHDALE BOROUGH COUNCIL,09/11/2018,EARLY HELP AND SCHOOLS,TOTAL GAS AND POWER LIMITED,09/11/2018,-1191.21 ,ELECTRICITY,V001330245
ROCHDALE BOROUGH COUNCIL,09/11/2018,NEIGHBOURHOODS AND ENVIRONMENT,TOTAL GAS AND POWER LIMITED,09/11/2018,-175.67 ,ELECTRICITY,V001330245
ROCHDALE BOROUGH COUNCIL,09/11/2018,EARLY HELP AND SCHOOLS,TOTAL GAS AND POWER LIMITED,09/11/2018,-56.28 ,ELECTRICITY,V001330245
ROCHDALE BOROUGH COUNCIL,09/11/2018,NEIGHBOURHOODS AND ENVIRONMENT,TOTAL GAS AND POWER LIMITED,09/11/2018,-16.49 ,ELECTRICITY,V001330245
ROCHDALE BOROUGH COUNCIL,09/11/2018,NEIGHBOURHOODS AND ENVIRONMENT,TOTAL GAS AND POWER LIMITED,09/11/2018,-8.30 ,ELECTRICITY,V001330245
ROCHDALE BOROUGH COUNCIL,09/11/2018,NEIGHBOURHOODS AND ENVIRONMENT,TOTAL GAS AND POWER LIMITED,09/11/2018,-7.86 ,ELECTRICITY,V001330245
ROCHDALE BOROUGH COUNCIL,09/11/2018,NEIGHBOURHOODS AND ENVIRONMENT,TOTAL GAS AND POWER LIMITED,09/11/2018,-7.86 ,ELECTRICITY,V001330245
ROCHDALE BOROUGH COUNCIL,09/11/2018,NEIGHBOURHOODS AND ENVIRONMENT,TOTAL GAS AND POWER LIMITED,09/11/2018,-7.86 ,ELECTRICITY,V001330245
ROCHDALE BOROUGH COUNCIL,09/11/2018,NEIGHBOURHOODS AND ENVIRONMENT,TOTAL GAS AND POWER LIMITED,09/11/2018,-7.61 ,ELECTRICITY,V001330245
ROCHDALE BOROUGH COUNCIL,09/11/2018,ECONOMY DIRECTORATE,TOTAL GAS AND POWER LIMITED,09/11/2018,0.02 ,ELECTRICITY,V001330245
ROCHDALE BOROUGH COUNCIL,09/11/2018,NEIGHBOURHOODS AND ENVIRONMENT,TOTAL GAS AND POWER LIMITED,09/11/2018,0.32 ,ELECTRICITY,V001330245
ROCHDALE BOROUGH COUNCIL,09/11/2018,ADULT CARE LCO FUNCTIONS,TOTAL GAS AND POWER LIMITED,09/11/2018,0.94 ,ELECTRICITY,V001330245
ROCHDALE BOROUGH COUNCIL,09/11/2018,NEIGHBOURHOODS AND ENVIRONMENT,TOTAL GAS AND POWER LIMITED,09/11/2018,1.27 ,ELECTRICITY,V001330245
ROCHDALE BOROUGH COUNCIL,09/11/2018,NEIGHBOURHOODS AND ENVIRONMENT,TOTAL GAS AND POWER LIMITED,09/11/2018,1.67 ,ELECTRICITY,V001330245
ROCHDALE BOROUGH COUNCIL,09/11/2018,NEIGHBOURHOODS AND ENVIRONMENT,TOTAL GAS AND POWER LIMITED,09/11/2018,1.79 ,ELECTRICITY,V001330245
ROCHDALE BOROUGH COUNCIL,09/11/2018,NEIGHBOURHOODS AND ENVIRONMENT,TOTAL GAS AND POWER LIMITED,09/11/2018,2.44 ,ELECTRICITY,V001330245
ROCHDALE BOROUGH COUNCIL,09/11/2018,NEIGHBOURHOODS AND ENVIRONMENT,TOTAL GAS AND POWER LIMITED,09/11/2018,2.87 ,ELECTRICITY,V001330245
ROCHDALE BOROUGH COUNCIL,09/11/2018,NEIGHBOURHOODS AND ENVIRONMENT,TOTAL GAS AND POWER LIMITED,09/11/2018,3.50 ,ELECTRICITY,V001330245
ROCHDALE BOROUGH COUNCIL,09/11/2018,EARLY HELP AND SCHOOLS,TOTAL GAS AND POWER LIMITED,09/11/2018,5.23 ,ELECTRICITY,V001330245
ROCHDALE BOROUGH COUNCIL,09/11/2018,ECONOMY DIRECTORATE,TOTAL GAS AND POWER LIMITED,09/11/2018,5.55 ,ELECTRICITY,V001330245
ROCHDALE BOROUGH COUNCIL,09/11/2018,NEIGHBOURHOODS AND ENVIRONMENT,TOTAL GAS AND POWER LIMITED,09/11/2018,7.86 ,ELECTRICITY,V001330245
ROCHDALE BOROUGH COUNCIL,09/11/2018,NEIGHBOURHOODS AND ENVIRONMENT,TOTAL GAS AND POWER LIMITED,09/11/2018,7.87 ,ELECTRICITY,V001330245
ROCHDALE BOROUGH COUNCIL,09/11/2018,NEIGHBOURHOODS AND ENVIRONMENT,TOTAL GAS AND POWER LIMITED,09/11/2018,8.54 ,ELECTRICITY,V001330245
ROCHDALE BOROUGH COUNCIL,09/11/2018,EARLY HELP AND SCHOOLS,TOTAL GAS AND POWER LIMITED,09/11/2018,8.54 ,ELECTRICITY,V001330245
ROCHDALE BOROUGH COUNCIL,09/11/2018,NEIGHBOURHOODS AND ENVIRONMENT,TOTAL GAS AND POWER LIMITED,09/11/2018,8.54 ,ELECTRICITY,V001330245
ROCHDALE BOROUGH COUNCIL,09/11/2018,EARLY HELP AND SCHOOLS,TOTAL GAS AND POWER LIMITED,09/11/2018,8.58 ,ELECTRICITY,V001330245
ROCHDALE BOROUGH COUNCIL,09/11/2018,NEIGHBOURHOODS AND ENVIRONMENT,TOTAL GAS AND POWER LIMITED,09/11/2018,8.58 ,ELECTRICITY,V001330245
ROCHDALE BOROUGH COUNCIL,09/11/2018,NEIGHBOURHOODS AND ENVIRONMENT,TOTAL GAS AND POWER LIMITED,09/11/2018,8.58 ,ELECTRICITY,V001330245
ROCHDALE BOROUGH COUNCIL,09/11/2018,NEIGHBOURHOODS AND ENVIRONMENT,TOTAL GAS AND POWER LIMITED,09/11/2018,8.58 ,ELECTRICITY,V001330245
ROCHDALE BOROUGH COUNCIL,09/11/2018,NEIGHBOURHOODS AND ENVIRONMENT,TOTAL GAS AND POWER LIMITED,09/11/2018,8.58 ,ELECTRICITY,V001330245
ROCHDALE BOROUGH COUNCIL,09/11/2018,NEIGHBOURHOODS AND ENVIRONMENT,TOTAL GAS AND POWER LIMITED,09/11/2018,8.58 ,ELECTRICITY,V001330245
ROCHDALE BOROUGH COUNCIL,09/11/2018,ECONOMY DIRECTORATE,TOTAL GAS AND POWER LIMITED,09/11/2018,8.58 ,ELECTRICITY,V001330245
ROCHDALE BOROUGH COUNCIL,09/11/2018,NEIGHBOURHOODS AND ENVIRONMENT,TOTAL GAS AND POWER LIMITED,09/11/2018,8.58 ,ELECTRICITY,V001330245
ROCHDALE BOROUGH COUNCIL,09/11/2018,NEIGHBOURHOODS AND ENVIRONMENT,TOTAL GAS AND POWER LIMITED,09/11/2018,8.58 ,ELECTRICITY,V001330245
ROCHDALE BOROUGH COUNCIL,09/11/2018,NEIGHBOURHOODS AND ENVIRONMENT,TOTAL GAS AND POWER LIMITED,09/11/2018,8.58 ,ELECTRICITY,V001330245
ROCHDALE BOROUGH COUNCIL,09/11/2018,NEIGHBOURHOODS AND ENVIRONMENT,TOTAL GAS AND POWER LIMITED,09/11/2018,8.58 ,ELECTRICITY,V001330245
ROCHDALE BOROUGH COUNCIL,09/11/2018,NEIGHBOURHOODS AND ENVIRONMENT,TOTAL GAS AND POWER LIMITED,09/11/2018,8.58 ,ELECTRICITY,V001330245
ROCHDALE BOROUGH COUNCIL,09/11/2018,NEIGHBOURHOODS AND ENVIRONMENT,TOTAL GAS AND POWER LIMITED,09/11/2018,8.58 ,ELECTRICITY,V001330245
ROCHDALE BOROUGH COUNCIL,09/11/2018,NEIGHBOURHOODS AND ENVIRONMENT,TOTAL GAS AND POWER LIMITED,09/11/2018,8.58 ,ELECTRICITY,V001330245
ROCHDALE BOROUGH COUNCIL,09/11/2018,NEIGHBOURHOODS AND ENVIRONMENT,TOTAL GAS AND POWER LIMITED,09/11/2018,8.58 ,ELECTRICITY,V001330245
ROCHDALE BOROUGH COUNCIL,09/11/2018,NEIGHBOURHOODS AND ENVIRONMENT,TOTAL GAS AND POWER LIMITED,09/11/2018,8.96 ,ELECTRICITY,V001330245
ROCHDALE BOROUGH COUNCIL,09/11/2018,NEIGHBOURHOODS AND ENVIRONMENT,TOTAL GAS AND POWER LIMITED,09/11/2018,10.05 ,ELECTRICITY,V001330245
ROCHDALE BOROUGH COUNCIL,09/11/2018,NEIGHBOURHOODS AND ENVIRONMENT,TOTAL GAS AND POWER LIMITED,09/11/2018,10.34 ,ELECTRICITY,V001330245
ROCHDALE BOROUGH COUNCIL,09/11/2018,ADULT CARE LCO FUNCTIONS,TOTAL GAS AND POWER LIMITED,09/11/2018,11.36 ,ELECTRICITY,V001330245
ROCHDALE BOROUGH COUNCIL,09/11/2018,NEIGHBOURHOODS AND ENVIRONMENT,TOTAL GAS AND POWER LIMITED,09/11/2018,11.36 ,ELECTRICITY,V001330245
ROCHDALE BOROUGH COUNCIL,09/11/2018,NEIGHBOURHOODS AND ENVIRONMENT,TOTAL GAS AND POWER LIMITED,09/11/2018,11.36 ,ELECTRICITY,V001330245
ROCHDALE BOROUGH COUNCIL,09/11/2018,PUBLIC HEALTH,TOTAL GAS AND POWER LIMITED,09/11/2018,11.36 ,ELECTRICITY,V001330245
ROCHDALE BOROUGH COUNCIL,09/11/2018,NEIGHBOURHOODS AND ENVIRONMENT,TOTAL GAS AND POWER LIMITED,09/11/2018,11.36 ,ELECTRICITY,V001330245
ROCHDALE BOROUGH COUNCIL,09/11/2018,ECONOMY DIRECTORATE,TOTAL GAS AND POWER LIMITED,09/11/2018,11.36 ,ELECTRICITY,V001330245
ROCHDALE BOROUGH COUNCIL,09/11/2018,NEIGHBOURHOODS AND ENVIRONMENT,TOTAL GAS AND POWER LIMITED,09/11/2018,11.36 ,ELECTRICITY,V001330245
ROCHDALE BOROUGH COUNCIL,09/11/2018,NEIGHBOURHOODS AND ENVIRONMENT,TOTAL GAS AND POWER LIMITED,09/11/2018,11.36 ,ELECTRICITY,V001330245
ROCHDALE BOROUGH COUNCIL,09/11/2018,NEIGHBOURHOODS AND ENVIRONMENT,TOTAL GAS AND POWER LIMITED,09/11/2018,11.36 ,ELECTRICITY,V001330245
ROCHDALE BOROUGH COUNCIL,09/11/2018,ADULT CARE LCO FUNCTIONS,TOTAL GAS AND POWER LIMITED,09/11/2018,11.36 ,ELECTRICITY,V001330245
ROCHDALE BOROUGH COUNCIL,09/11/2018,NEIGHBOURHOODS AND ENVIRONMENT,TOTAL GAS AND POWER LIMITED,09/11/2018,13.38 ,ELECTRICITY,V001330245
ROCHDALE BOROUGH COUNCIL,09/11/2018,NEIGHBOURHOODS AND ENVIRONMENT,TOTAL GAS AND POWER LIMITED,09/11/2018,14.18 ,ELECTRICITY,V001330245
ROCHDALE BOROUGH COUNCIL,09/11/2018,NEIGHBOURHOODS AND ENVIRONMENT,TOTAL GAS AND POWER LIMITED,09/11/2018,16.81 ,ELECTRICITY,V001330245
ROCHDALE BOROUGH COUNCIL,09/11/2018,EARLY HELP AND SCHOOLS,TOTAL GAS AND POWER LIMITED,09/11/2018,17.63 ,ELECTRICITY,V001330245
ROCHDALE BOROUGH COUNCIL,09/11/2018,CHILDREN�S SOCIAL CARE,TOTAL GAS AND POWER LIMITED,09/11/2018,18.99 ,ELECTRICITY,V001330245
ROCHDALE BOROUGH COUNCIL,09/11/2018,NEIGHBOURHOODS AND ENVIRONMENT,TOTAL GAS AND POWER LIMITED,09/11/2018,20.17 ,ELECTRICITY,V001330245
ROCHDALE BOROUGH COUNCIL,09/11/2018,PROPERTY AND HIGHWAYS,TOTAL GAS AND POWER LIMITED,09/11/2018,20.34 ,ELECTRICITY,V001330245
ROCHDALE BOROUGH COUNCIL,09/11/2018,EARLY HELP AND SCHOOLS,TOTAL GAS AND POWER LIMITED,09/11/2018,20.34 ,ELECTRICITY,V001330245
ROCHDALE BOROUGH COUNCIL,09/11/2018,NEIGHBOURHOODS AND ENVIRONMENT,TOTAL GAS AND POWER LIMITED,09/11/2018,20.40 ,ELECTRICITY,V001330245
ROCHDALE BOROUGH COUNCIL,09/11/2018,ECONOMY DIRECTORATE,TOTAL GAS AND POWER LIMITED,09/11/2018,21.34 ,ELECTRICITY,V001330245
ROCHDALE BOROUGH COUNCIL,09/11/2018,ECONOMY DIRECTORATE,TOTAL GAS AND POWER LIMITED,09/11/2018,21.34 ,ELECTRICITY,V001330245
ROCHDALE BOROUGH COUNCIL,09/11/2018,ECONOMY DIRECTORATE,TOTAL GAS AND POWER LIMITED,09/11/2018,24.30 ,ELECTRICITY,V001330245
ROCHDALE BOROUGH COUNCIL,09/11/2018,NEIGHBOURHOODS AND ENVIRONMENT,TOTAL GAS AND POWER LIMITED,09/11/2018,24.30 ,ELECTRICITY,V001330245
ROCHDALE BOROUGH COUNCIL,09/11/2018,NEIGHBOURHOODS AND ENVIRONMENT,TOTAL GAS AND POWER LIMITED,09/11/2018,24.30 ,ELECTRICITY,V001330245
ROCHDALE BOROUGH COUNCIL,09/11/2018,ADULT CARE LCO FUNCTIONS,TOTAL GAS AND POWER LIMITED,09/11/2018,25.37 ,ELECTRICITY,V001330245
ROCHDALE BOROUGH COUNCIL,09/11/2018,EARLY HELP AND SCHOOLS,TOTAL GAS AND POWER LIMITED,09/11/2018,27.62 ,ELECTRICITY,V001330245
ROCHDALE BOROUGH COUNCIL,09/11/2018,NEIGHBOURHOODS AND ENVIRONMENT,TOTAL GAS AND POWER LIMITED,09/11/2018,28.60 ,ELECTRICITY,V001330245
ROCHDALE BOROUGH COUNCIL,09/11/2018,NEIGHBOURHOODS AND ENVIRONMENT,TOTAL GAS AND POWER LIMITED,09/11/2018,30.52 ,ELECTRICITY,V001330245
ROCHDALE BOROUGH COUNCIL,09/11/2018,NEIGHBOURHOODS AND ENVIRONMENT,TOTAL GAS AND POWER LIMITED,09/11/2018,31.16 ,ELECTRICITY,V001330245
ROCHDALE BOROUGH COUNCIL,09/11/2018,PUBLIC HEALTH,TOTAL GAS AND POWER LIMITED,09/11/2018,38.89 ,ELECTRICITY,V001330245
ROCHDALE BOROUGH COUNCIL,09/11/2018,NEIGHBOURHOODS AND ENVIRONMENT,TOTAL GAS AND POWER LIMITED,09/11/2018,39.54 ,ELECTRICITY,V001330245
ROCHDALE BOROUGH COUNCIL,09/11/2018,NEIGHBOURHOODS AND ENVIRONMENT,TOTAL GAS AND POWER LIMITED,09/11/2018,40.48 ,ELECTRICITY,V001330245
ROCHDALE BOROUGH COUNCIL,09/11/2018,NEIGHBOURHOODS AND ENVIRONMENT,TOTAL GAS AND POWER LIMITED,09/11/2018,40.48 ,ELECTRICITY,V001330245
ROCHDALE BOROUGH COUNCIL,09/11/2018,ECONOMY DIRECTORATE,TOTAL GAS AND POWER LIMITED,09/11/2018,40.68 ,ELECTRICITY,V001330245
ROCHDALE BOROUGH COUNCIL,09/11/2018,ECONOMY DIRECTORATE,TOTAL GAS AND POWER LIMITED,09/11/2018,46.65 ,ELECTRICITY,V001330245
ROCHDALE BOROUGH COUNCIL,09/11/2018,ECONOMY DIRECTORATE,TOTAL GAS AND POWER LIMITED,09/11/2018,46.96 ,ELECTRICITY,V001330245
ROCHDALE BOROUGH COUNCIL,09/11/2018,EARLY HELP AND SCHOOLS,TOTAL GAS AND POWER LIMITED,09/11/2018,48.79 ,ELECTRICITY,V001330245
ROCHDALE BOROUGH COUNCIL,09/11/2018,ECONOMY DIRECTORATE,TOTAL GAS AND POWER LIMITED,09/11/2018,51.00 ,ELECTRICITY,V001330245
ROCHDALE BOROUGH COUNCIL,09/11/2018,NEIGHBOURHOODS AND ENVIRONMENT,TOTAL GAS AND POWER LIMITED,09/11/2018,54.80 ,ELECTRICITY,V001330245
ROCHDALE BOROUGH COUNCIL,09/11/2018,EARLY HELP AND SCHOOLS,TOTAL GAS AND POWER LIMITED,09/11/2018,58.08 ,ELECTRICITY,V001330245
ROCHDALE BOROUGH COUNCIL,09/11/2018,NEIGHBOURHOODS AND ENVIRONMENT,TOTAL GAS AND POWER LIMITED,09/11/2018,61.20 ,ELECTRICITY,V001330245
ROCHDALE BOROUGH COUNCIL,09/11/2018,NEIGHBOURHOODS AND ENVIRONMENT,TOTAL GAS AND POWER LIMITED,09/11/2018,62.31 ,ELECTRICITY,V001330245
ROCHDALE BOROUGH COUNCIL,09/11/2018,NEIGHBOURHOODS AND ENVIRONMENT,TOTAL GAS AND POWER LIMITED,09/11/2018,63.89 ,ELECTRICITY,V001330245
ROCHDALE BOROUGH COUNCIL,09/11/2018,ECONOMY DIRECTORATE,TOTAL GAS AND POWER LIMITED,09/11/2018,66.58 ,ELECTRICITY,V001330245
ROCHDALE BOROUGH COUNCIL,09/11/2018,CHILDREN�S SOCIAL CARE,TOTAL GAS AND POWER LIMITED,09/11/2018,73.49 ,ELECTRICITY,V001330245
ROCHDALE BOROUGH COUNCIL,09/11/2018,ECONOMY DIRECTORATE,TOTAL GAS AND POWER LIMITED,09/11/2018,76.68 ,ELECTRICITY,V001330245
ROCHDALE BOROUGH COUNCIL,09/11/2018,NEIGHBOURHOODS AND ENVIRONMENT,TOTAL GAS AND POWER LIMITED,09/11/2018,85.64 ,ELECTRICITY,V001330245
ROCHDALE BOROUGH COUNCIL,09/11/2018,PROPERTY AND HIGHWAYS,TOTAL GAS AND POWER LIMITED,09/11/2018,96.38 ,ELECTRICITY,V001330245
ROCHDALE BOROUGH COUNCIL,09/11/2018,NEIGHBOURHOODS AND ENVIRONMENT,TOTAL GAS AND POWER LIMITED,09/11/2018,96.83 ,ELECTRICITY,V001330245
ROCHDALE BOROUGH COUNCIL,09/11/2018,ECONOMY DIRECTORATE,TOTAL GAS AND POWER LIMITED,09/11/2018,111.10 ,ELECTRICITY,V001330245
ROCHDALE BOROUGH COUNCIL,09/11/2018,NEIGHBOURHOODS AND ENVIRONMENT,TOTAL GAS AND POWER LIMITED,09/11/2018,113.75 ,ELECTRICITY,V001330245
ROCHDALE BOROUGH COUNCIL,09/11/2018,ECONOMY DIRECTORATE,TOTAL GAS AND POWER LIMITED,09/11/2018,116.98 ,ELECTRICITY,V001330245
ROCHDALE BOROUGH COUNCIL,09/11/2018,NEIGHBOURHOODS AND ENVIRONMENT,TOTAL GAS AND POWER LIMITED,09/11/2018,122.40 ,ELECTRICITY,V001330245
ROCHDALE BOROUGH COUNCIL,09/11/2018,ECONOMY DIRECTORATE,TOTAL GAS AND POWER LIMITED,09/11/2018,127.94 ,ELECTRICITY,V001330245
ROCHDALE BOROUGH COUNCIL,09/11/2018,NEIGHBOURHOODS AND ENVIRONMENT,TOTAL GAS AND POWER LIMITED,09/11/2018,136.50 ,ELECTRICITY,V001330245
ROCHDALE BOROUGH COUNCIL,09/11/2018,NEIGHBOURHOODS AND ENVIRONMENT,TOTAL GAS AND POWER LIMITED,09/11/2018,139.57 ,ELECTRICITY,V001330245
ROCHDALE BOROUGH COUNCIL,09/11/2018,NEIGHBOURHOODS AND ENVIRONMENT,TOTAL GAS AND POWER LIMITED,09/11/2018,159.38 ,ELECTRICITY,V001330245
ROCHDALE BOROUGH COUNCIL,09/11/2018,ECONOMY DIRECTORATE,TOTAL GAS AND POWER LIMITED,09/11/2018,225.85 ,ELECTRICITY,V001330245
ROCHDALE BOROUGH COUNCIL,09/11/2018,ECONOMY DIRECTORATE,TOTAL GAS AND POWER LIMITED,09/11/2018,250.84 ,ELECTRICITY,V001330245
ROCHDALE BOROUGH COUNCIL,09/11/2018,NEIGHBOURHOODS AND ENVIRONMENT,TOTAL GAS AND POWER LIMITED,09/11/2018,323.88 ,ELECTRICITY,V001330245
ROCHDALE BOROUGH COUNCIL,09/11/2018,NEIGHBOURHOODS AND ENVIRONMENT,TOTAL GAS AND POWER LIMITED,09/11/2018,328.19 ,ELECTRICITY,V001330245
ROCHDALE BOROUGH COUNCIL,09/11/2018,PROPERTY AND HIGHWAYS,TOTAL GAS AND POWER LIMITED,09/11/2018,349.79 ,ELECTRICITY,V001330245
ROCHDALE BOROUGH COUNCIL,09/11/2018,NEIGHBOURHOODS AND ENVIRONMENT,TOTAL GAS AND POWER LIMITED,09/11/2018,481.93 ,ELECTRICITY,V001330245
ROCHDALE BOROUGH COUNCIL,09/11/2018,EARLY HELP AND SCHOOLS,TOTAL GAS AND POWER LIMITED,09/11/2018,584.52 ,ELECTRICITY,V001330245
ROCHDALE BOROUGH COUNCIL,09/11/2018,CHILDREN�S SOCIAL CARE,TOTAL GAS AND POWER LIMITED,09/11/2018,603.33 ,ELECTRICITY,V001330245
ROCHDALE BOROUGH COUNCIL,09/11/2018,CHILDREN�S SOCIAL CARE,TOTAL GAS AND POWER LIMITED,09/11/2018,707.35 ,ELECTRICITY,V001330245
ROCHDALE BOROUGH COUNCIL,09/11/2018,NEIGHBOURHOODS AND ENVIRONMENT,TOTAL GAS AND POWER LIMITED,09/11/2018,714.85 ,ELECTRICITY,V001330245
ROCHDALE BOROUGH COUNCIL,09/11/2018,ECONOMY DIRECTORATE,TOTAL GAS AND POWER LIMITED,09/11/2018,830.63 ,ELECTRICITY,V001330245
ROCHDALE BOROUGH COUNCIL,09/11/2018,NEIGHBOURHOODS AND ENVIRONMENT,TOTAL GAS AND POWER LIMITED,09/11/2018,843.85 ,ELECTRICITY,V001330245
ROCHDALE BOROUGH COUNCIL,09/11/2018,NEIGHBOURHOODS AND ENVIRONMENT,TOTAL GAS AND POWER LIMITED,09/11/2018,1038.80 ,ELECTRICITY,V001330245
ROCHDALE BOROUGH COUNCIL,09/11/2018,ECONOMY DIRECTORATE,TOTAL GAS AND POWER LIMITED,09/11/2018,1136.40 ,ELECTRICITY,V001330245
ROCHDALE BOROUGH COUNCIL,09/11/2018,NEIGHBOURHOODS AND ENVIRONMENT,TOTAL GAS AND POWER LIMITED,09/11/2018,1366.53 ,ELECTRICITY,V001330245
ROCHDALE BOROUGH COUNCIL,09/11/2018,PROPERTY AND HIGHWAYS,TOTAL GAS AND POWER LIMITED,09/11/2018,1584.77 ,ELECTRICITY,V001330245
ROCHDALE BOROUGH COUNCIL,09/11/2018,ECONOMY DIRECTORATE,TOTAL GAS AND POWER LIMITED,09/11/2018,1851.59 ,ELECTRICITY,V001330245
ROCHDALE BOROUGH COUNCIL,09/11/2018,NEIGHBOURHOODS AND ENVIRONMENT,TOTAL GAS AND POWER LIMITED,09/11/2018,2381.88 ,ELECTRICITY,V001330245
ROCHDALE BOROUGH COUNCIL,09/11/2018,NEIGHBOURHOODS AND ENVIRONMENT,TOTAL GAS AND POWER LIMITED,09/11/2018,2859.82 ,ELECTRICITY,V001330245
ROCHDALE BOROUGH COUNCIL,09/11/2018,NEIGHBOURHOODS AND ENVIRONMENT,TOTAL GAS AND POWER LIMITED,09/11/2018,15653.36 ,ELECTRICITY,V001330245
ROCHDALE BOROUGH COUNCIL,07/11/2018,NEIGHBOURHOODS AND ENVIRONMENT,AMTOLL LIMITED,07/11/2018,1.01 ,CLEANING MATERIALS,V001330247
ROCHDALE BOROUGH COUNCIL,07/11/2018,NEIGHBOURHOODS AND ENVIRONMENT,AMTOLL LIMITED,07/11/2018,1.59 ,CLEANING EQUIPMENT,V001330247
ROCHDALE BOROUGH COUNCIL,07/11/2018,NEIGHBOURHOODS AND ENVIRONMENT,AMTOLL LIMITED,07/11/2018,1.67 ,CLEANING MATERIALS,V001330247
ROCHDALE BOROUGH COUNCIL,07/11/2018,NEIGHBOURHOODS AND ENVIRONMENT,AMTOLL LIMITED,07/11/2018,2.44 ,CLEANING EQUIPMENT,V001330247
ROCHDALE BOROUGH COUNCIL,07/11/2018,NEIGHBOURHOODS AND ENVIRONMENT,AMTOLL LIMITED,07/11/2018,2.52 ,CLEANING MATERIALS,V001330247
ROCHDALE BOROUGH COUNCIL,07/11/2018,NEIGHBOURHOODS AND ENVIRONMENT,AMTOLL LIMITED,07/11/2018,3.59 ,CONSUMABLES,V001330247
ROCHDALE BOROUGH COUNCIL,07/11/2018,NEIGHBOURHOODS AND ENVIRONMENT,AMTOLL LIMITED,07/11/2018,4.31 ,CLEANING MATERIALS,V001330247
ROCHDALE BOROUGH COUNCIL,07/11/2018,NEIGHBOURHOODS AND ENVIRONMENT,AMTOLL LIMITED,07/11/2018,4.54 ,CLEANING MATERIALS,V001330247
ROCHDALE BOROUGH COUNCIL,07/11/2018,NEIGHBOURHOODS AND ENVIRONMENT,AMTOLL LIMITED,07/11/2018,7.50 ,CLEANING MATERIALS,V001330247
ROCHDALE BOROUGH COUNCIL,07/11/2018,NEIGHBOURHOODS AND ENVIRONMENT,AMTOLL LIMITED,07/11/2018,9.01 ,CONSUMABLES,V001330247
ROCHDALE BOROUGH COUNCIL,07/11/2018,NEIGHBOURHOODS AND ENVIRONMENT,AMTOLL LIMITED,07/11/2018,13.86 ,CONSUMABLES,V001330247
ROCHDALE BOROUGH COUNCIL,07/11/2018,NEIGHBOURHOODS AND ENVIRONMENT,AMTOLL LIMITED,07/11/2018,14.90 ,EQUIPMENT - GENERAL,V001330247
ROCHDALE BOROUGH COUNCIL,07/11/2018,NEIGHBOURHOODS AND ENVIRONMENT,AMTOLL LIMITED,07/11/2018,15.24 ,CLEANING MATERIALS,V001330247
ROCHDALE BOROUGH COUNCIL,07/11/2018,NEIGHBOURHOODS AND ENVIRONMENT,AMTOLL LIMITED,07/11/2018,27.98 ,CONSUMABLES,V001330247
ROCHDALE BOROUGH COUNCIL,07/11/2018,NEIGHBOURHOODS AND ENVIRONMENT,AMTOLL LIMITED,07/11/2018,28.56 ,CONSUMABLES,V001330247
ROCHDALE BOROUGH COUNCIL,07/11/2018,NEIGHBOURHOODS AND ENVIRONMENT,AMTOLL LIMITED,07/11/2018,30.25 ,CLEANING MATERIALS,V001330247
ROCHDALE BOROUGH COUNCIL,07/11/2018,NEIGHBOURHOODS AND ENVIRONMENT,AMTOLL LIMITED,07/11/2018,41.58 ,CONSUMABLES,V001330247
ROCHDALE BOROUGH COUNCIL,07/11/2018,NEIGHBOURHOODS AND ENVIRONMENT,AMTOLL LIMITED,07/11/2018,4.31 ,CLEANING MATERIALS,V001330248
ROCHDALE BOROUGH COUNCIL,07/11/2018,NEIGHBOURHOODS AND ENVIRONMENT,AMTOLL LIMITED,07/11/2018,4.54 ,CLEANING MATERIALS,V001330248
ROCHDALE BOROUGH COUNCIL,07/11/2018,NEIGHBOURHOODS AND ENVIRONMENT,AMTOLL LIMITED,07/11/2018,7.05 ,CLEANING EQUIPMENT,V001330248
ROCHDALE BOROUGH COUNCIL,07/11/2018,NEIGHBOURHOODS AND ENVIRONMENT,AMTOLL LIMITED,07/11/2018,7.29 ,CONSUMABLES,V001330248
ROCHDALE BOROUGH COUNCIL,07/11/2018,NEIGHBOURHOODS AND ENVIRONMENT,AMTOLL LIMITED,07/11/2018,9.00 ,CLEANING MATERIALS,V001330248
ROCHDALE BOROUGH COUNCIL,07/11/2018,NEIGHBOURHOODS AND ENVIRONMENT,AMTOLL LIMITED,07/11/2018,9.01 ,CONSUMABLES,V001330248
ROCHDALE BOROUGH COUNCIL,07/11/2018,NEIGHBOURHOODS AND ENVIRONMENT,AMTOLL LIMITED,07/11/2018,9.25 ,CLEANING MATERIALS,V001330248
ROCHDALE BOROUGH COUNCIL,07/11/2018,NEIGHBOURHOODS AND ENVIRONMENT,AMTOLL LIMITED,07/11/2018,10.52 ,CONSUMABLES,V001330248
ROCHDALE BOROUGH COUNCIL,07/11/2018,NEIGHBOURHOODS AND ENVIRONMENT,AMTOLL LIMITED,07/11/2018,12.80 ,EQUIPMENT - GENERAL,V001330248
ROCHDALE BOROUGH COUNCIL,07/11/2018,NEIGHBOURHOODS AND ENVIRONMENT,AMTOLL LIMITED,07/11/2018,15.11 ,CLEANING MATERIALS,V001330248
ROCHDALE BOROUGH COUNCIL,07/11/2018,NEIGHBOURHOODS AND ENVIRONMENT,AMTOLL LIMITED,07/11/2018,24.20 ,CLEANING MATERIALS,V001330248
ROCHDALE BOROUGH COUNCIL,07/11/2018,NEIGHBOURHOODS AND ENVIRONMENT,AMTOLL LIMITED,07/11/2018,27.80 ,CONSUMABLES,V001330248
ROCHDALE BOROUGH COUNCIL,07/11/2018,NEIGHBOURHOODS AND ENVIRONMENT,AMTOLL LIMITED,07/11/2018,139.90 ,CONSUMABLES,V001330248
ROCHDALE BOROUGH COUNCIL,16/11/2018,NEIGHBOURHOODS AND ENVIRONMENT,AMTOLL LIMITED,16/11/2018,2.44 ,CLEANING EQUIPMENT,V001330249
ROCHDALE BOROUGH COUNCIL,16/11/2018,NEIGHBOURHOODS AND ENVIRONMENT,AMTOLL LIMITED,16/11/2018,7.98 ,EQUIPMENT - GENERAL,V001330249
ROCHDALE BOROUGH COUNCIL,16/11/2018,NEIGHBOURHOODS AND ENVIRONMENT,AMTOLL LIMITED,16/11/2018,9.50 ,CLEANING EQUIPMENT,V001330249
ROCHDALE BOROUGH COUNCIL,16/11/2018,NEIGHBOURHOODS AND ENVIRONMENT,AMTOLL LIMITED,16/11/2018,13.30 ,CLEANING EQUIPMENT,V001330249
ROCHDALE BOROUGH COUNCIL,16/11/2018,NEIGHBOURHOODS AND ENVIRONMENT,AMTOLL LIMITED,16/11/2018,41.70 ,CONSUMABLES,V001330249
ROCHDALE BOROUGH COUNCIL,16/11/2018,NEIGHBOURHOODS AND ENVIRONMENT,AMTOLL LIMITED,16/11/2018,55.96 ,CONSUMABLES,V001330249
ROCHDALE BOROUGH COUNCIL,14/11/2018,NEIGHBOURHOODS AND ENVIRONMENT,AMTOLL LIMITED,14/11/2018,4.57 ,CLEANING EQUIPMENT,V001330250
ROCHDALE BOROUGH COUNCIL,14/11/2018,NEIGHBOURHOODS AND ENVIRONMENT,AMTOLL LIMITED,14/11/2018,5.46 ,CLEANING MATERIALS,V001330250
ROCHDALE BOROUGH COUNCIL,14/11/2018,NEIGHBOURHOODS AND ENVIRONMENT,AMTOLL LIMITED,14/11/2018,6.15 ,CONSUMABLES,V001330250
ROCHDALE BOROUGH COUNCIL,14/11/2018,NEIGHBOURHOODS AND ENVIRONMENT,AMTOLL LIMITED,14/11/2018,7.10 ,CLEANING MATERIALS,V001330250
